{"text_format":"1","workbook":"xlsx","n_sheets":3,"sheets":["Dokumentenauswertung","Punkteauswertung","Fragenauswertung"],"not_rendered":{"charts":0,"images":0,"macros":1,"external_links":0,"defined_names":0,"comments":0,"pivot_tables":0},"unopened":[],"bounds":{"document_bytes":16777216,"sheet_cells":100000,"rows_first":2000,"rows_last":500,"rows_between":2000,"halvings":0,"cell_chars":16384,"cell_head_chars":4096},"cells_cut":0,"cells_raw":0,"read":"whole","date_system":"1900"}

{"sheet":"Dokumentenauswertung","index":0,"n_rows":35,"n_cols":4,"rows_kept":35,"cut":false,"hidden":false,"merged":[]}
[]
[]
[]
[]
[]
[]
[]
[]
[]
[]
[]
[]
["Frage #","Lösung","Punkte pro Frage","Richtig = 1"]
["A1","d",1,1]
["A2","a",1,1]
["A3","a",1,1]
["A4.a","Abnahme",1,1]
["A4.b","Zunahme",1,1]
["A4.c","Zunahme",1,1]
["A5.1","a",1,1]
["A5.2","c",1,1]
["A6.1","b",1,1]
["A6.2","d",1,1]
["A7.1","a",1,1]
["A7.2","d",1,1]
["A8.1","b",1,1]
["A8.2","c",1,1]
["A9","a",1,1]
["A10","b",1,1]
["A11.1","a",1,1]
["A11.2","b",1,1]
["B1","ok",3,1]
["B2","ok",2,1]
["B3","ok",3,1]
["B4","b",1,1]

{"sheet":"Punkteauswertung","index":1,"n_rows":51,"n_cols":36,"rows_kept":51,"cut":false,"hidden":false,"merged":[]}
[]
[]
[]
[]
[]
[]
[]
[]
[null,null,"Auswertung Nr.",1,2,3,4,5,6,7,8,9,10,11,12,13,14,15,16,17,18,19,20,21,22,23,24,25,26,27,28,29,30,31,32,33]
[null,null,"Name",{"$f":"IF(Dokumentenauswertung!E11=\"\",\"\",Dokumentenauswertung!E11)","v":""},{"$f":"IF(Dokumentenauswertung!F11=\"\",\"\",Dokumentenauswertung!F11)","v":""},{"$f":"IF(Dokumentenauswertung!G11=\"\",\"\",Dokumentenauswertung!G11)","v":""},{"$f":"IF(Dokumentenauswertung!H11=\"\",\"\",Dokumentenauswertung!H11)","v":""},{"$f":"IF(Dokumentenauswertung!I11=\"\",\"\",Dokumentenauswertung!I11)","v":""},{"$f":"IF(Dokumentenauswertung!J11=\"\",\"\",Dokumentenauswertung!J11)","v":""},{"$f":"IF(Dokumentenauswertung!K11=\"\",\"\",Dokumentenauswertung!K11)","v":""},{"$f":"IF(Dokumentenauswertung!L11=\"\",\"\",Dokumentenauswertung!L11)","v":""},{"$f":"IF(Dokumentenauswertung!M11=\"\",\"\",Dokumentenauswertung!M11)","v":""},{"$f":"IF(Dokumentenauswertung!N11=\"\",\"\",Dokumentenauswertung!N11)","v":""},{"$f":"IF(Dokumentenauswertung!O11=\"\",\"\",Dokumentenauswertung!O11)","v":""},{"$f":"IF(Dokumentenauswertung!P11=\"\",\"\",Dokumentenauswertung!P11)","v":""},{"$f":"IF(Dokumentenauswertung!Q11=\"\",\"\",Dokumentenauswertung!Q11)","v":""},{"$f":"IF(Dokumentenauswertung!R11=\"\",\"\",Dokumentenauswertung!R11)","v":""},{"$f":"IF(Dokumentenauswertung!S11=\"\",\"\",Dokumentenauswertung!S11)","v":""},{"$f":"IF(Dokumentenauswertung!T11=\"\",\"\",Dokumentenauswertung!T11)","v":""},{"$f":"IF(Dokumentenauswertung!U11=\"\",\"\",Dokumentenauswertung!U11)","v":""},{"$f":"IF(Dokumentenauswertung!V11=\"\",\"\",Dokumentenauswertung!V11)","v":""},{"$f":"IF(Dokumentenauswertung!W11=\"\",\"\",Dokumentenauswertung!W11)","v":""},{"$f":"IF(Dokumentenauswertung!X11=\"\",\"\",Dokumentenauswertung!X11)","v":""},{"$f":"IF(Dokumentenauswertung!Y11=\"\",\"\",Dokumentenauswertung!Y11)","v":""},{"$f":"IF(Dokumentenauswertung!Z11=\"\",\"\",Dokumentenauswertung!Z11)","v":""},{"$f":"IF(Dokumentenauswertung!AA11=\"\",\"\",Dokumentenauswertung!AA11)","v":""},{"$f":"IF(Dokumentenauswertung!AB11=\"\",\"\",Dokumentenauswertung!AB11)","v":""},{"$f":"IF(Dokumentenauswertung!AC11=\"\",\"\",Dokumentenauswertung!AC11)","v":""},{"$f":"IF(Dokumentenauswertung!AD11=\"\",\"\",Dokumentenauswertung!AD11)","v":""},{"$f":"IF(Dokumentenauswertung!AE11=\"\",\"\",Dokumentenauswertung!AE11)","v":""},{"$f":"IF(Dokumentenauswertung!AF11=\"\",\"\",Dokumentenauswertung!AF11)","v":""},{"$f":"IF(Dokumentenauswertung!AG11=\"\",\"\",Dokumentenauswertung!AG11)","v":""},{"$f":"IF(Dokumentenauswertung!AH11=\"\",\"\",Dokumentenauswertung!AH11)","v":""},{"$f":"IF(Dokumentenauswertung!AI11=\"\",\"\",Dokumentenauswertung!AI11)","v":""},{"$f":"IF(Dokumentenauswertung!AJ11=\"\",\"\",Dokumentenauswertung!AJ11)","v":""},{"$f":"IF(Dokumentenauswertung!AK11=\"\",\"\",Dokumentenauswertung!AK11)","v":""}]
[null,null,"Klasse",{"$f":"IF(Dokumentenauswertung!E12=\"\",\"\",Dokumentenauswertung!E12)","v":""},{"$f":"IF(Dokumentenauswertung!F12=\"\",\"\",Dokumentenauswertung!F12)","v":""},{"$f":"IF(Dokumentenauswertung!G12=\"\",\"\",Dokumentenauswertung!G12)","v":""},{"$f":"IF(Dokumentenauswertung!H12=\"\",\"\",Dokumentenauswertung!H12)","v":""},{"$f":"IF(Dokumentenauswertung!I12=\"\",\"\",Dokumentenauswertung!I12)","v":""},{"$f":"IF(Dokumentenauswertung!J12=\"\",\"\",Dokumentenauswertung!J12)","v":""},{"$f":"IF(Dokumentenauswertung!K12=\"\",\"\",Dokumentenauswertung!K12)","v":""},{"$f":"IF(Dokumentenauswertung!L12=\"\",\"\",Dokumentenauswertung!L12)","v":""},{"$f":"IF(Dokumentenauswertung!M12=\"\",\"\",Dokumentenauswertung!M12)","v":""},{"$f":"IF(Dokumentenauswertung!N12=\"\",\"\",Dokumentenauswertung!N12)","v":""},{"$f":"IF(Dokumentenauswertung!O12=\"\",\"\",Dokumentenauswertung!O12)","v":""},{"$f":"IF(Dokumentenauswertung!P12=\"\",\"\",Dokumentenauswertung!P12)","v":""},{"$f":"IF(Dokumentenauswertung!Q12=\"\",\"\",Dokumentenauswertung!Q12)","v":""},{"$f":"IF(Dokumentenauswertung!R12=\"\",\"\",Dokumentenauswertung!R12)","v":""},{"$f":"IF(Dokumentenauswertung!S12=\"\",\"\",Dokumentenauswertung!S12)","v":""},{"$f":"IF(Dokumentenauswertung!T12=\"\",\"\",Dokumentenauswertung!T12)","v":""},{"$f":"IF(Dokumentenauswertung!U12=\"\",\"\",Dokumentenauswertung!U12)","v":""},{"$f":"IF(Dokumentenauswertung!V12=\"\",\"\",Dokumentenauswertung!V12)","v":""},{"$f":"IF(Dokumentenauswertung!W12=\"\",\"\",Dokumentenauswertung!W12)","v":""},{"$f":"IF(Dokumentenauswertung!X12=\"\",\"\",Dokumentenauswertung!X12)","v":""},{"$f":"IF(Dokumentenauswertung!Y12=\"\",\"\",Dokumentenauswertung!Y12)","v":""},{"$f":"IF(Dokumentenauswertung!Z12=\"\",\"\",Dokumentenauswertung!Z12)","v":""},{"$f":"IF(Dokumentenauswertung!AA12=\"\",\"\",Dokumentenauswertung!AA12)","v":""},{"$f":"IF(Dokumentenauswertung!AB12=\"\",\"\",Dokumentenauswertung!AB12)","v":""},{"$f":"IF(Dokumentenauswertung!AC12=\"\",\"\",Dokumentenauswertung!AC12)","v":""},{"$f":"IF(Dokumentenauswertung!AD12=\"\",\"\",Dokumentenauswertung!AD12)","v":""},{"$f":"IF(Dokumentenauswertung!AE12=\"\",\"\",Dokumentenauswertung!AE12)","v":""},{"$f":"IF(Dokumentenauswertung!AF12=\"\",\"\",Dokumentenauswertung!AF12)","v":""},{"$f":"IF(Dokumentenauswertung!AG12=\"\",\"\",Dokumentenauswertung!AG12)","v":""},{"$f":"IF(Dokumentenauswertung!AH12=\"\",\"\",Dokumentenauswertung!AH12)","v":""},{"$f":"IF(Dokumentenauswertung!AI12=\"\",\"\",Dokumentenauswertung!AI12)","v":""},{"$f":"IF(Dokumentenauswertung!AJ12=\"\",\"\",Dokumentenauswertung!AJ12)","v":""},{"$f":"IF(Dokumentenauswertung!AK12=\"\",\"\",Dokumentenauswertung!AK12)","v":""}]
[null,null,"Datum",{"$f":"IF(Dokumentenauswertung!E13=\"\",\"\",Dokumentenauswertung!E13)","v":""},{"$f":"IF(Dokumentenauswertung!F13=\"\",\"\",Dokumentenauswertung!F13)","v":""},{"$f":"IF(Dokumentenauswertung!G13=\"\",\"\",Dokumentenauswertung!G13)","v":""},{"$f":"IF(Dokumentenauswertung!H13=\"\",\"\",Dokumentenauswertung!H13)","v":""},{"$f":"IF(Dokumentenauswertung!I13=\"\",\"\",Dokumentenauswertung!I13)","v":""},{"$f":"IF(Dokumentenauswertung!J13=\"\",\"\",Dokumentenauswertung!J13)","v":""},{"$f":"IF(Dokumentenauswertung!K13=\"\",\"\",Dokumentenauswertung!K13)","v":""},{"$f":"IF(Dokumentenauswertung!L13=\"\",\"\",Dokumentenauswertung!L13)","v":""},{"$f":"IF(Dokumentenauswertung!M13=\"\",\"\",Dokumentenauswertung!M13)","v":""},{"$f":"IF(Dokumentenauswertung!N13=\"\",\"\",Dokumentenauswertung!N13)","v":""},{"$f":"IF(Dokumentenauswertung!O13=\"\",\"\",Dokumentenauswertung!O13)","v":""},{"$f":"IF(Dokumentenauswertung!P13=\"\",\"\",Dokumentenauswertung!P13)","v":""},{"$f":"IF(Dokumentenauswertung!Q13=\"\",\"\",Dokumentenauswertung!Q13)","v":""},{"$f":"IF(Dokumentenauswertung!R13=\"\",\"\",Dokumentenauswertung!R13)","v":""},{"$f":"IF(Dokumentenauswertung!S13=\"\",\"\",Dokumentenauswertung!S13)","v":""},{"$f":"IF(Dokumentenauswertung!T13=\"\",\"\",Dokumentenauswertung!T13)","v":""},{"$f":"IF(Dokumentenauswertung!U13=\"\",\"\",Dokumentenauswertung!U13)","v":""},{"$f":"IF(Dokumentenauswertung!V13=\"\",\"\",Dokumentenauswertung!V13)","v":""},{"$f":"IF(Dokumentenauswertung!W13=\"\",\"\",Dokumentenauswertung!W13)","v":""},{"$f":"IF(Dokumentenauswertung!X13=\"\",\"\",Dokumentenauswertung!X13)","v":""},{"$f":"IF(Dokumentenauswertung!Y13=\"\",\"\",Dokumentenauswertung!Y13)","v":""},{"$f":"IF(Dokumentenauswertung!Z13=\"\",\"\",Dokumentenauswertung!Z13)","v":""},{"$f":"IF(Dokumentenauswertung!AA13=\"\",\"\",Dokumentenauswertung!AA13)","v":""},{"$f":"IF(Dokumentenauswertung!AB13=\"\",\"\",Dokumentenauswertung!AB13)","v":""},{"$f":"IF(Dokumentenauswertung!AC13=\"\",\"\",Dokumentenauswertung!AC13)","v":""},{"$f":"IF(Dokumentenauswertung!AD13=\"\",\"\",Dokumentenauswertung!AD13)","v":""},{"$f":"IF(Dokumentenauswertung!AE13=\"\",\"\",Dokumentenauswertung!AE13)","v":""},{"$f":"IF(Dokumentenauswertung!AF13=\"\",\"\",Dokumentenauswertung!AF13)","v":""},{"$f":"IF(Dokumentenauswertung!AG13=\"\",\"\",Dokumentenauswertung!AG13)","v":""},{"$f":"IF(Dokumentenauswertung!AH13=\"\",\"\",Dokumentenauswertung!AH13)","v":""},{"$f":"IF(Dokumentenauswertung!AI13=\"\",\"\",Dokumentenauswertung!AI13)","v":""},{"$f":"IF(Dokumentenauswertung!AJ13=\"\",\"\",Dokumentenauswertung!AJ13)","v":""},{"$f":"IF(Dokumentenauswertung!AK13=\"\",\"\",Dokumentenauswertung!AK13)","v":""}]
[null,null,{"$f":"Dokumentenauswertung!$A14","v":"A1"},{"$f":"IF(Dokumentenauswertung!E$10=\"\",\"\",IF(Dokumentenauswertung!$B14=Dokumentenauswertung!E14,Dokumentenauswertung!$C$14,0))","v":""},{"$f":"IF(Dokumentenauswertung!F$10=\"\",\"\",IF(Dokumentenauswertung!$B14=Dokumentenauswertung!F14,Dokumentenauswertung!$C$14,0))","v":""},{"$f":"IF(Dokumentenauswertung!G$10=\"\",\"\",IF(Dokumentenauswertung!$B14=Dokumentenauswertung!G14,Dokumentenauswertung!$C$14,0))","v":""},{"$f":"IF(Dokumentenauswertung!H$10=\"\",\"\",IF(Dokumentenauswertung!$B14=Dokumentenauswertung!H14,Dokumentenauswertung!$C$14,0))","v":""},{"$f":"IF(Dokumentenauswertung!I$10=\"\",\"\",IF(Dokumentenauswertung!$B14=Dokumentenauswertung!I14,Dokumentenauswertung!$C$14,0))","v":""},{"$f":"IF(Dokumentenauswertung!J$10=\"\",\"\",IF(Dokumentenauswertung!$B14=Dokumentenauswertung!J14,Dokumentenauswertung!$C$14,0))","v":""},{"$f":"IF(Dokumentenauswertung!K$10=\"\",\"\",IF(Dokumentenauswertung!$B14=Dokumentenauswertung!K14,Dokumentenauswertung!$C$14,0))","v":""},{"$f":"IF(Dokumentenauswertung!L$10=\"\",\"\",IF(Dokumentenauswertung!$B14=Dokumentenauswertung!L14,Dokumentenauswertung!$C$14,0))","v":""},{"$f":"IF(Dokumentenauswertung!M$10=\"\",\"\",IF(Dokumentenauswertung!$B14=Dokumentenauswertung!M14,Dokumentenauswertung!$C$14,0))","v":""},{"$f":"IF(Dokumentenauswertung!N$10=\"\",\"\",IF(Dokumentenauswertung!$B14=Dokumentenauswertung!N14,Dokumentenauswertung!$C$14,0))","v":""},{"$f":"IF(Dokumentenauswertung!O$10=\"\",\"\",IF(Dokumentenauswertung!$B14=Dokumentenauswertung!O14,Dokumentenauswertung!$C$14,0))","v":""},{"$f":"IF(Dokumentenauswertung!P$10=\"\",\"\",IF(Dokumentenauswertung!$B14=Dokumentenauswertung!P14,Dokumentenauswertung!$C$14,0))","v":""},{"$f":"IF(Dokumentenauswertung!Q$10=\"\",\"\",IF(Dokumentenauswertung!$B14=Dokumentenauswertung!Q14,Dokumentenauswertung!$C$14,0))","v":""},{"$f":"IF(Dokumentenauswertung!R$10=\"\",\"\",IF(Dokumentenauswertung!$B14=Dokumentenauswertung!R14,Dokumentenauswertung!$C$14,0))","v":""},{"$f":"IF(Dokumentenauswertung!S$10=\"\",\"\",IF(Dokumentenauswertung!$B14=Dokumentenauswertung!S14,Dokumentenauswertung!$C$14,0))","v":""},{"$f":"IF(Dokumentenauswertung!T$10=\"\",\"\",IF(Dokumentenauswertung!$B14=Dokumentenauswertung!T14,Dokumentenauswertung!$C$14,0))","v":""},{"$f":"IF(Dokumentenauswertung!U$10=\"\",\"\",IF(Dokumentenauswertung!$B14=Dokumentenauswertung!U14,Dokumentenauswertung!$C$14,0))","v":""},{"$f":"IF(Dokumentenauswertung!V$10=\"\",\"\",IF(Dokumentenauswertung!$B14=Dokumentenauswertung!V14,Dokumentenauswertung!$C$14,0))","v":""},{"$f":"IF(Dokumentenauswertung!W$10=\"\",\"\",IF(Dokumentenauswertung!$B14=Dokumentenauswertung!W14,Dokumentenauswertung!$C$14,0))","v":""},{"$f":"IF(Dokumentenauswertung!X$10=\"\",\"\",IF(Dokumentenauswertung!$B14=Dokumentenauswertung!X14,Dokumentenauswertung!$C$14,0))","v":""},{"$f":"IF(Dokumentenauswertung!Y$10=\"\",\"\",IF(Dokumentenauswertung!$B14=Dokumentenauswertung!Y14,Dokumentenauswertung!$C$14,0))","v":""},{"$f":"IF(Dokumentenauswertung!Z$10=\"\",\"\",IF(Dokumentenauswertung!$B14=Dokumentenauswertung!Z14,Dokumentenauswertung!$C$14,0))","v":""},{"$f":"IF(Dokumentenauswertung!AA$10=\"\",\"\",IF(Dokumentenauswertung!$B14=Dokumentenauswertung!AA14,Dokumentenauswertung!$C$14,0))","v":""},{"$f":"IF(Dokumentenauswertung!AB$10=\"\",\"\",IF(Dokumentenauswertung!$B14=Dokumentenauswertung!AB14,Dokumentenauswertung!$C$14,0))","v":""},{"$f":"IF(Dokumentenauswertung!AC$10=\"\",\"\",IF(Dokumentenauswertung!$B14=Dokumentenauswertung!AC14,Dokumentenauswertung!$C$14,0))","v":""},{"$f":"IF(Dokumentenauswertung!AD$10=\"\",\"\",IF(Dokumentenauswertung!$B14=Dokumentenauswertung!AD14,Dokumentenauswertung!$C$14,0))","v":""},{"$f":"IF(Dokumentenauswertung!AE$10=\"\",\"\",IF(Dokumentenauswertung!$B14=Dokumentenauswertung!AE14,Dokumentenauswertung!$C$14,0))","v":""},{"$f":"IF(Dokumentenauswertung!AF$10=\"\",\"\",IF(Dokumentenauswertung!$B14=Dokumentenauswertung!AF14,Dokumentenauswertung!$C$14,0))","v":""},{"$f":"IF(Dokumentenauswertung!AG$10=\"\",\"\",IF(Dokumentenauswertung!$B14=Dokumentenauswertung!AG14,Dokumentenauswertung!$C$14,0))","v":""},{"$f":"IF(Dokumentenauswertung!AH$10=\"\",\"\",IF(Dokumentenauswertung!$B14=Dokumentenauswertung!AH14,Dokumentenauswertung!$C$14,0))","v":""},{"$f":"IF(Dokumentenauswertung!AI$10=\"\",\"\",IF(Dokumentenauswertung!$B14=Dokumentenauswertung!AI14,Dokumentenauswertung!$C$14,0))","v":""},{"$f":"IF(Dokumentenauswertung!AJ$10=\"\",\"\",IF(Dokumentenauswertung!$B14=Dokumentenauswertung!AJ14,Dokumentenauswertung!$C$14,0))","v":""},{"$f":"IF(Dokumentenauswertung!AK$10=\"\",\"\",IF(Dokumentenauswertung!$B14=Dokumentenauswertung!AK14,Dokumentenauswertung!$C$14,0))","v":""}]
[null,null,{"$f":"Dokumentenauswertung!$A15","v":"A2"},{"$f":"IF(Dokumentenauswertung!E$10=\"\",\"\",IF(Dokumentenauswertung!$B15=Dokumentenauswertung!E15,Dokumentenauswertung!$C$15,0))","v":""},{"$f":"IF(Dokumentenauswertung!F$10=\"\",\"\",IF(Dokumentenauswertung!$B15=Dokumentenauswertung!F15,Dokumentenauswertung!$C$15,0))","v":""},{"$f":"IF(Dokumentenauswertung!G$10=\"\",\"\",IF(Dokumentenauswertung!$B15=Dokumentenauswertung!G15,Dokumentenauswertung!$C$15,0))","v":""},{"$f":"IF(Dokumentenauswertung!H$10=\"\",\"\",IF(Dokumentenauswertung!$B15=Dokumentenauswertung!H15,Dokumentenauswertung!$C$15,0))","v":""},{"$f":"IF(Dokumentenauswertung!I$10=\"\",\"\",IF(Dokumentenauswertung!$B15=Dokumentenauswertung!I15,Dokumentenauswertung!$C$15,0))","v":""},{"$f":"IF(Dokumentenauswertung!J$10=\"\",\"\",IF(Dokumentenauswertung!$B15=Dokumentenauswertung!J15,Dokumentenauswertung!$C$15,0))","v":""},{"$f":"IF(Dokumentenauswertung!K$10=\"\",\"\",IF(Dokumentenauswertung!$B15=Dokumentenauswertung!K15,Dokumentenauswertung!$C$15,0))","v":""},{"$f":"IF(Dokumentenauswertung!L$10=\"\",\"\",IF(Dokumentenauswertung!$B15=Dokumentenauswertung!L15,Dokumentenauswertung!$C$15,0))","v":""},{"$f":"IF(Dokumentenauswertung!M$10=\"\",\"\",IF(Dokumentenauswertung!$B15=Dokumentenauswertung!M15,Dokumentenauswertung!$C$15,0))","v":""},{"$f":"IF(Dokumentenauswertung!N$10=\"\",\"\",IF(Dokumentenauswertung!$B15=Dokumentenauswertung!N15,Dokumentenauswertung!$C$15,0))","v":""},{"$f":"IF(Dokumentenauswertung!O$10=\"\",\"\",IF(Dokumentenauswertung!$B15=Dokumentenauswertung!O15,Dokumentenauswertung!$C$15,0))","v":""},{"$f":"IF(Dokumentenauswertung!P$10=\"\",\"\",IF(Dokumentenauswertung!$B15=Dokumentenauswertung!P15,Dokumentenauswertung!$C$15,0))","v":""},{"$f":"IF(Dokumentenauswertung!Q$10=\"\",\"\",IF(Dokumentenauswertung!$B15=Dokumentenauswertung!Q15,Dokumentenauswertung!$C$15,0))","v":""},{"$f":"IF(Dokumentenauswertung!R$10=\"\",\"\",IF(Dokumentenauswertung!$B15=Dokumentenauswertung!R15,Dokumentenauswertung!$C$15,0))","v":""},{"$f":"IF(Dokumentenauswertung!S$10=\"\",\"\",IF(Dokumentenauswertung!$B15=Dokumentenauswertung!S15,Dokumentenauswertung!$C$15,0))","v":""},{"$f":"IF(Dokumentenauswertung!T$10=\"\",\"\",IF(Dokumentenauswertung!$B15=Dokumentenauswertung!T15,Dokumentenauswertung!$C$15,0))","v":""},{"$f":"IF(Dokumentenauswertung!U$10=\"\",\"\",IF(Dokumentenauswertung!$B15=Dokumentenauswertung!U15,Dokumentenauswertung!$C$15,0))","v":""},{"$f":"IF(Dokumentenauswertung!V$10=\"\",\"\",IF(Dokumentenauswertung!$B15=Dokumentenauswertung!V15,Dokumentenauswertung!$C$15,0))","v":""},{"$f":"IF(Dokumentenauswertung!W$10=\"\",\"\",IF(Dokumentenauswertung!$B15=Dokumentenauswertung!W15,Dokumentenauswertung!$C$15,0))","v":""},{"$f":"IF(Dokumentenauswertung!X$10=\"\",\"\",IF(Dokumentenauswertung!$B15=Dokumentenauswertung!X15,Dokumentenauswertung!$C$15,0))","v":""},{"$f":"IF(Dokumentenauswertung!Y$10=\"\",\"\",IF(Dokumentenauswertung!$B15=Dokumentenauswertung!Y15,Dokumentenauswertung!$C$15,0))","v":""},{"$f":"IF(Dokumentenauswertung!Z$10=\"\",\"\",IF(Dokumentenauswertung!$B15=Dokumentenauswertung!Z15,Dokumentenauswertung!$C$15,0))","v":""},{"$f":"IF(Dokumentenauswertung!AA$10=\"\",\"\",IF(Dokumentenauswertung!$B15=Dokumentenauswertung!AA15,Dokumentenauswertung!$C$15,0))","v":""},{"$f":"IF(Dokumentenauswertung!AB$10=\"\",\"\",IF(Dokumentenauswertung!$B15=Dokumentenauswertung!AB15,Dokumentenauswertung!$C$15,0))","v":""},{"$f":"IF(Dokumentenauswertung!AC$10=\"\",\"\",IF(Dokumentenauswertung!$B15=Dokumentenauswertung!AC15,Dokumentenauswertung!$C$15,0))","v":""},{"$f":"IF(Dokumentenauswertung!AD$10=\"\",\"\",IF(Dokumentenauswertung!$B15=Dokumentenauswertung!AD15,Dokumentenauswertung!$C$15,0))","v":""},{"$f":"IF(Dokumentenauswertung!AE$10=\"\",\"\",IF(Dokumentenauswertung!$B15=Dokumentenauswertung!AE15,Dokumentenauswertung!$C$15,0))","v":""},{"$f":"IF(Dokumentenauswertung!AF$10=\"\",\"\",IF(Dokumentenauswertung!$B15=Dokumentenauswertung!AF15,Dokumentenauswertung!$C$15,0))","v":""},{"$f":"IF(Dokumentenauswertung!AG$10=\"\",\"\",IF(Dokumentenauswertung!$B15=Dokumentenauswertung!AG15,Dokumentenauswertung!$C$15,0))","v":""},{"$f":"IF(Dokumentenauswertung!AH$10=\"\",\"\",IF(Dokumentenauswertung!$B15=Dokumentenauswertung!AH15,Dokumentenauswertung!$C$15,0))","v":""},{"$f":"IF(Dokumentenauswertung!AI$10=\"\",\"\",IF(Dokumentenauswertung!$B15=Dokumentenauswertung!AI15,Dokumentenauswertung!$C$15,0))","v":""},{"$f":"IF(Dokumentenauswertung!AJ$10=\"\",\"\",IF(Dokumentenauswertung!$B15=Dokumentenauswertung!AJ15,Dokumentenauswertung!$C$15,0))","v":""},{"$f":"IF(Dokumentenauswertung!AK$10=\"\",\"\",IF(Dokumentenauswertung!$B15=Dokumentenauswertung!AK15,Dokumentenauswertung!$C$15,0))","v":""}]
[null,null,{"$f":"Dokumentenauswertung!$A16","v":"A3"},{"$f":"IF(Dokumentenauswertung!E$10=\"\",\"\",IF(Dokumentenauswertung!$B16=Dokumentenauswertung!E16,Dokumentenauswertung!$C$16,0))","v":""},{"$f":"IF(Dokumentenauswertung!F$10=\"\",\"\",IF(Dokumentenauswertung!$B16=Dokumentenauswertung!F16,Dokumentenauswertung!$C$16,0))","v":""},{"$f":"IF(Dokumentenauswertung!G$10=\"\",\"\",IF(Dokumentenauswertung!$B16=Dokumentenauswertung!G16,Dokumentenauswertung!$C$16,0))","v":""},{"$f":"IF(Dokumentenauswertung!H$10=\"\",\"\",IF(Dokumentenauswertung!$B16=Dokumentenauswertung!H16,Dokumentenauswertung!$C$16,0))","v":""},{"$f":"IF(Dokumentenauswertung!I$10=\"\",\"\",IF(Dokumentenauswertung!$B16=Dokumentenauswertung!I16,Dokumentenauswertung!$C$16,0))","v":""},{"$f":"IF(Dokumentenauswertung!J$10=\"\",\"\",IF(Dokumentenauswertung!$B16=Dokumentenauswertung!J16,Dokumentenauswertung!$C$16,0))","v":""},{"$f":"IF(Dokumentenauswertung!K$10=\"\",\"\",IF(Dokumentenauswertung!$B16=Dokumentenauswertung!K16,Dokumentenauswertung!$C$16,0))","v":""},{"$f":"IF(Dokumentenauswertung!L$10=\"\",\"\",IF(Dokumentenauswertung!$B16=Dokumentenauswertung!L16,Dokumentenauswertung!$C$16,0))","v":""},{"$f":"IF(Dokumentenauswertung!M$10=\"\",\"\",IF(Dokumentenauswertung!$B16=Dokumentenauswertung!M16,Dokumentenauswertung!$C$16,0))","v":""},{"$f":"IF(Dokumentenauswertung!N$10=\"\",\"\",IF(Dokumentenauswertung!$B16=Dokumentenauswertung!N16,Dokumentenauswertung!$C$16,0))","v":""},{"$f":"IF(Dokumentenauswertung!O$10=\"\",\"\",IF(Dokumentenauswertung!$B16=Dokumentenauswertung!O16,Dokumentenauswertung!$C$16,0))","v":""},{"$f":"IF(Dokumentenauswertung!P$10=\"\",\"\",IF(Dokumentenauswertung!$B16=Dokumentenauswertung!P16,Dokumentenauswertung!$C$16,0))","v":""},{"$f":"IF(Dokumentenauswertung!Q$10=\"\",\"\",IF(Dokumentenauswertung!$B16=Dokumentenauswertung!Q16,Dokumentenauswertung!$C$16,0))","v":""},{"$f":"IF(Dokumentenauswertung!R$10=\"\",\"\",IF(Dokumentenauswertung!$B16=Dokumentenauswertung!R16,Dokumentenauswertung!$C$16,0))","v":""},{"$f":"IF(Dokumentenauswertung!S$10=\"\",\"\",IF(Dokumentenauswertung!$B16=Dokumentenauswertung!S16,Dokumentenauswertung!$C$16,0))","v":""},{"$f":"IF(Dokumentenauswertung!T$10=\"\",\"\",IF(Dokumentenauswertung!$B16=Dokumentenauswertung!T16,Dokumentenauswertung!$C$16,0))","v":""},{"$f":"IF(Dokumentenauswertung!U$10=\"\",\"\",IF(Dokumentenauswertung!$B16=Dokumentenauswertung!U16,Dokumentenauswertung!$C$16,0))","v":""},{"$f":"IF(Dokumentenauswertung!V$10=\"\",\"\",IF(Dokumentenauswertung!$B16=Dokumentenauswertung!V16,Dokumentenauswertung!$C$16,0))","v":""},{"$f":"IF(Dokumentenauswertung!W$10=\"\",\"\",IF(Dokumentenauswertung!$B16=Dokumentenauswertung!W16,Dokumentenauswertung!$C$16,0))","v":""},{"$f":"IF(Dokumentenauswertung!X$10=\"\",\"\",IF(Dokumentenauswertung!$B16=Dokumentenauswertung!X16,Dokumentenauswertung!$C$16,0))","v":""},{"$f":"IF(Dokumentenauswertung!Y$10=\"\",\"\",IF(Dokumentenauswertung!$B16=Dokumentenauswertung!Y16,Dokumentenauswertung!$C$16,0))","v":""},{"$f":"IF(Dokumentenauswertung!Z$10=\"\",\"\",IF(Dokumentenauswertung!$B16=Dokumentenauswertung!Z16,Dokumentenauswertung!$C$16,0))","v":""},{"$f":"IF(Dokumentenauswertung!AA$10=\"\",\"\",IF(Dokumentenauswertung!$B16=Dokumentenauswertung!AA16,Dokumentenauswertung!$C$16,0))","v":""},{"$f":"IF(Dokumentenauswertung!AB$10=\"\",\"\",IF(Dokumentenauswertung!$B16=Dokumentenauswertung!AB16,Dokumentenauswertung!$C$16,0))","v":""},{"$f":"IF(Dokumentenauswertung!AC$10=\"\",\"\",IF(Dokumentenauswertung!$B16=Dokumentenauswertung!AC16,Dokumentenauswertung!$C$16,0))","v":""},{"$f":"IF(Dokumentenauswertung!AD$10=\"\",\"\",IF(Dokumentenauswertung!$B16=Dokumentenauswertung!AD16,Dokumentenauswertung!$C$16,0))","v":""},{"$f":"IF(Dokumentenauswertung!AE$10=\"\",\"\",IF(Dokumentenauswertung!$B16=Dokumentenauswertung!AE16,Dokumentenauswertung!$C$16,0))","v":""},{"$f":"IF(Dokumentenauswertung!AF$10=\"\",\"\",IF(Dokumentenauswertung!$B16=Dokumentenauswertung!AF16,Dokumentenauswertung!$C$16,0))","v":""},{"$f":"IF(Dokumentenauswertung!AG$10=\"\",\"\",IF(Dokumentenauswertung!$B16=Dokumentenauswertung!AG16,Dokumentenauswertung!$C$16,0))","v":""},{"$f":"IF(Dokumentenauswertung!AH$10=\"\",\"\",IF(Dokumentenauswertung!$B16=Dokumentenauswertung!AH16,Dokumentenauswertung!$C$16,0))","v":""},{"$f":"IF(Dokumentenauswertung!AI$10=\"\",\"\",IF(Dokumentenauswertung!$B16=Dokumentenauswertung!AI16,Dokumentenauswertung!$C$16,0))","v":""},{"$f":"IF(Dokumentenauswertung!AJ$10=\"\",\"\",IF(Dokumentenauswertung!$B16=Dokumentenauswertung!AJ16,Dokumentenauswertung!$C$16,0))","v":""},{"$f":"IF(Dokumentenauswertung!AK$10=\"\",\"\",IF(Dokumentenauswertung!$B16=Dokumentenauswertung!AK16,Dokumentenauswertung!$C$16,0))","v":""}]
[null,null,{"$f":"Dokumentenauswertung!$A17","v":"A4.a"},{"$f":"IF(Dokumentenauswertung!E$10=\"\",\"\",IF(Dokumentenauswertung!$B17=Dokumentenauswertung!E17,Dokumentenauswertung!$C$17,0))","v":""},{"$f":"IF(Dokumentenauswertung!F$10=\"\",\"\",IF(Dokumentenauswertung!$B17=Dokumentenauswertung!F17,Dokumentenauswertung!$C$17,0))","v":""},{"$f":"IF(Dokumentenauswertung!G$10=\"\",\"\",IF(Dokumentenauswertung!$B17=Dokumentenauswertung!G17,Dokumentenauswertung!$C$17,0))","v":""},{"$f":"IF(Dokumentenauswertung!H$10=\"\",\"\",IF(Dokumentenauswertung!$B17=Dokumentenauswertung!H17,Dokumentenauswertung!$C$17,0))","v":""},{"$f":"IF(Dokumentenauswertung!I$10=\"\",\"\",IF(Dokumentenauswertung!$B17=Dokumentenauswertung!I17,Dokumentenauswertung!$C$17,0))","v":""},{"$f":"IF(Dokumentenauswertung!J$10=\"\",\"\",IF(Dokumentenauswertung!$B17=Dokumentenauswertung!J17,Dokumentenauswertung!$C$17,0))","v":""},{"$f":"IF(Dokumentenauswertung!K$10=\"\",\"\",IF(Dokumentenauswertung!$B17=Dokumentenauswertung!K17,Dokumentenauswertung!$C$17,0))","v":""},{"$f":"IF(Dokumentenauswertung!L$10=\"\",\"\",IF(Dokumentenauswertung!$B17=Dokumentenauswertung!L17,Dokumentenauswertung!$C$17,0))","v":""},{"$f":"IF(Dokumentenauswertung!M$10=\"\",\"\",IF(Dokumentenauswertung!$B17=Dokumentenauswertung!M17,Dokumentenauswertung!$C$17,0))","v":""},{"$f":"IF(Dokumentenauswertung!N$10=\"\",\"\",IF(Dokumentenauswertung!$B17=Dokumentenauswertung!N17,Dokumentenauswertung!$C$17,0))","v":""},{"$f":"IF(Dokumentenauswertung!O$10=\"\",\"\",IF(Dokumentenauswertung!$B17=Dokumentenauswertung!O17,Dokumentenauswertung!$C$17,0))","v":""},{"$f":"IF(Dokumentenauswertung!P$10=\"\",\"\",IF(Dokumentenauswertung!$B17=Dokumentenauswertung!P17,Dokumentenauswertung!$C$17,0))","v":""},{"$f":"IF(Dokumentenauswertung!Q$10=\"\",\"\",IF(Dokumentenauswertung!$B17=Dokumentenauswertung!Q17,Dokumentenauswertung!$C$17,0))","v":""},{"$f":"IF(Dokumentenauswertung!R$10=\"\",\"\",IF(Dokumentenauswertung!$B17=Dokumentenauswertung!R17,Dokumentenauswertung!$C$17,0))","v":""},{"$f":"IF(Dokumentenauswertung!S$10=\"\",\"\",IF(Dokumentenauswertung!$B17=Dokumentenauswertung!S17,Dokumentenauswertung!$C$17,0))","v":""},{"$f":"IF(Dokumentenauswertung!T$10=\"\",\"\",IF(Dokumentenauswertung!$B17=Dokumentenauswertung!T17,Dokumentenauswertung!$C$17,0))","v":""},{"$f":"IF(Dokumentenauswertung!U$10=\"\",\"\",IF(Dokumentenauswertung!$B17=Dokumentenauswertung!U17,Dokumentenauswertung!$C$17,0))","v":""},{"$f":"IF(Dokumentenauswertung!V$10=\"\",\"\",IF(Dokumentenauswertung!$B17=Dokumentenauswertung!V17,Dokumentenauswertung!$C$17,0))","v":""},{"$f":"IF(Dokumentenauswertung!W$10=\"\",\"\",IF(Dokumentenauswertung!$B17=Dokumentenauswertung!W17,Dokumentenauswertung!$C$17,0))","v":""},{"$f":"IF(Dokumentenauswertung!X$10=\"\",\"\",IF(Dokumentenauswertung!$B17=Dokumentenauswertung!X17,Dokumentenauswertung!$C$17,0))","v":""},{"$f":"IF(Dokumentenauswertung!Y$10=\"\",\"\",IF(Dokumentenauswertung!$B17=Dokumentenauswertung!Y17,Dokumentenauswertung!$C$17,0))","v":""},{"$f":"IF(Dokumentenauswertung!Z$10=\"\",\"\",IF(Dokumentenauswertung!$B17=Dokumentenauswertung!Z17,Dokumentenauswertung!$C$17,0))","v":""},{"$f":"IF(Dokumentenauswertung!AA$10=\"\",\"\",IF(Dokumentenauswertung!$B17=Dokumentenauswertung!AA17,Dokumentenauswertung!$C$17,0))","v":""},{"$f":"IF(Dokumentenauswertung!AB$10=\"\",\"\",IF(Dokumentenauswertung!$B17=Dokumentenauswertung!AB17,Dokumentenauswertung!$C$17,0))","v":""},{"$f":"IF(Dokumentenauswertung!AC$10=\"\",\"\",IF(Dokumentenauswertung!$B17=Dokumentenauswertung!AC17,Dokumentenauswertung!$C$17,0))","v":""},{"$f":"IF(Dokumentenauswertung!AD$10=\"\",\"\",IF(Dokumentenauswertung!$B17=Dokumentenauswertung!AD17,Dokumentenauswertung!$C$17,0))","v":""},{"$f":"IF(Dokumentenauswertung!AE$10=\"\",\"\",IF(Dokumentenauswertung!$B17=Dokumentenauswertung!AE17,Dokumentenauswertung!$C$17,0))","v":""},{"$f":"IF(Dokumentenauswertung!AF$10=\"\",\"\",IF(Dokumentenauswertung!$B17=Dokumentenauswertung!AF17,Dokumentenauswertung!$C$17,0))","v":""},{"$f":"IF(Dokumentenauswertung!AG$10=\"\",\"\",IF(Dokumentenauswertung!$B17=Dokumentenauswertung!AG17,Dokumentenauswertung!$C$17,0))","v":""},{"$f":"IF(Dokumentenauswertung!AH$10=\"\",\"\",IF(Dokumentenauswertung!$B17=Dokumentenauswertung!AH17,Dokumentenauswertung!$C$17,0))","v":""},{"$f":"IF(Dokumentenauswertung!AI$10=\"\",\"\",IF(Dokumentenauswertung!$B17=Dokumentenauswertung!AI17,Dokumentenauswertung!$C$17,0))","v":""},{"$f":"IF(Dokumentenauswertung!AJ$10=\"\",\"\",IF(Dokumentenauswertung!$B17=Dokumentenauswertung!AJ17,Dokumentenauswertung!$C$17,0))","v":""},{"$f":"IF(Dokumentenauswertung!AK$10=\"\",\"\",IF(Dokumentenauswertung!$B17=Dokumentenauswertung!AK17,Dokumentenauswertung!$C$17,0))","v":""}]
[null,null,{"$f":"Dokumentenauswertung!$A18","v":"A4.b"},{"$f":"IF(Dokumentenauswertung!E$10=\"\",\"\",IF(Dokumentenauswertung!$B18=Dokumentenauswertung!E18,Dokumentenauswertung!$C$18,0))","v":""},{"$f":"IF(Dokumentenauswertung!F$10=\"\",\"\",IF(Dokumentenauswertung!$B18=Dokumentenauswertung!F18,Dokumentenauswertung!$C$18,0))","v":""},{"$f":"IF(Dokumentenauswertung!G$10=\"\",\"\",IF(Dokumentenauswertung!$B18=Dokumentenauswertung!G18,Dokumentenauswertung!$C$18,0))","v":""},{"$f":"IF(Dokumentenauswertung!H$10=\"\",\"\",IF(Dokumentenauswertung!$B18=Dokumentenauswertung!H18,Dokumentenauswertung!$C$18,0))","v":""},{"$f":"IF(Dokumentenauswertung!I$10=\"\",\"\",IF(Dokumentenauswertung!$B18=Dokumentenauswertung!I18,Dokumentenauswertung!$C$18,0))","v":""},{"$f":"IF(Dokumentenauswertung!J$10=\"\",\"\",IF(Dokumentenauswertung!$B18=Dokumentenauswertung!J18,Dokumentenauswertung!$C$18,0))","v":""},{"$f":"IF(Dokumentenauswertung!K$10=\"\",\"\",IF(Dokumentenauswertung!$B18=Dokumentenauswertung!K18,Dokumentenauswertung!$C$18,0))","v":""},{"$f":"IF(Dokumentenauswertung!L$10=\"\",\"\",IF(Dokumentenauswertung!$B18=Dokumentenauswertung!L18,Dokumentenauswertung!$C$18,0))","v":""},{"$f":"IF(Dokumentenauswertung!M$10=\"\",\"\",IF(Dokumentenauswertung!$B18=Dokumentenauswertung!M18,Dokumentenauswertung!$C$18,0))","v":""},{"$f":"IF(Dokumentenauswertung!N$10=\"\",\"\",IF(Dokumentenauswertung!$B18=Dokumentenauswertung!N18,Dokumentenauswertung!$C$18,0))","v":""},{"$f":"IF(Dokumentenauswertung!O$10=\"\",\"\",IF(Dokumentenauswertung!$B18=Dokumentenauswertung!O18,Dokumentenauswertung!$C$18,0))","v":""},{"$f":"IF(Dokumentenauswertung!P$10=\"\",\"\",IF(Dokumentenauswertung!$B18=Dokumentenauswertung!P18,Dokumentenauswertung!$C$18,0))","v":""},{"$f":"IF(Dokumentenauswertung!Q$10=\"\",\"\",IF(Dokumentenauswertung!$B18=Dokumentenauswertung!Q18,Dokumentenauswertung!$C$18,0))","v":""},{"$f":"IF(Dokumentenauswertung!R$10=\"\",\"\",IF(Dokumentenauswertung!$B18=Dokumentenauswertung!R18,Dokumentenauswertung!$C$18,0))","v":""},{"$f":"IF(Dokumentenauswertung!S$10=\"\",\"\",IF(Dokumentenauswertung!$B18=Dokumentenauswertung!S18,Dokumentenauswertung!$C$18,0))","v":""},{"$f":"IF(Dokumentenauswertung!T$10=\"\",\"\",IF(Dokumentenauswertung!$B18=Dokumentenauswertung!T18,Dokumentenauswertung!$C$18,0))","v":""},{"$f":"IF(Dokumentenauswertung!U$10=\"\",\"\",IF(Dokumentenauswertung!$B18=Dokumentenauswertung!U18,Dokumentenauswertung!$C$18,0))","v":""},{"$f":"IF(Dokumentenauswertung!V$10=\"\",\"\",IF(Dokumentenauswertung!$B18=Dokumentenauswertung!V18,Dokumentenauswertung!$C$18,0))","v":""},{"$f":"IF(Dokumentenauswertung!W$10=\"\",\"\",IF(Dokumentenauswertung!$B18=Dokumentenauswertung!W18,Dokumentenauswertung!$C$18,0))","v":""},{"$f":"IF(Dokumentenauswertung!X$10=\"\",\"\",IF(Dokumentenauswertung!$B18=Dokumentenauswertung!X18,Dokumentenauswertung!$C$18,0))","v":""},{"$f":"IF(Dokumentenauswertung!Y$10=\"\",\"\",IF(Dokumentenauswertung!$B18=Dokumentenauswertung!Y18,Dokumentenauswertung!$C$18,0))","v":""},{"$f":"IF(Dokumentenauswertung!Z$10=\"\",\"\",IF(Dokumentenauswertung!$B18=Dokumentenauswertung!Z18,Dokumentenauswertung!$C$18,0))","v":""},{"$f":"IF(Dokumentenauswertung!AA$10=\"\",\"\",IF(Dokumentenauswertung!$B18=Dokumentenauswertung!AA18,Dokumentenauswertung!$C$18,0))","v":""},{"$f":"IF(Dokumentenauswertung!AB$10=\"\",\"\",IF(Dokumentenauswertung!$B18=Dokumentenauswertung!AB18,Dokumentenauswertung!$C$18,0))","v":""},{"$f":"IF(Dokumentenauswertung!AC$10=\"\",\"\",IF(Dokumentenauswertung!$B18=Dokumentenauswertung!AC18,Dokumentenauswertung!$C$18,0))","v":""},{"$f":"IF(Dokumentenauswertung!AD$10=\"\",\"\",IF(Dokumentenauswertung!$B18=Dokumentenauswertung!AD18,Dokumentenauswertung!$C$18,0))","v":""},{"$f":"IF(Dokumentenauswertung!AE$10=\"\",\"\",IF(Dokumentenauswertung!$B18=Dokumentenauswertung!AE18,Dokumentenauswertung!$C$18,0))","v":""},{"$f":"IF(Dokumentenauswertung!AF$10=\"\",\"\",IF(Dokumentenauswertung!$B18=Dokumentenauswertung!AF18,Dokumentenauswertung!$C$18,0))","v":""},{"$f":"IF(Dokumentenauswertung!AG$10=\"\",\"\",IF(Dokumentenauswertung!$B18=Dokumentenauswertung!AG18,Dokumentenauswertung!$C$18,0))","v":""},{"$f":"IF(Dokumentenauswertung!AH$10=\"\",\"\",IF(Dokumentenauswertung!$B18=Dokumentenauswertung!AH18,Dokumentenauswertung!$C$18,0))","v":""},{"$f":"IF(Dokumentenauswertung!AI$10=\"\",\"\",IF(Dokumentenauswertung!$B18=Dokumentenauswertung!AI18,Dokumentenauswertung!$C$18,0))","v":""},{"$f":"IF(Dokumentenauswertung!AJ$10=\"\",\"\",IF(Dokumentenauswertung!$B18=Dokumentenauswertung!AJ18,Dokumentenauswertung!$C$18,0))","v":""},{"$f":"IF(Dokumentenauswertung!AK$10=\"\",\"\",IF(Dokumentenauswertung!$B18=Dokumentenauswertung!AK18,Dokumentenauswertung!$C$18,0))","v":""}]
[null,null,{"$f":"Dokumentenauswertung!$A19","v":"A4.c"},{"$f":"IF(Dokumentenauswertung!E$10=\"\",\"\",IF(Dokumentenauswertung!$B19=Dokumentenauswertung!E19,Dokumentenauswertung!$C$19,0))","v":""},{"$f":"IF(Dokumentenauswertung!F$10=\"\",\"\",IF(Dokumentenauswertung!$B19=Dokumentenauswertung!F19,Dokumentenauswertung!$C$19,0))","v":""},{"$f":"IF(Dokumentenauswertung!G$10=\"\",\"\",IF(Dokumentenauswertung!$B19=Dokumentenauswertung!G19,Dokumentenauswertung!$C$19,0))","v":""},{"$f":"IF(Dokumentenauswertung!H$10=\"\",\"\",IF(Dokumentenauswertung!$B19=Dokumentenauswertung!H19,Dokumentenauswertung!$C$19,0))","v":""},{"$f":"IF(Dokumentenauswertung!I$10=\"\",\"\",IF(Dokumentenauswertung!$B19=Dokumentenauswertung!I19,Dokumentenauswertung!$C$19,0))","v":""},{"$f":"IF(Dokumentenauswertung!J$10=\"\",\"\",IF(Dokumentenauswertung!$B19=Dokumentenauswertung!J19,Dokumentenauswertung!$C$19,0))","v":""},{"$f":"IF(Dokumentenauswertung!K$10=\"\",\"\",IF(Dokumentenauswertung!$B19=Dokumentenauswertung!K19,Dokumentenauswertung!$C$19,0))","v":""},{"$f":"IF(Dokumentenauswertung!L$10=\"\",\"\",IF(Dokumentenauswertung!$B19=Dokumentenauswertung!L19,Dokumentenauswertung!$C$19,0))","v":""},{"$f":"IF(Dokumentenauswertung!M$10=\"\",\"\",IF(Dokumentenauswertung!$B19=Dokumentenauswertung!M19,Dokumentenauswertung!$C$19,0))","v":""},{"$f":"IF(Dokumentenauswertung!N$10=\"\",\"\",IF(Dokumentenauswertung!$B19=Dokumentenauswertung!N19,Dokumentenauswertung!$C$19,0))","v":""},{"$f":"IF(Dokumentenauswertung!O$10=\"\",\"\",IF(Dokumentenauswertung!$B19=Dokumentenauswertung!O19,Dokumentenauswertung!$C$19,0))","v":""},{"$f":"IF(Dokumentenauswertung!P$10=\"\",\"\",IF(Dokumentenauswertung!$B19=Dokumentenauswertung!P19,Dokumentenauswertung!$C$19,0))","v":""},{"$f":"IF(Dokumentenauswertung!Q$10=\"\",\"\",IF(Dokumentenauswertung!$B19=Dokumentenauswertung!Q19,Dokumentenauswertung!$C$19,0))","v":""},{"$f":"IF(Dokumentenauswertung!R$10=\"\",\"\",IF(Dokumentenauswertung!$B19=Dokumentenauswertung!R19,Dokumentenauswertung!$C$19,0))","v":""},{"$f":"IF(Dokumentenauswertung!S$10=\"\",\"\",IF(Dokumentenauswertung!$B19=Dokumentenauswertung!S19,Dokumentenauswertung!$C$19,0))","v":""},{"$f":"IF(Dokumentenauswertung!T$10=\"\",\"\",IF(Dokumentenauswertung!$B19=Dokumentenauswertung!T19,Dokumentenauswertung!$C$19,0))","v":""},{"$f":"IF(Dokumentenauswertung!U$10=\"\",\"\",IF(Dokumentenauswertung!$B19=Dokumentenauswertung!U19,Dokumentenauswertung!$C$19,0))","v":""},{"$f":"IF(Dokumentenauswertung!V$10=\"\",\"\",IF(Dokumentenauswertung!$B19=Dokumentenauswertung!V19,Dokumentenauswertung!$C$19,0))","v":""},{"$f":"IF(Dokumentenauswertung!W$10=\"\",\"\",IF(Dokumentenauswertung!$B19=Dokumentenauswertung!W19,Dokumentenauswertung!$C$19,0))","v":""},{"$f":"IF(Dokumentenauswertung!X$10=\"\",\"\",IF(Dokumentenauswertung!$B19=Dokumentenauswertung!X19,Dokumentenauswertung!$C$19,0))","v":""},{"$f":"IF(Dokumentenauswertung!Y$10=\"\",\"\",IF(Dokumentenauswertung!$B19=Dokumentenauswertung!Y19,Dokumentenauswertung!$C$19,0))","v":""},{"$f":"IF(Dokumentenauswertung!Z$10=\"\",\"\",IF(Dokumentenauswertung!$B19=Dokumentenauswertung!Z19,Dokumentenauswertung!$C$19,0))","v":""},{"$f":"IF(Dokumentenauswertung!AA$10=\"\",\"\",IF(Dokumentenauswertung!$B19=Dokumentenauswertung!AA19,Dokumentenauswertung!$C$19,0))","v":""},{"$f":"IF(Dokumentenauswertung!AB$10=\"\",\"\",IF(Dokumentenauswertung!$B19=Dokumentenauswertung!AB19,Dokumentenauswertung!$C$19,0))","v":""},{"$f":"IF(Dokumentenauswertung!AC$10=\"\",\"\",IF(Dokumentenauswertung!$B19=Dokumentenauswertung!AC19,Dokumentenauswertung!$C$19,0))","v":""},{"$f":"IF(Dokumentenauswertung!AD$10=\"\",\"\",IF(Dokumentenauswertung!$B19=Dokumentenauswertung!AD19,Dokumentenauswertung!$C$19,0))","v":""},{"$f":"IF(Dokumentenauswertung!AE$10=\"\",\"\",IF(Dokumentenauswertung!$B19=Dokumentenauswertung!AE19,Dokumentenauswertung!$C$19,0))","v":""},{"$f":"IF(Dokumentenauswertung!AF$10=\"\",\"\",IF(Dokumentenauswertung!$B19=Dokumentenauswertung!AF19,Dokumentenauswertung!$C$19,0))","v":""},{"$f":"IF(Dokumentenauswertung!AG$10=\"\",\"\",IF(Dokumentenauswertung!$B19=Dokumentenauswertung!AG19,Dokumentenauswertung!$C$19,0))","v":""},{"$f":"IF(Dokumentenauswertung!AH$10=\"\",\"\",IF(Dokumentenauswertung!$B19=Dokumentenauswertung!AH19,Dokumentenauswertung!$C$19,0))","v":""},{"$f":"IF(Dokumentenauswertung!AI$10=\"\",\"\",IF(Dokumentenauswertung!$B19=Dokumentenauswertung!AI19,Dokumentenauswertung!$C$19,0))","v":""},{"$f":"IF(Dokumentenauswertung!AJ$10=\"\",\"\",IF(Dokumentenauswertung!$B19=Dokumentenauswertung!AJ19,Dokumentenauswertung!$C$19,0))","v":""},{"$f":"IF(Dokumentenauswertung!AK$10=\"\",\"\",IF(Dokumentenauswertung!$B19=Dokumentenauswertung!AK19,Dokumentenauswertung!$C$19,0))","v":""}]
[null,null,{"$f":"Dokumentenauswertung!$A20","v":"A5.1"},{"$f":"IF(Dokumentenauswertung!E$10=\"\",\"\",IF(Dokumentenauswertung!E$20=Dokumentenauswertung!$B$20,Dokumentenauswertung!$D20,IF(Dokumentenauswertung!E$20=Dokumentenauswertung!$B$21,Dokumentenauswertung!$C$20,0)))","v":""},{"$f":"IF(Dokumentenauswertung!F$10=\"\",\"\",IF(Dokumentenauswertung!F$20=Dokumentenauswertung!$B$20,Dokumentenauswertung!$D20,IF(Dokumentenauswertung!F$20=Dokumentenauswertung!$B$21,Dokumentenauswertung!$C$20,0)))","v":""},{"$f":"IF(Dokumentenauswertung!G$10=\"\",\"\",IF(Dokumentenauswertung!G$20=Dokumentenauswertung!$B$20,Dokumentenauswertung!$D20,IF(Dokumentenauswertung!G$20=Dokumentenauswertung!$B$21,Dokumentenauswertung!$C$20,0)))","v":""},{"$f":"IF(Dokumentenauswertung!H$10=\"\",\"\",IF(Dokumentenauswertung!H$20=Dokumentenauswertung!$B$20,Dokumentenauswertung!$D20,IF(Dokumentenauswertung!H$20=Dokumentenauswertung!$B$21,Dokumentenauswertung!$C$20,0)))","v":""},{"$f":"IF(Dokumentenauswertung!I$10=\"\",\"\",IF(Dokumentenauswertung!I$20=Dokumentenauswertung!$B$20,Dokumentenauswertung!$D20,IF(Dokumentenauswertung!I$20=Dokumentenauswertung!$B$21,Dokumentenauswertung!$C$20,0)))","v":""},{"$f":"IF(Dokumentenauswertung!J$10=\"\",\"\",IF(Dokumentenauswertung!J$20=Dokumentenauswertung!$B$20,Dokumentenauswertung!$D20,IF(Dokumentenauswertung!J$20=Dokumentenauswertung!$B$21,Dokumentenauswertung!$C$20,0)))","v":""},{"$f":"IF(Dokumentenauswertung!K$10=\"\",\"\",IF(Dokumentenauswertung!K$20=Dokumentenauswertung!$B$20,Dokumentenauswertung!$D20,IF(Dokumentenauswertung!K$20=Dokumentenauswertung!$B$21,Dokumentenauswertung!$C$20,0)))","v":""},{"$f":"IF(Dokumentenauswertung!L$10=\"\",\"\",IF(Dokumentenauswertung!L$20=Dokumentenauswertung!$B$20,Dokumentenauswertung!$D20,IF(Dokumentenauswertung!L$20=Dokumentenauswertung!$B$21,Dokumentenauswertung!$C$20,0)))","v":""},{"$f":"IF(Dokumentenauswertung!M$10=\"\",\"\",IF(Dokumentenauswertung!M$20=Dokumentenauswertung!$B$20,Dokumentenauswertung!$D20,IF(Dokumentenauswertung!M$20=Dokumentenauswertung!$B$21,Dokumentenauswertung!$C$20,0)))","v":""},{"$f":"IF(Dokumentenauswertung!N$10=\"\",\"\",IF(Dokumentenauswertung!N$20=Dokumentenauswertung!$B$20,Dokumentenauswertung!$D20,IF(Dokumentenauswertung!N$20=Dokumentenauswertung!$B$21,Dokumentenauswertung!$C$20,0)))","v":""},{"$f":"IF(Dokumentenauswertung!O$10=\"\",\"\",IF(Dokumentenauswertung!O$20=Dokumentenauswertung!$B$20,Dokumentenauswertung!$D20,IF(Dokumentenauswertung!O$20=Dokumentenauswertung!$B$21,Dokumentenauswertung!$C$20,0)))","v":""},{"$f":"IF(Dokumentenauswertung!P$10=\"\",\"\",IF(Dokumentenauswertung!P$20=Dokumentenauswertung!$B$20,Dokumentenauswertung!$D20,IF(Dokumentenauswertung!P$20=Dokumentenauswertung!$B$21,Dokumentenauswertung!$C$20,0)))","v":""},{"$f":"IF(Dokumentenauswertung!Q$10=\"\",\"\",IF(Dokumentenauswertung!Q$20=Dokumentenauswertung!$B$20,Dokumentenauswertung!$D20,IF(Dokumentenauswertung!Q$20=Dokumentenauswertung!$B$21,Dokumentenauswertung!$C$20,0)))","v":""},{"$f":"IF(Dokumentenauswertung!R$10=\"\",\"\",IF(Dokumentenauswertung!R$20=Dokumentenauswertung!$B$20,Dokumentenauswertung!$D20,IF(Dokumentenauswertung!R$20=Dokumentenauswertung!$B$21,Dokumentenauswertung!$C$20,0)))","v":""},{"$f":"IF(Dokumentenauswertung!S$10=\"\",\"\",IF(Dokumentenauswertung!S$20=Dokumentenauswertung!$B$20,Dokumentenauswertung!$D20,IF(Dokumentenauswertung!S$20=Dokumentenauswertung!$B$21,Dokumentenauswertung!$C$20,0)))","v":""},{"$f":"IF(Dokumentenauswertung!T$10=\"\",\"\",IF(Dokumentenauswertung!T$20=Dokumentenauswertung!$B$20,Dokumentenauswertung!$D20,IF(Dokumentenauswertung!T$20=Dokumentenauswertung!$B$21,Dokumentenauswertung!$C$20,0)))","v":""},{"$f":"IF(Dokumentenauswertung!U$10=\"\",\"\",IF(Dokumentenauswertung!U$20=Dokumentenauswertung!$B$20,Dokumentenauswertung!$D20,IF(Dokumentenauswertung!U$20=Dokumentenauswertung!$B$21,Dokumentenauswertung!$C$20,0)))","v":""},{"$f":"IF(Dokumentenauswertung!V$10=\"\",\"\",IF(Dokumentenauswertung!V$20=Dokumentenauswertung!$B$20,Dokumentenauswertung!$D20,IF(Dokumentenauswertung!V$20=Dokumentenauswertung!$B$21,Dokumentenauswertung!$C$20,0)))","v":""},{"$f":"IF(Dokumentenauswertung!W$10=\"\",\"\",IF(Dokumentenauswertung!W$20=Dokumentenauswertung!$B$20,Dokumentenauswertung!$D20,IF(Dokumentenauswertung!W$20=Dokumentenauswertung!$B$21,Dokumentenauswertung!$C$20,0)))","v":""},{"$f":"IF(Dokumentenauswertung!X$10=\"\",\"\",IF(Dokumentenauswertung!X$20=Dokumentenauswertung!$B$20,Dokumentenauswertung!$D20,IF(Dokumentenauswertung!X$20=Dokumentenauswertung!$B$21,Dokumentenauswertung!$C$20,0)))","v":""},{"$f":"IF(Dokumentenauswertung!Y$10=\"\",\"\",IF(Dokumentenauswertung!Y$20=Dokumentenauswertung!$B$20,Dokumentenauswertung!$D20,IF(Dokumentenauswertung!Y$20=Dokumentenauswertung!$B$21,Dokumentenauswertung!$C$20,0)))","v":""},{"$f":"IF(Dokumentenauswertung!Z$10=\"\",\"\",IF(Dokumentenauswertung!Z$20=Dokumentenauswertung!$B$20,Dokumentenauswertung!$D20,IF(Dokumentenauswertung!Z$20=Dokumentenauswertung!$B$21,Dokumentenauswertung!$C$20,0)))","v":""},{"$f":"IF(Dokumentenauswertung!AA$10=\"\",\"\",IF(Dokumentenauswertung!AA$20=Dokumentenauswertung!$B$20,Dokumentenauswertung!$D20,IF(Dokumentenauswertung!AA$20=Dokumentenauswertung!$B$21,Dokumentenauswertung!$C$20,0)))","v":""},{"$f":"IF(Dokumentenauswertung!AB$10=\"\",\"\",IF(Dokumentenauswertung!AB$20=Dokumentenauswertung!$B$20,Dokumentenauswertung!$D20,IF(Dokumentenauswertung!AB$20=Dokumentenauswertung!$B$21,Dokumentenauswertung!$C$20,0)))","v":""},{"$f":"IF(Dokumentenauswertung!AC$10=\"\",\"\",IF(Dokumentenauswertung!AC$20=Dokumentenauswertung!$B$20,Dokumentenauswertung!$D20,IF(Dokumentenauswertung!AC$20=Dokumentenauswertung!$B$21,Dokumentenauswertung!$C$20,0)))","v":""},{"$f":"IF(Dokumentenauswertung!AD$10=\"\",\"\",IF(Dokumentenauswertung!AD$20=Dokumentenauswertung!$B$20,Dokumentenauswertung!$D20,IF(Dokumentenauswertung!AD$20=Dokumentenauswertung!$B$21,Dokumentenauswertung!$C$20,0)))","v":""},{"$f":"IF(Dokumentenauswertung!AE$10=\"\",\"\",IF(Dokumentenauswertung!AE$20=Dokumentenauswertung!$B$20,Dokumentenauswertung!$D20,IF(Dokumentenauswertung!AE$20=Dokumentenauswertung!$B$21,Dokumentenauswertung!$C$20,0)))","v":""},{"$f":"IF(Dokumentenauswertung!AF$10=\"\",\"\",IF(Dokumentenauswertung!AF$20=Dokumentenauswertung!$B$20,Dokumentenauswertung!$D20,IF(Dokumentenauswertung!AF$20=Dokumentenauswertung!$B$21,Dokumentenauswertung!$C$20,0)))","v":""},{"$f":"IF(Dokumentenauswertung!AG$10=\"\",\"\",IF(Dokumentenauswertung!AG$20=Dokumentenauswertung!$B$20,Dokumentenauswertung!$D20,IF(Dokumentenauswertung!AG$20=Dokumentenauswertung!$B$21,Dokumentenauswertung!$C$20,0)))","v":""},{"$f":"IF(Dokumentenauswertung!AH$10=\"\",\"\",IF(Dokumentenauswertung!AH$20=Dokumentenauswertung!$B$20,Dokumentenauswertung!$D20,IF(Dokumentenauswertung!AH$20=Dokumentenauswertung!$B$21,Dokumentenauswertung!$C$20,0)))","v":""},{"$f":"IF(Dokumentenauswertung!AI$10=\"\",\"\",IF(Dokumentenauswertung!AI$20=Dokumentenauswertung!$B$20,Dokumentenauswertung!$D20,IF(Dokumentenauswertung!AI$20=Dokumentenauswertung!$B$21,Dokumentenauswertung!$C$20,0)))","v":""},{"$f":"IF(Dokumentenauswertung!AJ$10=\"\",\"\",IF(Dokumentenauswertung!AJ$20=Dokumentenauswertung!$B$20,Dokumentenauswertung!$D20,IF(Dokumentenauswertung!AJ$20=Dokumentenauswertung!$B$21,Dokumentenauswertung!$C$20,0)))","v":""},{"$f":"IF(Dokumentenauswertung!AK$10=\"\",\"\",IF(Dokumentenauswertung!AK$20=Dokumentenauswertung!$B$20,Dokumentenauswertung!$D20,IF(Dokumentenauswertung!AK$20=Dokumentenauswertung!$B$21,Dokumentenauswertung!$C$20,0)))","v":""}]
[null,null,{"$f":"Dokumentenauswertung!$A21","v":"A5.2"},{"$f":"IF(Dokumentenauswertung!E$10=\"\",\"\",IF(Dokumentenauswertung!E$21=Dokumentenauswertung!E$20,0,IF(Dokumentenauswertung!E$21=Dokumentenauswertung!$B$21,Dokumentenauswertung!$D$21,IF(Dokumentenauswertung!E$21=Dokumentenauswertung!$B$20,Dokumentenauswertung!$C$21,0))))","v":""},{"$f":"IF(Dokumentenauswertung!F$10=\"\",\"\",IF(Dokumentenauswertung!F$21=Dokumentenauswertung!F$20,0,IF(Dokumentenauswertung!F$21=Dokumentenauswertung!$B$21,Dokumentenauswertung!$D$21,IF(Dokumentenauswertung!F$21=Dokumentenauswertung!$B$20,Dokumentenauswertung!$C$21,0))))","v":""},{"$f":"IF(Dokumentenauswertung!G$10=\"\",\"\",IF(Dokumentenauswertung!G$21=Dokumentenauswertung!G$20,0,IF(Dokumentenauswertung!G$21=Dokumentenauswertung!$B$21,Dokumentenauswertung!$D$21,IF(Dokumentenauswertung!G$21=Dokumentenauswertung!$B$20,Dokumentenauswertung!$C$21,0))))","v":""},{"$f":"IF(Dokumentenauswertung!H$10=\"\",\"\",IF(Dokumentenauswertung!H$21=Dokumentenauswertung!H$20,0,IF(Dokumentenauswertung!H$21=Dokumentenauswertung!$B$21,Dokumentenauswertung!$D$21,IF(Dokumentenauswertung!H$21=Dokumentenauswertung!$B$20,Dokumentenauswertung!$C$21,0))))","v":""},{"$f":"IF(Dokumentenauswertung!I$10=\"\",\"\",IF(Dokumentenauswertung!I$21=Dokumentenauswertung!I$20,0,IF(Dokumentenauswertung!I$21=Dokumentenauswertung!$B$21,Dokumentenauswertung!$D$21,IF(Dokumentenauswertung!I$21=Dokumentenauswertung!$B$20,Dokumentenauswertung!$C$21,0))))","v":""},{"$f":"IF(Dokumentenauswertung!J$10=\"\",\"\",IF(Dokumentenauswertung!J$21=Dokumentenauswertung!J$20,0,IF(Dokumentenauswertung!J$21=Dokumentenauswertung!$B$21,Dokumentenauswertung!$D$21,IF(Dokumentenauswertung!J$21=Dokumentenauswertung!$B$20,Dokumentenauswertung!$C$21,0))))","v":""},{"$f":"IF(Dokumentenauswertung!K$10=\"\",\"\",IF(Dokumentenauswertung!K$21=Dokumentenauswertung!K$20,0,IF(Dokumentenauswertung!K$21=Dokumentenauswertung!$B$21,Dokumentenauswertung!$D$21,IF(Dokumentenauswertung!K$21=Dokumentenauswertung!$B$20,Dokumentenauswertung!$C$21,0))))","v":""},{"$f":"IF(Dokumentenauswertung!L$10=\"\",\"\",IF(Dokumentenauswertung!L$21=Dokumentenauswertung!L$20,0,IF(Dokumentenauswertung!L$21=Dokumentenauswertung!$B$21,Dokumentenauswertung!$D$21,IF(Dokumentenauswertung!L$21=Dokumentenauswertung!$B$20,Dokumentenauswertung!$C$21,0))))","v":""},{"$f":"IF(Dokumentenauswertung!M$10=\"\",\"\",IF(Dokumentenauswertung!M$21=Dokumentenauswertung!M$20,0,IF(Dokumentenauswertung!M$21=Dokumentenauswertung!$B$21,Dokumentenauswertung!$D$21,IF(Dokumentenauswertung!M$21=Dokumentenauswertung!$B$20,Dokumentenauswertung!$C$21,0))))","v":""},{"$f":"IF(Dokumentenauswertung!N$10=\"\",\"\",IF(Dokumentenauswertung!N$21=Dokumentenauswertung!N$20,0,IF(Dokumentenauswertung!N$21=Dokumentenauswertung!$B$21,Dokumentenauswertung!$D$21,IF(Dokumentenauswertung!N$21=Dokumentenauswertung!$B$20,Dokumentenauswertung!$C$21,0))))","v":""},{"$f":"IF(Dokumentenauswertung!O$10=\"\",\"\",IF(Dokumentenauswertung!O$21=Dokumentenauswertung!O$20,0,IF(Dokumentenauswertung!O$21=Dokumentenauswertung!$B$21,Dokumentenauswertung!$D$21,IF(Dokumentenauswertung!O$21=Dokumentenauswertung!$B$20,Dokumentenauswertung!$C$21,0))))","v":""},{"$f":"IF(Dokumentenauswertung!P$10=\"\",\"\",IF(Dokumentenauswertung!P$21=Dokumentenauswertung!P$20,0,IF(Dokumentenauswertung!P$21=Dokumentenauswertung!$B$21,Dokumentenauswertung!$D$21,IF(Dokumentenauswertung!P$21=Dokumentenauswertung!$B$20,Dokumentenauswertung!$C$21,0))))","v":""},{"$f":"IF(Dokumentenauswertung!Q$10=\"\",\"\",IF(Dokumentenauswertung!Q$21=Dokumentenauswertung!Q$20,0,IF(Dokumentenauswertung!Q$21=Dokumentenauswertung!$B$21,Dokumentenauswertung!$D$21,IF(Dokumentenauswertung!Q$21=Dokumentenauswertung!$B$20,Dokumentenauswertung!$C$21,0))))","v":""},{"$f":"IF(Dokumentenauswertung!R$10=\"\",\"\",IF(Dokumentenauswertung!R$21=Dokumentenauswertung!R$20,0,IF(Dokumentenauswertung!R$21=Dokumentenauswertung!$B$21,Dokumentenauswertung!$D$21,IF(Dokumentenauswertung!R$21=Dokumentenauswertung!$B$20,Dokumentenauswertung!$C$21,0))))","v":""},{"$f":"IF(Dokumentenauswertung!S$10=\"\",\"\",IF(Dokumentenauswertung!S$21=Dokumentenauswertung!S$20,0,IF(Dokumentenauswertung!S$21=Dokumentenauswertung!$B$21,Dokumentenauswertung!$D$21,IF(Dokumentenauswertung!S$21=Dokumentenauswertung!$B$20,Dokumentenauswertung!$C$21,0))))","v":""},{"$f":"IF(Dokumentenauswertung!T$10=\"\",\"\",IF(Dokumentenauswertung!T$21=Dokumentenauswertung!T$20,0,IF(Dokumentenauswertung!T$21=Dokumentenauswertung!$B$21,Dokumentenauswertung!$D$21,IF(Dokumentenauswertung!T$21=Dokumentenauswertung!$B$20,Dokumentenauswertung!$C$21,0))))","v":""},{"$f":"IF(Dokumentenauswertung!U$10=\"\",\"\",IF(Dokumentenauswertung!U$21=Dokumentenauswertung!U$20,0,IF(Dokumentenauswertung!U$21=Dokumentenauswertung!$B$21,Dokumentenauswertung!$D$21,IF(Dokumentenauswertung!U$21=Dokumentenauswertung!$B$20,Dokumentenauswertung!$C$21,0))))","v":""},{"$f":"IF(Dokumentenauswertung!V$10=\"\",\"\",IF(Dokumentenauswertung!V$21=Dokumentenauswertung!V$20,0,IF(Dokumentenauswertung!V$21=Dokumentenauswertung!$B$21,Dokumentenauswertung!$D$21,IF(Dokumentenauswertung!V$21=Dokumentenauswertung!$B$20,Dokumentenauswertung!$C$21,0))))","v":""},{"$f":"IF(Dokumentenauswertung!W$10=\"\",\"\",IF(Dokumentenauswertung!W$21=Dokumentenauswertung!W$20,0,IF(Dokumentenauswertung!W$21=Dokumentenauswertung!$B$21,Dokumentenauswertung!$D$21,IF(Dokumentenauswertung!W$21=Dokumentenauswertung!$B$20,Dokumentenauswertung!$C$21,0))))","v":""},{"$f":"IF(Dokumentenauswertung!X$10=\"\",\"\",IF(Dokumentenauswertung!X$21=Dokumentenauswertung!X$20,0,IF(Dokumentenauswertung!X$21=Dokumentenauswertung!$B$21,Dokumentenauswertung!$D$21,IF(Dokumentenauswertung!X$21=Dokumentenauswertung!$B$20,Dokumentenauswertung!$C$21,0))))","v":""},{"$f":"IF(Dokumentenauswertung!Y$10=\"\",\"\",IF(Dokumentenauswertung!Y$21=Dokumentenauswertung!Y$20,0,IF(Dokumentenauswertung!Y$21=Dokumentenauswertung!$B$21,Dokumentenauswertung!$D$21,IF(Dokumentenauswertung!Y$21=Dokumentenauswertung!$B$20,Dokumentenauswertung!$C$21,0))))","v":""},{"$f":"IF(Dokumentenauswertung!Z$10=\"\",\"\",IF(Dokumentenauswertung!Z$21=Dokumentenauswertung!Z$20,0,IF(Dokumentenauswertung!Z$21=Dokumentenauswertung!$B$21,Dokumentenauswertung!$D$21,IF(Dokumentenauswertung!Z$21=Dokumentenauswertung!$B$20,Dokumentenauswertung!$C$21,0))))","v":""},{"$f":"IF(Dokumentenauswertung!AA$10=\"\",\"\",IF(Dokumentenauswertung!AA$21=Dokumentenauswertung!AA$20,0,IF(Dokumentenauswertung!AA$21=Dokumentenauswertung!$B$21,Dokumentenauswertung!$D$21,IF(Dokumentenauswertung!AA$21=Dokumentenauswertung!$B$20,Dokumentenauswertung!$C$21,0))))","v":""},{"$f":"IF(Dokumentenauswertung!AB$10=\"\",\"\",IF(Dokumentenauswertung!AB$21=Dokumentenauswertung!AB$20,0,IF(Dokumentenauswertung!AB$21=Dokumentenauswertung!$B$21,Dokumentenauswertung!$D$21,IF(Dokumentenauswertung!AB$21=Dokumentenauswertung!$B$20,Dokumentenauswertung!$C$21,0))))","v":""},{"$f":"IF(Dokumentenauswertung!AC$10=\"\",\"\",IF(Dokumentenauswertung!AC$21=Dokumentenauswertung!AC$20,0,IF(Dokumentenauswertung!AC$21=Dokumentenauswertung!$B$21,Dokumentenauswertung!$D$21,IF(Dokumentenauswertung!AC$21=Dokumentenauswertung!$B$20,Dokumentenauswertung!$C$21,0))))","v":""},{"$f":"IF(Dokumentenauswertung!AD$10=\"\",\"\",IF(Dokumentenauswertung!AD$21=Dokumentenauswertung!AD$20,0,IF(Dokumentenauswertung!AD$21=Dokumentenauswertung!$B$21,Dokumentenauswertung!$D$21,IF(Dokumentenauswertung!AD$21=Dokumentenauswertung!$B$20,Dokumentenauswertung!$C$21,0))))","v":""},{"$f":"IF(Dokumentenauswertung!AE$10=\"\",\"\",IF(Dokumentenauswertung!AE$21=Dokumentenauswertung!AE$20,0,IF(Dokumentenauswertung!AE$21=Dokumentenauswertung!$B$21,Dokumentenauswertung!$D$21,IF(Dokumentenauswertung!AE$21=Dokumentenauswertung!$B$20,Dokumentenauswertung!$C$21,0))))","v":""},{"$f":"IF(Dokumentenauswertung!AF$10=\"\",\"\",IF(Dokumentenauswertung!AF$21=Dokumentenauswertung!AF$20,0,IF(Dokumentenauswertung!AF$21=Dokumentenauswertung!$B$21,Dokumentenauswertung!$D$21,IF(Dokumentenauswertung!AF$21=Dokumentenauswertung!$B$20,Dokumentenauswertung!$C$21,0))))","v":""},{"$f":"IF(Dokumentenauswertung!AG$10=\"\",\"\",IF(Dokumentenauswertung!AG$21=Dokumentenauswertung!AG$20,0,IF(Dokumentenauswertung!AG$21=Dokumentenauswertung!$B$21,Dokumentenauswertung!$D$21,IF(Dokumentenauswertung!AG$21=Dokumentenauswertung!$B$20,Dokumentenauswertung!$C$21,0))))","v":""},{"$f":"IF(Dokumentenauswertung!AH$10=\"\",\"\",IF(Dokumentenauswertung!AH$21=Dokumentenauswertung!AH$20,0,IF(Dokumentenauswertung!AH$21=Dokumentenauswertung!$B$21,Dokumentenauswertung!$D$21,IF(Dokumentenauswertung!AH$21=Dokumentenauswertung!$B$20,Dokumentenauswertung!$C$21,0))))","v":""},{"$f":"IF(Dokumentenauswertung!AI$10=\"\",\"\",IF(Dokumentenauswertung!AI$21=Dokumentenauswertung!AI$20,0,IF(Dokumentenauswertung!AI$21=Dokumentenauswertung!$B$21,Dokumentenauswertung!$D$21,IF(Dokumentenauswertung!AI$21=Dokumentenauswertung!$B$20,Dokumentenauswertung!$C$21,0))))","v":""},{"$f":"IF(Dokumentenauswertung!AJ$10=\"\",\"\",IF(Dokumentenauswertung!AJ$21=Dokumentenauswertung!AJ$20,0,IF(Dokumentenauswertung!AJ$21=Dokumentenauswertung!$B$21,Dokumentenauswertung!$D$21,IF(Dokumentenauswertung!AJ$21=Dokumentenauswertung!$B$20,Dokumentenauswertung!$C$21,0))))","v":""},{"$f":"IF(Dokumentenauswertung!AK$10=\"\",\"\",IF(Dokumentenauswertung!AK$21=Dokumentenauswertung!AK$20,0,IF(Dokumentenauswertung!AK$21=Dokumentenauswertung!$B$21,Dokumentenauswertung!$D$21,IF(Dokumentenauswertung!AK$21=Dokumentenauswertung!$B$20,Dokumentenauswertung!$C$21,0))))","v":""}]
[null,null,{"$f":"Dokumentenauswertung!$A22","v":"A6.1"},{"$f":"IF(Dokumentenauswertung!E$10=\"\",\"\",IF(Dokumentenauswertung!E$22=Dokumentenauswertung!$B$22,Dokumentenauswertung!$D22,IF(Dokumentenauswertung!E$22=Dokumentenauswertung!$B$23,Dokumentenauswertung!$C$22,0)))","v":""},{"$f":"IF(Dokumentenauswertung!F$10=\"\",\"\",IF(Dokumentenauswertung!F$22=Dokumentenauswertung!$B$22,Dokumentenauswertung!$D22,IF(Dokumentenauswertung!F$22=Dokumentenauswertung!$B$23,Dokumentenauswertung!$C$22,0)))","v":""},{"$f":"IF(Dokumentenauswertung!G$10=\"\",\"\",IF(Dokumentenauswertung!G$22=Dokumentenauswertung!$B$22,Dokumentenauswertung!$D22,IF(Dokumentenauswertung!G$22=Dokumentenauswertung!$B$23,Dokumentenauswertung!$C$22,0)))","v":""},{"$f":"IF(Dokumentenauswertung!H$10=\"\",\"\",IF(Dokumentenauswertung!H$22=Dokumentenauswertung!$B$22,Dokumentenauswertung!$D22,IF(Dokumentenauswertung!H$22=Dokumentenauswertung!$B$23,Dokumentenauswertung!$C$22,0)))","v":""},{"$f":"IF(Dokumentenauswertung!I$10=\"\",\"\",IF(Dokumentenauswertung!I$22=Dokumentenauswertung!$B$22,Dokumentenauswertung!$D22,IF(Dokumentenauswertung!I$22=Dokumentenauswertung!$B$23,Dokumentenauswertung!$C$22,0)))","v":""},{"$f":"IF(Dokumentenauswertung!J$10=\"\",\"\",IF(Dokumentenauswertung!J$22=Dokumentenauswertung!$B$22,Dokumentenauswertung!$D22,IF(Dokumentenauswertung!J$22=Dokumentenauswertung!$B$23,Dokumentenauswertung!$C$22,0)))","v":""},{"$f":"IF(Dokumentenauswertung!K$10=\"\",\"\",IF(Dokumentenauswertung!K$22=Dokumentenauswertung!$B$22,Dokumentenauswertung!$D22,IF(Dokumentenauswertung!K$22=Dokumentenauswertung!$B$23,Dokumentenauswertung!$C$22,0)))","v":""},{"$f":"IF(Dokumentenauswertung!L$10=\"\",\"\",IF(Dokumentenauswertung!L$22=Dokumentenauswertung!$B$22,Dokumentenauswertung!$D22,IF(Dokumentenauswertung!L$22=Dokumentenauswertung!$B$23,Dokumentenauswertung!$C$22,0)))","v":""},{"$f":"IF(Dokumentenauswertung!M$10=\"\",\"\",IF(Dokumentenauswertung!M$22=Dokumentenauswertung!$B$22,Dokumentenauswertung!$D22,IF(Dokumentenauswertung!M$22=Dokumentenauswertung!$B$23,Dokumentenauswertung!$C$22,0)))","v":""},{"$f":"IF(Dokumentenauswertung!N$10=\"\",\"\",IF(Dokumentenauswertung!N$22=Dokumentenauswertung!$B$22,Dokumentenauswertung!$D22,IF(Dokumentenauswertung!N$22=Dokumentenauswertung!$B$23,Dokumentenauswertung!$C$22,0)))","v":""},{"$f":"IF(Dokumentenauswertung!O$10=\"\",\"\",IF(Dokumentenauswertung!O$22=Dokumentenauswertung!$B$22,Dokumentenauswertung!$D22,IF(Dokumentenauswertung!O$22=Dokumentenauswertung!$B$23,Dokumentenauswertung!$C$22,0)))","v":""},{"$f":"IF(Dokumentenauswertung!P$10=\"\",\"\",IF(Dokumentenauswertung!P$22=Dokumentenauswertung!$B$22,Dokumentenauswertung!$D22,IF(Dokumentenauswertung!P$22=Dokumentenauswertung!$B$23,Dokumentenauswertung!$C$22,0)))","v":""},{"$f":"IF(Dokumentenauswertung!Q$10=\"\",\"\",IF(Dokumentenauswertung!Q$22=Dokumentenauswertung!$B$22,Dokumentenauswertung!$D22,IF(Dokumentenauswertung!Q$22=Dokumentenauswertung!$B$23,Dokumentenauswertung!$C$22,0)))","v":""},{"$f":"IF(Dokumentenauswertung!R$10=\"\",\"\",IF(Dokumentenauswertung!R$22=Dokumentenauswertung!$B$22,Dokumentenauswertung!$D22,IF(Dokumentenauswertung!R$22=Dokumentenauswertung!$B$23,Dokumentenauswertung!$C$22,0)))","v":""},{"$f":"IF(Dokumentenauswertung!S$10=\"\",\"\",IF(Dokumentenauswertung!S$22=Dokumentenauswertung!$B$22,Dokumentenauswertung!$D22,IF(Dokumentenauswertung!S$22=Dokumentenauswertung!$B$23,Dokumentenauswertung!$C$22,0)))","v":""},{"$f":"IF(Dokumentenauswertung!T$10=\"\",\"\",IF(Dokumentenauswertung!T$22=Dokumentenauswertung!$B$22,Dokumentenauswertung!$D22,IF(Dokumentenauswertung!T$22=Dokumentenauswertung!$B$23,Dokumentenauswertung!$C$22,0)))","v":""},{"$f":"IF(Dokumentenauswertung!U$10=\"\",\"\",IF(Dokumentenauswertung!U$22=Dokumentenauswertung!$B$22,Dokumentenauswertung!$D22,IF(Dokumentenauswertung!U$22=Dokumentenauswertung!$B$23,Dokumentenauswertung!$C$22,0)))","v":""},{"$f":"IF(Dokumentenauswertung!V$10=\"\",\"\",IF(Dokumentenauswertung!V$22=Dokumentenauswertung!$B$22,Dokumentenauswertung!$D22,IF(Dokumentenauswertung!V$22=Dokumentenauswertung!$B$23,Dokumentenauswertung!$C$22,0)))","v":""},{"$f":"IF(Dokumentenauswertung!W$10=\"\",\"\",IF(Dokumentenauswertung!W$22=Dokumentenauswertung!$B$22,Dokumentenauswertung!$D22,IF(Dokumentenauswertung!W$22=Dokumentenauswertung!$B$23,Dokumentenauswertung!$C$22,0)))","v":""},{"$f":"IF(Dokumentenauswertung!X$10=\"\",\"\",IF(Dokumentenauswertung!X$22=Dokumentenauswertung!$B$22,Dokumentenauswertung!$D22,IF(Dokumentenauswertung!X$22=Dokumentenauswertung!$B$23,Dokumentenauswertung!$C$22,0)))","v":""},{"$f":"IF(Dokumentenauswertung!Y$10=\"\",\"\",IF(Dokumentenauswertung!Y$22=Dokumentenauswertung!$B$22,Dokumentenauswertung!$D22,IF(Dokumentenauswertung!Y$22=Dokumentenauswertung!$B$23,Dokumentenauswertung!$C$22,0)))","v":""},{"$f":"IF(Dokumentenauswertung!Z$10=\"\",\"\",IF(Dokumentenauswertung!Z$22=Dokumentenauswertung!$B$22,Dokumentenauswertung!$D22,IF(Dokumentenauswertung!Z$22=Dokumentenauswertung!$B$23,Dokumentenauswertung!$C$22,0)))","v":""},{"$f":"IF(Dokumentenauswertung!AA$10=\"\",\"\",IF(Dokumentenauswertung!AA$22=Dokumentenauswertung!$B$22,Dokumentenauswertung!$D22,IF(Dokumentenauswertung!AA$22=Dokumentenauswertung!$B$23,Dokumentenauswertung!$C$22,0)))","v":""},{"$f":"IF(Dokumentenauswertung!AB$10=\"\",\"\",IF(Dokumentenauswertung!AB$22=Dokumentenauswertung!$B$22,Dokumentenauswertung!$D22,IF(Dokumentenauswertung!AB$22=Dokumentenauswertung!$B$23,Dokumentenauswertung!$C$22,0)))","v":""},{"$f":"IF(Dokumentenauswertung!AC$10=\"\",\"\",IF(Dokumentenauswertung!AC$22=Dokumentenauswertung!$B$22,Dokumentenauswertung!$D22,IF(Dokumentenauswertung!AC$22=Dokumentenauswertung!$B$23,Dokumentenauswertung!$C$22,0)))","v":""},{"$f":"IF(Dokumentenauswertung!AD$10=\"\",\"\",IF(Dokumentenauswertung!AD$22=Dokumentenauswertung!$B$22,Dokumentenauswertung!$D22,IF(Dokumentenauswertung!AD$22=Dokumentenauswertung!$B$23,Dokumentenauswertung!$C$22,0)))","v":""},{"$f":"IF(Dokumentenauswertung!AE$10=\"\",\"\",IF(Dokumentenauswertung!AE$22=Dokumentenauswertung!$B$22,Dokumentenauswertung!$D22,IF(Dokumentenauswertung!AE$22=Dokumentenauswertung!$B$23,Dokumentenauswertung!$C$22,0)))","v":""},{"$f":"IF(Dokumentenauswertung!AF$10=\"\",\"\",IF(Dokumentenauswertung!AF$22=Dokumentenauswertung!$B$22,Dokumentenauswertung!$D22,IF(Dokumentenauswertung!AF$22=Dokumentenauswertung!$B$23,Dokumentenauswertung!$C$22,0)))","v":""},{"$f":"IF(Dokumentenauswertung!AG$10=\"\",\"\",IF(Dokumentenauswertung!AG$22=Dokumentenauswertung!$B$22,Dokumentenauswertung!$D22,IF(Dokumentenauswertung!AG$22=Dokumentenauswertung!$B$23,Dokumentenauswertung!$C$22,0)))","v":""},{"$f":"IF(Dokumentenauswertung!AH$10=\"\",\"\",IF(Dokumentenauswertung!AH$22=Dokumentenauswertung!$B$22,Dokumentenauswertung!$D22,IF(Dokumentenauswertung!AH$22=Dokumentenauswertung!$B$23,Dokumentenauswertung!$C$22,0)))","v":""},{"$f":"IF(Dokumentenauswertung!AI$10=\"\",\"\",IF(Dokumentenauswertung!AI$22=Dokumentenauswertung!$B$22,Dokumentenauswertung!$D22,IF(Dokumentenauswertung!AI$22=Dokumentenauswertung!$B$23,Dokumentenauswertung!$C$22,0)))","v":""},{"$f":"IF(Dokumentenauswertung!AJ$10=\"\",\"\",IF(Dokumentenauswertung!AJ$22=Dokumentenauswertung!$B$22,Dokumentenauswertung!$D22,IF(Dokumentenauswertung!AJ$22=Dokumentenauswertung!$B$23,Dokumentenauswertung!$C$22,0)))","v":""},{"$f":"IF(Dokumentenauswertung!AK$10=\"\",\"\",IF(Dokumentenauswertung!AK$22=Dokumentenauswertung!$B$22,Dokumentenauswertung!$D22,IF(Dokumentenauswertung!AK$22=Dokumentenauswertung!$B$23,Dokumentenauswertung!$C$22,0)))","v":""}]
[null,null,{"$f":"Dokumentenauswertung!$A23","v":"A6.2"},{"$f":"IF(Dokumentenauswertung!E$10=\"\",\"\",IF(Dokumentenauswertung!E$23=Dokumentenauswertung!E$22,0,IF(Dokumentenauswertung!E$23=Dokumentenauswertung!$B$23,Dokumentenauswertung!$D$23,IF(Dokumentenauswertung!E$23=Dokumentenauswertung!$B$22,Dokumentenauswertung!$C$23,0))))","v":""},{"$f":"IF(Dokumentenauswertung!F$10=\"\",\"\",IF(Dokumentenauswertung!F$23=Dokumentenauswertung!F$22,0,IF(Dokumentenauswertung!F$23=Dokumentenauswertung!$B$23,Dokumentenauswertung!$D$23,IF(Dokumentenauswertung!F$23=Dokumentenauswertung!$B$22,Dokumentenauswertung!$C$23,0))))","v":""},{"$f":"IF(Dokumentenauswertung!G$10=\"\",\"\",IF(Dokumentenauswertung!G$23=Dokumentenauswertung!G$22,0,IF(Dokumentenauswertung!G$23=Dokumentenauswertung!$B$23,Dokumentenauswertung!$D$23,IF(Dokumentenauswertung!G$23=Dokumentenauswertung!$B$22,Dokumentenauswertung!$C$23,0))))","v":""},{"$f":"IF(Dokumentenauswertung!H$10=\"\",\"\",IF(Dokumentenauswertung!H$23=Dokumentenauswertung!H$22,0,IF(Dokumentenauswertung!H$23=Dokumentenauswertung!$B$23,Dokumentenauswertung!$D$23,IF(Dokumentenauswertung!H$23=Dokumentenauswertung!$B$22,Dokumentenauswertung!$C$23,0))))","v":""},{"$f":"IF(Dokumentenauswertung!I$10=\"\",\"\",IF(Dokumentenauswertung!I$23=Dokumentenauswertung!I$22,0,IF(Dokumentenauswertung!I$23=Dokumentenauswertung!$B$23,Dokumentenauswertung!$D$23,IF(Dokumentenauswertung!I$23=Dokumentenauswertung!$B$22,Dokumentenauswertung!$C$23,0))))","v":""},{"$f":"IF(Dokumentenauswertung!J$10=\"\",\"\",IF(Dokumentenauswertung!J$23=Dokumentenauswertung!J$22,0,IF(Dokumentenauswertung!J$23=Dokumentenauswertung!$B$23,Dokumentenauswertung!$D$23,IF(Dokumentenauswertung!J$23=Dokumentenauswertung!$B$22,Dokumentenauswertung!$C$23,0))))","v":""},{"$f":"IF(Dokumentenauswertung!K$10=\"\",\"\",IF(Dokumentenauswertung!K$23=Dokumentenauswertung!K$22,0,IF(Dokumentenauswertung!K$23=Dokumentenauswertung!$B$23,Dokumentenauswertung!$D$23,IF(Dokumentenauswertung!K$23=Dokumentenauswertung!$B$22,Dokumentenauswertung!$C$23,0))))","v":""},{"$f":"IF(Dokumentenauswertung!L$10=\"\",\"\",IF(Dokumentenauswertung!L$23=Dokumentenauswertung!L$22,0,IF(Dokumentenauswertung!L$23=Dokumentenauswertung!$B$23,Dokumentenauswertung!$D$23,IF(Dokumentenauswertung!L$23=Dokumentenauswertung!$B$22,Dokumentenauswertung!$C$23,0))))","v":""},{"$f":"IF(Dokumentenauswertung!M$10=\"\",\"\",IF(Dokumentenauswertung!M$23=Dokumentenauswertung!M$22,0,IF(Dokumentenauswertung!M$23=Dokumentenauswertung!$B$23,Dokumentenauswertung!$D$23,IF(Dokumentenauswertung!M$23=Dokumentenauswertung!$B$22,Dokumentenauswertung!$C$23,0))))","v":""},{"$f":"IF(Dokumentenauswertung!N$10=\"\",\"\",IF(Dokumentenauswertung!N$23=Dokumentenauswertung!N$22,0,IF(Dokumentenauswertung!N$23=Dokumentenauswertung!$B$23,Dokumentenauswertung!$D$23,IF(Dokumentenauswertung!N$23=Dokumentenauswertung!$B$22,Dokumentenauswertung!$C$23,0))))","v":""},{"$f":"IF(Dokumentenauswertung!O$10=\"\",\"\",IF(Dokumentenauswertung!O$23=Dokumentenauswertung!O$22,0,IF(Dokumentenauswertung!O$23=Dokumentenauswertung!$B$23,Dokumentenauswertung!$D$23,IF(Dokumentenauswertung!O$23=Dokumentenauswertung!$B$22,Dokumentenauswertung!$C$23,0))))","v":""},{"$f":"IF(Dokumentenauswertung!P$10=\"\",\"\",IF(Dokumentenauswertung!P$23=Dokumentenauswertung!P$22,0,IF(Dokumentenauswertung!P$23=Dokumentenauswertung!$B$23,Dokumentenauswertung!$D$23,IF(Dokumentenauswertung!P$23=Dokumentenauswertung!$B$22,Dokumentenauswertung!$C$23,0))))","v":""},{"$f":"IF(Dokumentenauswertung!Q$10=\"\",\"\",IF(Dokumentenauswertung!Q$23=Dokumentenauswertung!Q$22,0,IF(Dokumentenauswertung!Q$23=Dokumentenauswertung!$B$23,Dokumentenauswertung!$D$23,IF(Dokumentenauswertung!Q$23=Dokumentenauswertung!$B$22,Dokumentenauswertung!$C$23,0))))","v":""},{"$f":"IF(Dokumentenauswertung!R$10=\"\",\"\",IF(Dokumentenauswertung!R$23=Dokumentenauswertung!R$22,0,IF(Dokumentenauswertung!R$23=Dokumentenauswertung!$B$23,Dokumentenauswertung!$D$23,IF(Dokumentenauswertung!R$23=Dokumentenauswertung!$B$22,Dokumentenauswertung!$C$23,0))))","v":""},{"$f":"IF(Dokumentenauswertung!S$10=\"\",\"\",IF(Dokumentenauswertung!S$23=Dokumentenauswertung!S$22,0,IF(Dokumentenauswertung!S$23=Dokumentenauswertung!$B$23,Dokumentenauswertung!$D$23,IF(Dokumentenauswertung!S$23=Dokumentenauswertung!$B$22,Dokumentenauswertung!$C$23,0))))","v":""},{"$f":"IF(Dokumentenauswertung!T$10=\"\",\"\",IF(Dokumentenauswertung!T$23=Dokumentenauswertung!T$22,0,IF(Dokumentenauswertung!T$23=Dokumentenauswertung!$B$23,Dokumentenauswertung!$D$23,IF(Dokumentenauswertung!T$23=Dokumentenauswertung!$B$22,Dokumentenauswertung!$C$23,0))))","v":""},{"$f":"IF(Dokumentenauswertung!U$10=\"\",\"\",IF(Dokumentenauswertung!U$23=Dokumentenauswertung!U$22,0,IF(Dokumentenauswertung!U$23=Dokumentenauswertung!$B$23,Dokumentenauswertung!$D$23,IF(Dokumentenauswertung!U$23=Dokumentenauswertung!$B$22,Dokumentenauswertung!$C$23,0))))","v":""},{"$f":"IF(Dokumentenauswertung!V$10=\"\",\"\",IF(Dokumentenauswertung!V$23=Dokumentenauswertung!V$22,0,IF(Dokumentenauswertung!V$23=Dokumentenauswertung!$B$23,Dokumentenauswertung!$D$23,IF(Dokumentenauswertung!V$23=Dokumentenauswertung!$B$22,Dokumentenauswertung!$C$23,0))))","v":""},{"$f":"IF(Dokumentenauswertung!W$10=\"\",\"\",IF(Dokumentenauswertung!W$23=Dokumentenauswertung!W$22,0,IF(Dokumentenauswertung!W$23=Dokumentenauswertung!$B$23,Dokumentenauswertung!$D$23,IF(Dokumentenauswertung!W$23=Dokumentenauswertung!$B$22,Dokumentenauswertung!$C$23,0))))","v":""},{"$f":"IF(Dokumentenauswertung!X$10=\"\",\"\",IF(Dokumentenauswertung!X$23=Dokumentenauswertung!X$22,0,IF(Dokumentenauswertung!X$23=Dokumentenauswertung!$B$23,Dokumentenauswertung!$D$23,IF(Dokumentenauswertung!X$23=Dokumentenauswertung!$B$22,Dokumentenauswertung!$C$23,0))))","v":""},{"$f":"IF(Dokumentenauswertung!Y$10=\"\",\"\",IF(Dokumentenauswertung!Y$23=Dokumentenauswertung!Y$22,0,IF(Dokumentenauswertung!Y$23=Dokumentenauswertung!$B$23,Dokumentenauswertung!$D$23,IF(Dokumentenauswertung!Y$23=Dokumentenauswertung!$B$22,Dokumentenauswertung!$C$23,0))))","v":""},{"$f":"IF(Dokumentenauswertung!Z$10=\"\",\"\",IF(Dokumentenauswertung!Z$23=Dokumentenauswertung!Z$22,0,IF(Dokumentenauswertung!Z$23=Dokumentenauswertung!$B$23,Dokumentenauswertung!$D$23,IF(Dokumentenauswertung!Z$23=Dokumentenauswertung!$B$22,Dokumentenauswertung!$C$23,0))))","v":""},{"$f":"IF(Dokumentenauswertung!AA$10=\"\",\"\",IF(Dokumentenauswertung!AA$23=Dokumentenauswertung!AA$22,0,IF(Dokumentenauswertung!AA$23=Dokumentenauswertung!$B$23,Dokumentenauswertung!$D$23,IF(Dokumentenauswertung!AA$23=Dokumentenauswertung!$B$22,Dokumentenauswertung!$C$23,0))))","v":""},{"$f":"IF(Dokumentenauswertung!AB$10=\"\",\"\",IF(Dokumentenauswertung!AB$23=Dokumentenauswertung!AB$22,0,IF(Dokumentenauswertung!AB$23=Dokumentenauswertung!$B$23,Dokumentenauswertung!$D$23,IF(Dokumentenauswertung!AB$23=Dokumentenauswertung!$B$22,Dokumentenauswertung!$C$23,0))))","v":""},{"$f":"IF(Dokumentenauswertung!AC$10=\"\",\"\",IF(Dokumentenauswertung!AC$23=Dokumentenauswertung!AC$22,0,IF(Dokumentenauswertung!AC$23=Dokumentenauswertung!$B$23,Dokumentenauswertung!$D$23,IF(Dokumentenauswertung!AC$23=Dokumentenauswertung!$B$22,Dokumentenauswertung!$C$23,0))))","v":""},{"$f":"IF(Dokumentenauswertung!AD$10=\"\",\"\",IF(Dokumentenauswertung!AD$23=Dokumentenauswertung!AD$22,0,IF(Dokumentenauswertung!AD$23=Dokumentenauswertung!$B$23,Dokumentenauswertung!$D$23,IF(Dokumentenauswertung!AD$23=Dokumentenauswertung!$B$22,Dokumentenauswertung!$C$23,0))))","v":""},{"$f":"IF(Dokumentenauswertung!AE$10=\"\",\"\",IF(Dokumentenauswertung!AE$23=Dokumentenauswertung!AE$22,0,IF(Dokumentenauswertung!AE$23=Dokumentenauswertung!$B$23,Dokumentenauswertung!$D$23,IF(Dokumentenauswertung!AE$23=Dokumentenauswertung!$B$22,Dokumentenauswertung!$C$23,0))))","v":""},{"$f":"IF(Dokumentenauswertung!AF$10=\"\",\"\",IF(Dokumentenauswertung!AF$23=Dokumentenauswertung!AF$22,0,IF(Dokumentenauswertung!AF$23=Dokumentenauswertung!$B$23,Dokumentenauswertung!$D$23,IF(Dokumentenauswertung!AF$23=Dokumentenauswertung!$B$22,Dokumentenauswertung!$C$23,0))))","v":""},{"$f":"IF(Dokumentenauswertung!AG$10=\"\",\"\",IF(Dokumentenauswertung!AG$23=Dokumentenauswertung!AG$22,0,IF(Dokumentenauswertung!AG$23=Dokumentenauswertung!$B$23,Dokumentenauswertung!$D$23,IF(Dokumentenauswertung!AG$23=Dokumentenauswertung!$B$22,Dokumentenauswertung!$C$23,0))))","v":""},{"$f":"IF(Dokumentenauswertung!AH$10=\"\",\"\",IF(Dokumentenauswertung!AH$23=Dokumentenauswertung!AH$22,0,IF(Dokumentenauswertung!AH$23=Dokumentenauswertung!$B$23,Dokumentenauswertung!$D$23,IF(Dokumentenauswertung!AH$23=Dokumentenauswertung!$B$22,Dokumentenauswertung!$C$23,0))))","v":""},{"$f":"IF(Dokumentenauswertung!AI$10=\"\",\"\",IF(Dokumentenauswertung!AI$23=Dokumentenauswertung!AI$22,0,IF(Dokumentenauswertung!AI$23=Dokumentenauswertung!$B$23,Dokumentenauswertung!$D$23,IF(Dokumentenauswertung!AI$23=Dokumentenauswertung!$B$22,Dokumentenauswertung!$C$23,0))))","v":""},{"$f":"IF(Dokumentenauswertung!AJ$10=\"\",\"\",IF(Dokumentenauswertung!AJ$23=Dokumentenauswertung!AJ$22,0,IF(Dokumentenauswertung!AJ$23=Dokumentenauswertung!$B$23,Dokumentenauswertung!$D$23,IF(Dokumentenauswertung!AJ$23=Dokumentenauswertung!$B$22,Dokumentenauswertung!$C$23,0))))","v":""},{"$f":"IF(Dokumentenauswertung!AK$10=\"\",\"\",IF(Dokumentenauswertung!AK$23=Dokumentenauswertung!AK$22,0,IF(Dokumentenauswertung!AK$23=Dokumentenauswertung!$B$23,Dokumentenauswertung!$D$23,IF(Dokumentenauswertung!AK$23=Dokumentenauswertung!$B$22,Dokumentenauswertung!$C$23,0))))","v":""}]
[null,null,{"$f":"Dokumentenauswertung!$A24","v":"A7.1"},{"$f":"IF(Dokumentenauswertung!E$10=\"\",\"\",IF(Dokumentenauswertung!E$24=Dokumentenauswertung!$B$24,Dokumentenauswertung!$D24,IF(Dokumentenauswertung!E$24=Dokumentenauswertung!$B$25,Dokumentenauswertung!$C$24,0)))","v":""},{"$f":"IF(Dokumentenauswertung!F$10=\"\",\"\",IF(Dokumentenauswertung!F$24=Dokumentenauswertung!$B$24,Dokumentenauswertung!$D24,IF(Dokumentenauswertung!F$24=Dokumentenauswertung!$B$25,Dokumentenauswertung!$C$24,0)))","v":""},{"$f":"IF(Dokumentenauswertung!G$10=\"\",\"\",IF(Dokumentenauswertung!G$24=Dokumentenauswertung!$B$24,Dokumentenauswertung!$D24,IF(Dokumentenauswertung!G$24=Dokumentenauswertung!$B$25,Dokumentenauswertung!$C$24,0)))","v":""},{"$f":"IF(Dokumentenauswertung!H$10=\"\",\"\",IF(Dokumentenauswertung!H$24=Dokumentenauswertung!$B$24,Dokumentenauswertung!$D24,IF(Dokumentenauswertung!H$24=Dokumentenauswertung!$B$25,Dokumentenauswertung!$C$24,0)))","v":""},{"$f":"IF(Dokumentenauswertung!I$10=\"\",\"\",IF(Dokumentenauswertung!I$24=Dokumentenauswertung!$B$24,Dokumentenauswertung!$D24,IF(Dokumentenauswertung!I$24=Dokumentenauswertung!$B$25,Dokumentenauswertung!$C$24,0)))","v":""},{"$f":"IF(Dokumentenauswertung!J$10=\"\",\"\",IF(Dokumentenauswertung!J$24=Dokumentenauswertung!$B$24,Dokumentenauswertung!$D24,IF(Dokumentenauswertung!J$24=Dokumentenauswertung!$B$25,Dokumentenauswertung!$C$24,0)))","v":""},{"$f":"IF(Dokumentenauswertung!K$10=\"\",\"\",IF(Dokumentenauswertung!K$24=Dokumentenauswertung!$B$24,Dokumentenauswertung!$D24,IF(Dokumentenauswertung!K$24=Dokumentenauswertung!$B$25,Dokumentenauswertung!$C$24,0)))","v":""},{"$f":"IF(Dokumentenauswertung!L$10=\"\",\"\",IF(Dokumentenauswertung!L$24=Dokumentenauswertung!$B$24,Dokumentenauswertung!$D24,IF(Dokumentenauswertung!L$24=Dokumentenauswertung!$B$25,Dokumentenauswertung!$C$24,0)))","v":""},{"$f":"IF(Dokumentenauswertung!M$10=\"\",\"\",IF(Dokumentenauswertung!M$24=Dokumentenauswertung!$B$24,Dokumentenauswertung!$D24,IF(Dokumentenauswertung!M$24=Dokumentenauswertung!$B$25,Dokumentenauswertung!$C$24,0)))","v":""},{"$f":"IF(Dokumentenauswertung!N$10=\"\",\"\",IF(Dokumentenauswertung!N$24=Dokumentenauswertung!$B$24,Dokumentenauswertung!$D24,IF(Dokumentenauswertung!N$24=Dokumentenauswertung!$B$25,Dokumentenauswertung!$C$24,0)))","v":""},{"$f":"IF(Dokumentenauswertung!O$10=\"\",\"\",IF(Dokumentenauswertung!O$24=Dokumentenauswertung!$B$24,Dokumentenauswertung!$D24,IF(Dokumentenauswertung!O$24=Dokumentenauswertung!$B$25,Dokumentenauswertung!$C$24,0)))","v":""},{"$f":"IF(Dokumentenauswertung!P$10=\"\",\"\",IF(Dokumentenauswertung!P$24=Dokumentenauswertung!$B$24,Dokumentenauswertung!$D24,IF(Dokumentenauswertung!P$24=Dokumentenauswertung!$B$25,Dokumentenauswertung!$C$24,0)))","v":""},{"$f":"IF(Dokumentenauswertung!Q$10=\"\",\"\",IF(Dokumentenauswertung!Q$24=Dokumentenauswertung!$B$24,Dokumentenauswertung!$D24,IF(Dokumentenauswertung!Q$24=Dokumentenauswertung!$B$25,Dokumentenauswertung!$C$24,0)))","v":""},{"$f":"IF(Dokumentenauswertung!R$10=\"\",\"\",IF(Dokumentenauswertung!R$24=Dokumentenauswertung!$B$24,Dokumentenauswertung!$D24,IF(Dokumentenauswertung!R$24=Dokumentenauswertung!$B$25,Dokumentenauswertung!$C$24,0)))","v":""},{"$f":"IF(Dokumentenauswertung!S$10=\"\",\"\",IF(Dokumentenauswertung!S$24=Dokumentenauswertung!$B$24,Dokumentenauswertung!$D24,IF(Dokumentenauswertung!S$24=Dokumentenauswertung!$B$25,Dokumentenauswertung!$C$24,0)))","v":""},{"$f":"IF(Dokumentenauswertung!T$10=\"\",\"\",IF(Dokumentenauswertung!T$24=Dokumentenauswertung!$B$24,Dokumentenauswertung!$D24,IF(Dokumentenauswertung!T$24=Dokumentenauswertung!$B$25,Dokumentenauswertung!$C$24,0)))","v":""},{"$f":"IF(Dokumentenauswertung!U$10=\"\",\"\",IF(Dokumentenauswertung!U$24=Dokumentenauswertung!$B$24,Dokumentenauswertung!$D24,IF(Dokumentenauswertung!U$24=Dokumentenauswertung!$B$25,Dokumentenauswertung!$C$24,0)))","v":""},{"$f":"IF(Dokumentenauswertung!V$10=\"\",\"\",IF(Dokumentenauswertung!V$24=Dokumentenauswertung!$B$24,Dokumentenauswertung!$D24,IF(Dokumentenauswertung!V$24=Dokumentenauswertung!$B$25,Dokumentenauswertung!$C$24,0)))","v":""},{"$f":"IF(Dokumentenauswertung!W$10=\"\",\"\",IF(Dokumentenauswertung!W$24=Dokumentenauswertung!$B$24,Dokumentenauswertung!$D24,IF(Dokumentenauswertung!W$24=Dokumentenauswertung!$B$25,Dokumentenauswertung!$C$24,0)))","v":""},{"$f":"IF(Dokumentenauswertung!X$10=\"\",\"\",IF(Dokumentenauswertung!X$24=Dokumentenauswertung!$B$24,Dokumentenauswertung!$D24,IF(Dokumentenauswertung!X$24=Dokumentenauswertung!$B$25,Dokumentenauswertung!$C$24,0)))","v":""},{"$f":"IF(Dokumentenauswertung!Y$10=\"\",\"\",IF(Dokumentenauswertung!Y$24=Dokumentenauswertung!$B$24,Dokumentenauswertung!$D24,IF(Dokumentenauswertung!Y$24=Dokumentenauswertung!$B$25,Dokumentenauswertung!$C$24,0)))","v":""},{"$f":"IF(Dokumentenauswertung!Z$10=\"\",\"\",IF(Dokumentenauswertung!Z$24=Dokumentenauswertung!$B$24,Dokumentenauswertung!$D24,IF(Dokumentenauswertung!Z$24=Dokumentenauswertung!$B$25,Dokumentenauswertung!$C$24,0)))","v":""},{"$f":"IF(Dokumentenauswertung!AA$10=\"\",\"\",IF(Dokumentenauswertung!AA$24=Dokumentenauswertung!$B$24,Dokumentenauswertung!$D24,IF(Dokumentenauswertung!AA$24=Dokumentenauswertung!$B$25,Dokumentenauswertung!$C$24,0)))","v":""},{"$f":"IF(Dokumentenauswertung!AB$10=\"\",\"\",IF(Dokumentenauswertung!AB$24=Dokumentenauswertung!$B$24,Dokumentenauswertung!$D24,IF(Dokumentenauswertung!AB$24=Dokumentenauswertung!$B$25,Dokumentenauswertung!$C$24,0)))","v":""},{"$f":"IF(Dokumentenauswertung!AC$10=\"\",\"\",IF(Dokumentenauswertung!AC$24=Dokumentenauswertung!$B$24,Dokumentenauswertung!$D24,IF(Dokumentenauswertung!AC$24=Dokumentenauswertung!$B$25,Dokumentenauswertung!$C$24,0)))","v":""},{"$f":"IF(Dokumentenauswertung!AD$10=\"\",\"\",IF(Dokumentenauswertung!AD$24=Dokumentenauswertung!$B$24,Dokumentenauswertung!$D24,IF(Dokumentenauswertung!AD$24=Dokumentenauswertung!$B$25,Dokumentenauswertung!$C$24,0)))","v":""},{"$f":"IF(Dokumentenauswertung!AE$10=\"\",\"\",IF(Dokumentenauswertung!AE$24=Dokumentenauswertung!$B$24,Dokumentenauswertung!$D24,IF(Dokumentenauswertung!AE$24=Dokumentenauswertung!$B$25,Dokumentenauswertung!$C$24,0)))","v":""},{"$f":"IF(Dokumentenauswertung!AF$10=\"\",\"\",IF(Dokumentenauswertung!AF$24=Dokumentenauswertung!$B$24,Dokumentenauswertung!$D24,IF(Dokumentenauswertung!AF$24=Dokumentenauswertung!$B$25,Dokumentenauswertung!$C$24,0)))","v":""},{"$f":"IF(Dokumentenauswertung!AG$10=\"\",\"\",IF(Dokumentenauswertung!AG$24=Dokumentenauswertung!$B$24,Dokumentenauswertung!$D24,IF(Dokumentenauswertung!AG$24=Dokumentenauswertung!$B$25,Dokumentenauswertung!$C$24,0)))","v":""},{"$f":"IF(Dokumentenauswertung!AH$10=\"\",\"\",IF(Dokumentenauswertung!AH$24=Dokumentenauswertung!$B$24,Dokumentenauswertung!$D24,IF(Dokumentenauswertung!AH$24=Dokumentenauswertung!$B$25,Dokumentenauswertung!$C$24,0)))","v":""},{"$f":"IF(Dokumentenauswertung!AI$10=\"\",\"\",IF(Dokumentenauswertung!AI$24=Dokumentenauswertung!$B$24,Dokumentenauswertung!$D24,IF(Dokumentenauswertung!AI$24=Dokumentenauswertung!$B$25,Dokumentenauswertung!$C$24,0)))","v":""},{"$f":"IF(Dokumentenauswertung!AJ$10=\"\",\"\",IF(Dokumentenauswertung!AJ$24=Dokumentenauswertung!$B$24,Dokumentenauswertung!$D24,IF(Dokumentenauswertung!AJ$24=Dokumentenauswertung!$B$25,Dokumentenauswertung!$C$24,0)))","v":""},{"$f":"IF(Dokumentenauswertung!AK$10=\"\",\"\",IF(Dokumentenauswertung!AK$24=Dokumentenauswertung!$B$24,Dokumentenauswertung!$D24,IF(Dokumentenauswertung!AK$24=Dokumentenauswertung!$B$25,Dokumentenauswertung!$C$24,0)))","v":""}]
[null,null,{"$f":"Dokumentenauswertung!$A25","v":"A7.2"},{"$f":"IF(Dokumentenauswertung!E$10=\"\",\"\",IF(Dokumentenauswertung!E$25=Dokumentenauswertung!E$24,0,IF(Dokumentenauswertung!E$25=Dokumentenauswertung!$B$25,Dokumentenauswertung!$D$25,IF(Dokumentenauswertung!E$25=Dokumentenauswertung!$B$24,Dokumentenauswertung!$C$25,0))))","v":""},{"$f":"IF(Dokumentenauswertung!F$10=\"\",\"\",IF(Dokumentenauswertung!F$25=Dokumentenauswertung!F$24,0,IF(Dokumentenauswertung!F$25=Dokumentenauswertung!$B$25,Dokumentenauswertung!$D$25,IF(Dokumentenauswertung!F$25=Dokumentenauswertung!$B$24,Dokumentenauswertung!$C$25,0))))","v":""},{"$f":"IF(Dokumentenauswertung!G$10=\"\",\"\",IF(Dokumentenauswertung!G$25=Dokumentenauswertung!G$24,0,IF(Dokumentenauswertung!G$25=Dokumentenauswertung!$B$25,Dokumentenauswertung!$D$25,IF(Dokumentenauswertung!G$25=Dokumentenauswertung!$B$24,Dokumentenauswertung!$C$25,0))))","v":""},{"$f":"IF(Dokumentenauswertung!H$10=\"\",\"\",IF(Dokumentenauswertung!H$25=Dokumentenauswertung!H$24,0,IF(Dokumentenauswertung!H$25=Dokumentenauswertung!$B$25,Dokumentenauswertung!$D$25,IF(Dokumentenauswertung!H$25=Dokumentenauswertung!$B$24,Dokumentenauswertung!$C$25,0))))","v":""},{"$f":"IF(Dokumentenauswertung!I$10=\"\",\"\",IF(Dokumentenauswertung!I$25=Dokumentenauswertung!I$24,0,IF(Dokumentenauswertung!I$25=Dokumentenauswertung!$B$25,Dokumentenauswertung!$D$25,IF(Dokumentenauswertung!I$25=Dokumentenauswertung!$B$24,Dokumentenauswertung!$C$25,0))))","v":""},{"$f":"IF(Dokumentenauswertung!J$10=\"\",\"\",IF(Dokumentenauswertung!J$25=Dokumentenauswertung!J$24,0,IF(Dokumentenauswertung!J$25=Dokumentenauswertung!$B$25,Dokumentenauswertung!$D$25,IF(Dokumentenauswertung!J$25=Dokumentenauswertung!$B$24,Dokumentenauswertung!$C$25,0))))","v":""},{"$f":"IF(Dokumentenauswertung!K$10=\"\",\"\",IF(Dokumentenauswertung!K$25=Dokumentenauswertung!K$24,0,IF(Dokumentenauswertung!K$25=Dokumentenauswertung!$B$25,Dokumentenauswertung!$D$25,IF(Dokumentenauswertung!K$25=Dokumentenauswertung!$B$24,Dokumentenauswertung!$C$25,0))))","v":""},{"$f":"IF(Dokumentenauswertung!L$10=\"\",\"\",IF(Dokumentenauswertung!L$25=Dokumentenauswertung!L$24,0,IF(Dokumentenauswertung!L$25=Dokumentenauswertung!$B$25,Dokumentenauswertung!$D$25,IF(Dokumentenauswertung!L$25=Dokumentenauswertung!$B$24,Dokumentenauswertung!$C$25,0))))","v":""},{"$f":"IF(Dokumentenauswertung!M$10=\"\",\"\",IF(Dokumentenauswertung!M$25=Dokumentenauswertung!M$24,0,IF(Dokumentenauswertung!M$25=Dokumentenauswertung!$B$25,Dokumentenauswertung!$D$25,IF(Dokumentenauswertung!M$25=Dokumentenauswertung!$B$24,Dokumentenauswertung!$C$25,0))))","v":""},{"$f":"IF(Dokumentenauswertung!N$10=\"\",\"\",IF(Dokumentenauswertung!N$25=Dokumentenauswertung!N$24,0,IF(Dokumentenauswertung!N$25=Dokumentenauswertung!$B$25,Dokumentenauswertung!$D$25,IF(Dokumentenauswertung!N$25=Dokumentenauswertung!$B$24,Dokumentenauswertung!$C$25,0))))","v":""},{"$f":"IF(Dokumentenauswertung!O$10=\"\",\"\",IF(Dokumentenauswertung!O$25=Dokumentenauswertung!O$24,0,IF(Dokumentenauswertung!O$25=Dokumentenauswertung!$B$25,Dokumentenauswertung!$D$25,IF(Dokumentenauswertung!O$25=Dokumentenauswertung!$B$24,Dokumentenauswertung!$C$25,0))))","v":""},{"$f":"IF(Dokumentenauswertung!P$10=\"\",\"\",IF(Dokumentenauswertung!P$25=Dokumentenauswertung!P$24,0,IF(Dokumentenauswertung!P$25=Dokumentenauswertung!$B$25,Dokumentenauswertung!$D$25,IF(Dokumentenauswertung!P$25=Dokumentenauswertung!$B$24,Dokumentenauswertung!$C$25,0))))","v":""},{"$f":"IF(Dokumentenauswertung!Q$10=\"\",\"\",IF(Dokumentenauswertung!Q$25=Dokumentenauswertung!Q$24,0,IF(Dokumentenauswertung!Q$25=Dokumentenauswertung!$B$25,Dokumentenauswertung!$D$25,IF(Dokumentenauswertung!Q$25=Dokumentenauswertung!$B$24,Dokumentenauswertung!$C$25,0))))","v":""},{"$f":"IF(Dokumentenauswertung!R$10=\"\",\"\",IF(Dokumentenauswertung!R$25=Dokumentenauswertung!R$24,0,IF(Dokumentenauswertung!R$25=Dokumentenauswertung!$B$25,Dokumentenauswertung!$D$25,IF(Dokumentenauswertung!R$25=Dokumentenauswertung!$B$24,Dokumentenauswertung!$C$25,0))))","v":""},{"$f":"IF(Dokumentenauswertung!S$10=\"\",\"\",IF(Dokumentenauswertung!S$25=Dokumentenauswertung!S$24,0,IF(Dokumentenauswertung!S$25=Dokumentenauswertung!$B$25,Dokumentenauswertung!$D$25,IF(Dokumentenauswertung!S$25=Dokumentenauswertung!$B$24,Dokumentenauswertung!$C$25,0))))","v":""},{"$f":"IF(Dokumentenauswertung!T$10=\"\",\"\",IF(Dokumentenauswertung!T$25=Dokumentenauswertung!T$24,0,IF(Dokumentenauswertung!T$25=Dokumentenauswertung!$B$25,Dokumentenauswertung!$D$25,IF(Dokumentenauswertung!T$25=Dokumentenauswertung!$B$24,Dokumentenauswertung!$C$25,0))))","v":""},{"$f":"IF(Dokumentenauswertung!U$10=\"\",\"\",IF(Dokumentenauswertung!U$25=Dokumentenauswertung!U$24,0,IF(Dokumentenauswertung!U$25=Dokumentenauswertung!$B$25,Dokumentenauswertung!$D$25,IF(Dokumentenauswertung!U$25=Dokumentenauswertung!$B$24,Dokumentenauswertung!$C$25,0))))","v":""},{"$f":"IF(Dokumentenauswertung!V$10=\"\",\"\",IF(Dokumentenauswertung!V$25=Dokumentenauswertung!V$24,0,IF(Dokumentenauswertung!V$25=Dokumentenauswertung!$B$25,Dokumentenauswertung!$D$25,IF(Dokumentenauswertung!V$25=Dokumentenauswertung!$B$24,Dokumentenauswertung!$C$25,0))))","v":""},{"$f":"IF(Dokumentenauswertung!W$10=\"\",\"\",IF(Dokumentenauswertung!W$25=Dokumentenauswertung!W$24,0,IF(Dokumentenauswertung!W$25=Dokumentenauswertung!$B$25,Dokumentenauswertung!$D$25,IF(Dokumentenauswertung!W$25=Dokumentenauswertung!$B$24,Dokumentenauswertung!$C$25,0))))","v":""},{"$f":"IF(Dokumentenauswertung!X$10=\"\",\"\",IF(Dokumentenauswertung!X$25=Dokumentenauswertung!X$24,0,IF(Dokumentenauswertung!X$25=Dokumentenauswertung!$B$25,Dokumentenauswertung!$D$25,IF(Dokumentenauswertung!X$25=Dokumentenauswertung!$B$24,Dokumentenauswertung!$C$25,0))))","v":""},{"$f":"IF(Dokumentenauswertung!Y$10=\"\",\"\",IF(Dokumentenauswertung!Y$25=Dokumentenauswertung!Y$24,0,IF(Dokumentenauswertung!Y$25=Dokumentenauswertung!$B$25,Dokumentenauswertung!$D$25,IF(Dokumentenauswertung!Y$25=Dokumentenauswertung!$B$24,Dokumentenauswertung!$C$25,0))))","v":""},{"$f":"IF(Dokumentenauswertung!Z$10=\"\",\"\",IF(Dokumentenauswertung!Z$25=Dokumentenauswertung!Z$24,0,IF(Dokumentenauswertung!Z$25=Dokumentenauswertung!$B$25,Dokumentenauswertung!$D$25,IF(Dokumentenauswertung!Z$25=Dokumentenauswertung!$B$24,Dokumentenauswertung!$C$25,0))))","v":""},{"$f":"IF(Dokumentenauswertung!AA$10=\"\",\"\",IF(Dokumentenauswertung!AA$25=Dokumentenauswertung!AA$24,0,IF(Dokumentenauswertung!AA$25=Dokumentenauswertung!$B$25,Dokumentenauswertung!$D$25,IF(Dokumentenauswertung!AA$25=Dokumentenauswertung!$B$24,Dokumentenauswertung!$C$25,0))))","v":""},{"$f":"IF(Dokumentenauswertung!AB$10=\"\",\"\",IF(Dokumentenauswertung!AB$25=Dokumentenauswertung!AB$24,0,IF(Dokumentenauswertung!AB$25=Dokumentenauswertung!$B$25,Dokumentenauswertung!$D$25,IF(Dokumentenauswertung!AB$25=Dokumentenauswertung!$B$24,Dokumentenauswertung!$C$25,0))))","v":""},{"$f":"IF(Dokumentenauswertung!AC$10=\"\",\"\",IF(Dokumentenauswertung!AC$25=Dokumentenauswertung!AC$24,0,IF(Dokumentenauswertung!AC$25=Dokumentenauswertung!$B$25,Dokumentenauswertung!$D$25,IF(Dokumentenauswertung!AC$25=Dokumentenauswertung!$B$24,Dokumentenauswertung!$C$25,0))))","v":""},{"$f":"IF(Dokumentenauswertung!AD$10=\"\",\"\",IF(Dokumentenauswertung!AD$25=Dokumentenauswertung!AD$24,0,IF(Dokumentenauswertung!AD$25=Dokumentenauswertung!$B$25,Dokumentenauswertung!$D$25,IF(Dokumentenauswertung!AD$25=Dokumentenauswertung!$B$24,Dokumentenauswertung!$C$25,0))))","v":""},{"$f":"IF(Dokumentenauswertung!AE$10=\"\",\"\",IF(Dokumentenauswertung!AE$25=Dokumentenauswertung!AE$24,0,IF(Dokumentenauswertung!AE$25=Dokumentenauswertung!$B$25,Dokumentenauswertung!$D$25,IF(Dokumentenauswertung!AE$25=Dokumentenauswertung!$B$24,Dokumentenauswertung!$C$25,0))))","v":""},{"$f":"IF(Dokumentenauswertung!AF$10=\"\",\"\",IF(Dokumentenauswertung!AF$25=Dokumentenauswertung!AF$24,0,IF(Dokumentenauswertung!AF$25=Dokumentenauswertung!$B$25,Dokumentenauswertung!$D$25,IF(Dokumentenauswertung!AF$25=Dokumentenauswertung!$B$24,Dokumentenauswertung!$C$25,0))))","v":""},{"$f":"IF(Dokumentenauswertung!AG$10=\"\",\"\",IF(Dokumentenauswertung!AG$25=Dokumentenauswertung!AG$24,0,IF(Dokumentenauswertung!AG$25=Dokumentenauswertung!$B$25,Dokumentenauswertung!$D$25,IF(Dokumentenauswertung!AG$25=Dokumentenauswertung!$B$24,Dokumentenauswertung!$C$25,0))))","v":""},{"$f":"IF(Dokumentenauswertung!AH$10=\"\",\"\",IF(Dokumentenauswertung!AH$25=Dokumentenauswertung!AH$24,0,IF(Dokumentenauswertung!AH$25=Dokumentenauswertung!$B$25,Dokumentenauswertung!$D$25,IF(Dokumentenauswertung!AH$25=Dokumentenauswertung!$B$24,Dokumentenauswertung!$C$25,0))))","v":""},{"$f":"IF(Dokumentenauswertung!AI$10=\"\",\"\",IF(Dokumentenauswertung!AI$25=Dokumentenauswertung!AI$24,0,IF(Dokumentenauswertung!AI$25=Dokumentenauswertung!$B$25,Dokumentenauswertung!$D$25,IF(Dokumentenauswertung!AI$25=Dokumentenauswertung!$B$24,Dokumentenauswertung!$C$25,0))))","v":""},{"$f":"IF(Dokumentenauswertung!AJ$10=\"\",\"\",IF(Dokumentenauswertung!AJ$25=Dokumentenauswertung!AJ$24,0,IF(Dokumentenauswertung!AJ$25=Dokumentenauswertung!$B$25,Dokumentenauswertung!$D$25,IF(Dokumentenauswertung!AJ$25=Dokumentenauswertung!$B$24,Dokumentenauswertung!$C$25,0))))","v":""},{"$f":"IF(Dokumentenauswertung!AK$10=\"\",\"\",IF(Dokumentenauswertung!AK$25=Dokumentenauswertung!AK$24,0,IF(Dokumentenauswertung!AK$25=Dokumentenauswertung!$B$25,Dokumentenauswertung!$D$25,IF(Dokumentenauswertung!AK$25=Dokumentenauswertung!$B$24,Dokumentenauswertung!$C$25,0))))","v":""}]
[null,null,{"$f":"Dokumentenauswertung!$A26","v":"A8.1"},{"$f":"IF(Dokumentenauswertung!E$10=\"\",\"\",IF(Dokumentenauswertung!E$26=Dokumentenauswertung!$B$26,Dokumentenauswertung!$D26,IF(Dokumentenauswertung!E$26=Dokumentenauswertung!$B$27,Dokumentenauswertung!$C$26,0)))","v":""},{"$f":"IF(Dokumentenauswertung!F$10=\"\",\"\",IF(Dokumentenauswertung!F$26=Dokumentenauswertung!$B$26,Dokumentenauswertung!$D26,IF(Dokumentenauswertung!F$26=Dokumentenauswertung!$B$27,Dokumentenauswertung!$C$26,0)))","v":""},{"$f":"IF(Dokumentenauswertung!G$10=\"\",\"\",IF(Dokumentenauswertung!G$26=Dokumentenauswertung!$B$26,Dokumentenauswertung!$D26,IF(Dokumentenauswertung!G$26=Dokumentenauswertung!$B$27,Dokumentenauswertung!$C$26,0)))","v":""},{"$f":"IF(Dokumentenauswertung!H$10=\"\",\"\",IF(Dokumentenauswertung!H$26=Dokumentenauswertung!$B$26,Dokumentenauswertung!$D26,IF(Dokumentenauswertung!H$26=Dokumentenauswertung!$B$27,Dokumentenauswertung!$C$26,0)))","v":""},{"$f":"IF(Dokumentenauswertung!I$10=\"\",\"\",IF(Dokumentenauswertung!I$26=Dokumentenauswertung!$B$26,Dokumentenauswertung!$D26,IF(Dokumentenauswertung!I$26=Dokumentenauswertung!$B$27,Dokumentenauswertung!$C$26,0)))","v":""},{"$f":"IF(Dokumentenauswertung!J$10=\"\",\"\",IF(Dokumentenauswertung!J$26=Dokumentenauswertung!$B$26,Dokumentenauswertung!$D26,IF(Dokumentenauswertung!J$26=Dokumentenauswertung!$B$27,Dokumentenauswertung!$C$26,0)))","v":""},{"$f":"IF(Dokumentenauswertung!K$10=\"\",\"\",IF(Dokumentenauswertung!K$26=Dokumentenauswertung!$B$26,Dokumentenauswertung!$D26,IF(Dokumentenauswertung!K$26=Dokumentenauswertung!$B$27,Dokumentenauswertung!$C$26,0)))","v":""},{"$f":"IF(Dokumentenauswertung!L$10=\"\",\"\",IF(Dokumentenauswertung!L$26=Dokumentenauswertung!$B$26,Dokumentenauswertung!$D26,IF(Dokumentenauswertung!L$26=Dokumentenauswertung!$B$27,Dokumentenauswertung!$C$26,0)))","v":""},{"$f":"IF(Dokumentenauswertung!M$10=\"\",\"\",IF(Dokumentenauswertung!M$26=Dokumentenauswertung!$B$26,Dokumentenauswertung!$D26,IF(Dokumentenauswertung!M$26=Dokumentenauswertung!$B$27,Dokumentenauswertung!$C$26,0)))","v":""},{"$f":"IF(Dokumentenauswertung!N$10=\"\",\"\",IF(Dokumentenauswertung!N$26=Dokumentenauswertung!$B$26,Dokumentenauswertung!$D26,IF(Dokumentenauswertung!N$26=Dokumentenauswertung!$B$27,Dokumentenauswertung!$C$26,0)))","v":""},{"$f":"IF(Dokumentenauswertung!O$10=\"\",\"\",IF(Dokumentenauswertung!O$26=Dokumentenauswertung!$B$26,Dokumentenauswertung!$D26,IF(Dokumentenauswertung!O$26=Dokumentenauswertung!$B$27,Dokumentenauswertung!$C$26,0)))","v":""},{"$f":"IF(Dokumentenauswertung!P$10=\"\",\"\",IF(Dokumentenauswertung!P$26=Dokumentenauswertung!$B$26,Dokumentenauswertung!$D26,IF(Dokumentenauswertung!P$26=Dokumentenauswertung!$B$27,Dokumentenauswertung!$C$26,0)))","v":""},{"$f":"IF(Dokumentenauswertung!Q$10=\"\",\"\",IF(Dokumentenauswertung!Q$26=Dokumentenauswertung!$B$26,Dokumentenauswertung!$D26,IF(Dokumentenauswertung!Q$26=Dokumentenauswertung!$B$27,Dokumentenauswertung!$C$26,0)))","v":""},{"$f":"IF(Dokumentenauswertung!R$10=\"\",\"\",IF(Dokumentenauswertung!R$26=Dokumentenauswertung!$B$26,Dokumentenauswertung!$D26,IF(Dokumentenauswertung!R$26=Dokumentenauswertung!$B$27,Dokumentenauswertung!$C$26,0)))","v":""},{"$f":"IF(Dokumentenauswertung!S$10=\"\",\"\",IF(Dokumentenauswertung!S$26=Dokumentenauswertung!$B$26,Dokumentenauswertung!$D26,IF(Dokumentenauswertung!S$26=Dokumentenauswertung!$B$27,Dokumentenauswertung!$C$26,0)))","v":""},{"$f":"IF(Dokumentenauswertung!T$10=\"\",\"\",IF(Dokumentenauswertung!T$26=Dokumentenauswertung!$B$26,Dokumentenauswertung!$D26,IF(Dokumentenauswertung!T$26=Dokumentenauswertung!$B$27,Dokumentenauswertung!$C$26,0)))","v":""},{"$f":"IF(Dokumentenauswertung!U$10=\"\",\"\",IF(Dokumentenauswertung!U$26=Dokumentenauswertung!$B$26,Dokumentenauswertung!$D26,IF(Dokumentenauswertung!U$26=Dokumentenauswertung!$B$27,Dokumentenauswertung!$C$26,0)))","v":""},{"$f":"IF(Dokumentenauswertung!V$10=\"\",\"\",IF(Dokumentenauswertung!V$26=Dokumentenauswertung!$B$26,Dokumentenauswertung!$D26,IF(Dokumentenauswertung!V$26=Dokumentenauswertung!$B$27,Dokumentenauswertung!$C$26,0)))","v":""},{"$f":"IF(Dokumentenauswertung!W$10=\"\",\"\",IF(Dokumentenauswertung!W$26=Dokumentenauswertung!$B$26,Dokumentenauswertung!$D26,IF(Dokumentenauswertung!W$26=Dokumentenauswertung!$B$27,Dokumentenauswertung!$C$26,0)))","v":""},{"$f":"IF(Dokumentenauswertung!X$10=\"\",\"\",IF(Dokumentenauswertung!X$26=Dokumentenauswertung!$B$26,Dokumentenauswertung!$D26,IF(Dokumentenauswertung!X$26=Dokumentenauswertung!$B$27,Dokumentenauswertung!$C$26,0)))","v":""},{"$f":"IF(Dokumentenauswertung!Y$10=\"\",\"\",IF(Dokumentenauswertung!Y$26=Dokumentenauswertung!$B$26,Dokumentenauswertung!$D26,IF(Dokumentenauswertung!Y$26=Dokumentenauswertung!$B$27,Dokumentenauswertung!$C$26,0)))","v":""},{"$f":"IF(Dokumentenauswertung!Z$10=\"\",\"\",IF(Dokumentenauswertung!Z$26=Dokumentenauswertung!$B$26,Dokumentenauswertung!$D26,IF(Dokumentenauswertung!Z$26=Dokumentenauswertung!$B$27,Dokumentenauswertung!$C$26,0)))","v":""},{"$f":"IF(Dokumentenauswertung!AA$10=\"\",\"\",IF(Dokumentenauswertung!AA$26=Dokumentenauswertung!$B$26,Dokumentenauswertung!$D26,IF(Dokumentenauswertung!AA$26=Dokumentenauswertung!$B$27,Dokumentenauswertung!$C$26,0)))","v":""},{"$f":"IF(Dokumentenauswertung!AB$10=\"\",\"\",IF(Dokumentenauswertung!AB$26=Dokumentenauswertung!$B$26,Dokumentenauswertung!$D26,IF(Dokumentenauswertung!AB$26=Dokumentenauswertung!$B$27,Dokumentenauswertung!$C$26,0)))","v":""},{"$f":"IF(Dokumentenauswertung!AC$10=\"\",\"\",IF(Dokumentenauswertung!AC$26=Dokumentenauswertung!$B$26,Dokumentenauswertung!$D26,IF(Dokumentenauswertung!AC$26=Dokumentenauswertung!$B$27,Dokumentenauswertung!$C$26,0)))","v":""},{"$f":"IF(Dokumentenauswertung!AD$10=\"\",\"\",IF(Dokumentenauswertung!AD$26=Dokumentenauswertung!$B$26,Dokumentenauswertung!$D26,IF(Dokumentenauswertung!AD$26=Dokumentenauswertung!$B$27,Dokumentenauswertung!$C$26,0)))","v":""},{"$f":"IF(Dokumentenauswertung!AE$10=\"\",\"\",IF(Dokumentenauswertung!AE$26=Dokumentenauswertung!$B$26,Dokumentenauswertung!$D26,IF(Dokumentenauswertung!AE$26=Dokumentenauswertung!$B$27,Dokumentenauswertung!$C$26,0)))","v":""},{"$f":"IF(Dokumentenauswertung!AF$10=\"\",\"\",IF(Dokumentenauswertung!AF$26=Dokumentenauswertung!$B$26,Dokumentenauswertung!$D26,IF(Dokumentenauswertung!AF$26=Dokumentenauswertung!$B$27,Dokumentenauswertung!$C$26,0)))","v":""},{"$f":"IF(Dokumentenauswertung!AG$10=\"\",\"\",IF(Dokumentenauswertung!AG$26=Dokumentenauswertung!$B$26,Dokumentenauswertung!$D26,IF(Dokumentenauswertung!AG$26=Dokumentenauswertung!$B$27,Dokumentenauswertung!$C$26,0)))","v":""},{"$f":"IF(Dokumentenauswertung!AH$10=\"\",\"\",IF(Dokumentenauswertung!AH$26=Dokumentenauswertung!$B$26,Dokumentenauswertung!$D26,IF(Dokumentenauswertung!AH$26=Dokumentenauswertung!$B$27,Dokumentenauswertung!$C$26,0)))","v":""},{"$f":"IF(Dokumentenauswertung!AI$10=\"\",\"\",IF(Dokumentenauswertung!AI$26=Dokumentenauswertung!$B$26,Dokumentenauswertung!$D26,IF(Dokumentenauswertung!AI$26=Dokumentenauswertung!$B$27,Dokumentenauswertung!$C$26,0)))","v":""},{"$f":"IF(Dokumentenauswertung!AJ$10=\"\",\"\",IF(Dokumentenauswertung!AJ$26=Dokumentenauswertung!$B$26,Dokumentenauswertung!$D26,IF(Dokumentenauswertung!AJ$26=Dokumentenauswertung!$B$27,Dokumentenauswertung!$C$26,0)))","v":""},{"$f":"IF(Dokumentenauswertung!AK$10=\"\",\"\",IF(Dokumentenauswertung!AK$26=Dokumentenauswertung!$B$26,Dokumentenauswertung!$D26,IF(Dokumentenauswertung!AK$26=Dokumentenauswertung!$B$27,Dokumentenauswertung!$C$26,0)))","v":""}]
[null,null,{"$f":"Dokumentenauswertung!$A27","v":"A8.2"},{"$f":"IF(Dokumentenauswertung!E$10=\"\",\"\",IF(Dokumentenauswertung!E$27=Dokumentenauswertung!E$26,0,IF(Dokumentenauswertung!E$27=Dokumentenauswertung!$B$27,Dokumentenauswertung!$D$27,IF(Dokumentenauswertung!E$27=Dokumentenauswertung!$B$26,Dokumentenauswertung!$C$27,0))))","v":""},{"$f":"IF(Dokumentenauswertung!F$10=\"\",\"\",IF(Dokumentenauswertung!F$27=Dokumentenauswertung!F$26,0,IF(Dokumentenauswertung!F$27=Dokumentenauswertung!$B$27,Dokumentenauswertung!$D$27,IF(Dokumentenauswertung!F$27=Dokumentenauswertung!$B$26,Dokumentenauswertung!$C$27,0))))","v":""},{"$f":"IF(Dokumentenauswertung!G$10=\"\",\"\",IF(Dokumentenauswertung!G$27=Dokumentenauswertung!G$26,0,IF(Dokumentenauswertung!G$27=Dokumentenauswertung!$B$27,Dokumentenauswertung!$D$27,IF(Dokumentenauswertung!G$27=Dokumentenauswertung!$B$26,Dokumentenauswertung!$C$27,0))))","v":""},{"$f":"IF(Dokumentenauswertung!H$10=\"\",\"\",IF(Dokumentenauswertung!H$27=Dokumentenauswertung!H$26,0,IF(Dokumentenauswertung!H$27=Dokumentenauswertung!$B$27,Dokumentenauswertung!$D$27,IF(Dokumentenauswertung!H$27=Dokumentenauswertung!$B$26,Dokumentenauswertung!$C$27,0))))","v":""},{"$f":"IF(Dokumentenauswertung!I$10=\"\",\"\",IF(Dokumentenauswertung!I$27=Dokumentenauswertung!I$26,0,IF(Dokumentenauswertung!I$27=Dokumentenauswertung!$B$27,Dokumentenauswertung!$D$27,IF(Dokumentenauswertung!I$27=Dokumentenauswertung!$B$26,Dokumentenauswertung!$C$27,0))))","v":""},{"$f":"IF(Dokumentenauswertung!J$10=\"\",\"\",IF(Dokumentenauswertung!J$27=Dokumentenauswertung!J$26,0,IF(Dokumentenauswertung!J$27=Dokumentenauswertung!$B$27,Dokumentenauswertung!$D$27,IF(Dokumentenauswertung!J$27=Dokumentenauswertung!$B$26,Dokumentenauswertung!$C$27,0))))","v":""},{"$f":"IF(Dokumentenauswertung!K$10=\"\",\"\",IF(Dokumentenauswertung!K$27=Dokumentenauswertung!K$26,0,IF(Dokumentenauswertung!K$27=Dokumentenauswertung!$B$27,Dokumentenauswertung!$D$27,IF(Dokumentenauswertung!K$27=Dokumentenauswertung!$B$26,Dokumentenauswertung!$C$27,0))))","v":""},{"$f":"IF(Dokumentenauswertung!L$10=\"\",\"\",IF(Dokumentenauswertung!L$27=Dokumentenauswertung!L$26,0,IF(Dokumentenauswertung!L$27=Dokumentenauswertung!$B$27,Dokumentenauswertung!$D$27,IF(Dokumentenauswertung!L$27=Dokumentenauswertung!$B$26,Dokumentenauswertung!$C$27,0))))","v":""},{"$f":"IF(Dokumentenauswertung!M$10=\"\",\"\",IF(Dokumentenauswertung!M$27=Dokumentenauswertung!M$26,0,IF(Dokumentenauswertung!M$27=Dokumentenauswertung!$B$27,Dokumentenauswertung!$D$27,IF(Dokumentenauswertung!M$27=Dokumentenauswertung!$B$26,Dokumentenauswertung!$C$27,0))))","v":""},{"$f":"IF(Dokumentenauswertung!N$10=\"\",\"\",IF(Dokumentenauswertung!N$27=Dokumentenauswertung!N$26,0,IF(Dokumentenauswertung!N$27=Dokumentenauswertung!$B$27,Dokumentenauswertung!$D$27,IF(Dokumentenauswertung!N$27=Dokumentenauswertung!$B$26,Dokumentenauswertung!$C$27,0))))","v":""},{"$f":"IF(Dokumentenauswertung!O$10=\"\",\"\",IF(Dokumentenauswertung!O$27=Dokumentenauswertung!O$26,0,IF(Dokumentenauswertung!O$27=Dokumentenauswertung!$B$27,Dokumentenauswertung!$D$27,IF(Dokumentenauswertung!O$27=Dokumentenauswertung!$B$26,Dokumentenauswertung!$C$27,0))))","v":""},{"$f":"IF(Dokumentenauswertung!P$10=\"\",\"\",IF(Dokumentenauswertung!P$27=Dokumentenauswertung!P$26,0,IF(Dokumentenauswertung!P$27=Dokumentenauswertung!$B$27,Dokumentenauswertung!$D$27,IF(Dokumentenauswertung!P$27=Dokumentenauswertung!$B$26,Dokumentenauswertung!$C$27,0))))","v":""},{"$f":"IF(Dokumentenauswertung!Q$10=\"\",\"\",IF(Dokumentenauswertung!Q$27=Dokumentenauswertung!Q$26,0,IF(Dokumentenauswertung!Q$27=Dokumentenauswertung!$B$27,Dokumentenauswertung!$D$27,IF(Dokumentenauswertung!Q$27=Dokumentenauswertung!$B$26,Dokumentenauswertung!$C$27,0))))","v":""},{"$f":"IF(Dokumentenauswertung!R$10=\"\",\"\",IF(Dokumentenauswertung!R$27=Dokumentenauswertung!R$26,0,IF(Dokumentenauswertung!R$27=Dokumentenauswertung!$B$27,Dokumentenauswertung!$D$27,IF(Dokumentenauswertung!R$27=Dokumentenauswertung!$B$26,Dokumentenauswertung!$C$27,0))))","v":""},{"$f":"IF(Dokumentenauswertung!S$10=\"\",\"\",IF(Dokumentenauswertung!S$27=Dokumentenauswertung!S$26,0,IF(Dokumentenauswertung!S$27=Dokumentenauswertung!$B$27,Dokumentenauswertung!$D$27,IF(Dokumentenauswertung!S$27=Dokumentenauswertung!$B$26,Dokumentenauswertung!$C$27,0))))","v":""},{"$f":"IF(Dokumentenauswertung!T$10=\"\",\"\",IF(Dokumentenauswertung!T$27=Dokumentenauswertung!T$26,0,IF(Dokumentenauswertung!T$27=Dokumentenauswertung!$B$27,Dokumentenauswertung!$D$27,IF(Dokumentenauswertung!T$27=Dokumentenauswertung!$B$26,Dokumentenauswertung!$C$27,0))))","v":""},{"$f":"IF(Dokumentenauswertung!U$10=\"\",\"\",IF(Dokumentenauswertung!U$27=Dokumentenauswertung!U$26,0,IF(Dokumentenauswertung!U$27=Dokumentenauswertung!$B$27,Dokumentenauswertung!$D$27,IF(Dokumentenauswertung!U$27=Dokumentenauswertung!$B$26,Dokumentenauswertung!$C$27,0))))","v":""},{"$f":"IF(Dokumentenauswertung!V$10=\"\",\"\",IF(Dokumentenauswertung!V$27=Dokumentenauswertung!V$26,0,IF(Dokumentenauswertung!V$27=Dokumentenauswertung!$B$27,Dokumentenauswertung!$D$27,IF(Dokumentenauswertung!V$27=Dokumentenauswertung!$B$26,Dokumentenauswertung!$C$27,0))))","v":""},{"$f":"IF(Dokumentenauswertung!W$10=\"\",\"\",IF(Dokumentenauswertung!W$27=Dokumentenauswertung!W$26,0,IF(Dokumentenauswertung!W$27=Dokumentenauswertung!$B$27,Dokumentenauswertung!$D$27,IF(Dokumentenauswertung!W$27=Dokumentenauswertung!$B$26,Dokumentenauswertung!$C$27,0))))","v":""},{"$f":"IF(Dokumentenauswertung!X$10=\"\",\"\",IF(Dokumentenauswertung!X$27=Dokumentenauswertung!X$26,0,IF(Dokumentenauswertung!X$27=Dokumentenauswertung!$B$27,Dokumentenauswertung!$D$27,IF(Dokumentenauswertung!X$27=Dokumentenauswertung!$B$26,Dokumentenauswertung!$C$27,0))))","v":""},{"$f":"IF(Dokumentenauswertung!Y$10=\"\",\"\",IF(Dokumentenauswertung!Y$27=Dokumentenauswertung!Y$26,0,IF(Dokumentenauswertung!Y$27=Dokumentenauswertung!$B$27,Dokumentenauswertung!$D$27,IF(Dokumentenauswertung!Y$27=Dokumentenauswertung!$B$26,Dokumentenauswertung!$C$27,0))))","v":""},{"$f":"IF(Dokumentenauswertung!Z$10=\"\",\"\",IF(Dokumentenauswertung!Z$27=Dokumentenauswertung!Z$26,0,IF(Dokumentenauswertung!Z$27=Dokumentenauswertung!$B$27,Dokumentenauswertung!$D$27,IF(Dokumentenauswertung!Z$27=Dokumentenauswertung!$B$26,Dokumentenauswertung!$C$27,0))))","v":""},{"$f":"IF(Dokumentenauswertung!AA$10=\"\",\"\",IF(Dokumentenauswertung!AA$27=Dokumentenauswertung!AA$26,0,IF(Dokumentenauswertung!AA$27=Dokumentenauswertung!$B$27,Dokumentenauswertung!$D$27,IF(Dokumentenauswertung!AA$27=Dokumentenauswertung!$B$26,Dokumentenauswertung!$C$27,0))))","v":""},{"$f":"IF(Dokumentenauswertung!AB$10=\"\",\"\",IF(Dokumentenauswertung!AB$27=Dokumentenauswertung!AB$26,0,IF(Dokumentenauswertung!AB$27=Dokumentenauswertung!$B$27,Dokumentenauswertung!$D$27,IF(Dokumentenauswertung!AB$27=Dokumentenauswertung!$B$26,Dokumentenauswertung!$C$27,0))))","v":""},{"$f":"IF(Dokumentenauswertung!AC$10=\"\",\"\",IF(Dokumentenauswertung!AC$27=Dokumentenauswertung!AC$26,0,IF(Dokumentenauswertung!AC$27=Dokumentenauswertung!$B$27,Dokumentenauswertung!$D$27,IF(Dokumentenauswertung!AC$27=Dokumentenauswertung!$B$26,Dokumentenauswertung!$C$27,0))))","v":""},{"$f":"IF(Dokumentenauswertung!AD$10=\"\",\"\",IF(Dokumentenauswertung!AD$27=Dokumentenauswertung!AD$26,0,IF(Dokumentenauswertung!AD$27=Dokumentenauswertung!$B$27,Dokumentenauswertung!$D$27,IF(Dokumentenauswertung!AD$27=Dokumentenauswertung!$B$26,Dokumentenauswertung!$C$27,0))))","v":""},{"$f":"IF(Dokumentenauswertung!AE$10=\"\",\"\",IF(Dokumentenauswertung!AE$27=Dokumentenauswertung!AE$26,0,IF(Dokumentenauswertung!AE$27=Dokumentenauswertung!$B$27,Dokumentenauswertung!$D$27,IF(Dokumentenauswertung!AE$27=Dokumentenauswertung!$B$26,Dokumentenauswertung!$C$27,0))))","v":""},{"$f":"IF(Dokumentenauswertung!AF$10=\"\",\"\",IF(Dokumentenauswertung!AF$27=Dokumentenauswertung!AF$26,0,IF(Dokumentenauswertung!AF$27=Dokumentenauswertung!$B$27,Dokumentenauswertung!$D$27,IF(Dokumentenauswertung!AF$27=Dokumentenauswertung!$B$26,Dokumentenauswertung!$C$27,0))))","v":""},{"$f":"IF(Dokumentenauswertung!AG$10=\"\",\"\",IF(Dokumentenauswertung!AG$27=Dokumentenauswertung!AG$26,0,IF(Dokumentenauswertung!AG$27=Dokumentenauswertung!$B$27,Dokumentenauswertung!$D$27,IF(Dokumentenauswertung!AG$27=Dokumentenauswertung!$B$26,Dokumentenauswertung!$C$27,0))))","v":""},{"$f":"IF(Dokumentenauswertung!AH$10=\"\",\"\",IF(Dokumentenauswertung!AH$27=Dokumentenauswertung!AH$26,0,IF(Dokumentenauswertung!AH$27=Dokumentenauswertung!$B$27,Dokumentenauswertung!$D$27,IF(Dokumentenauswertung!AH$27=Dokumentenauswertung!$B$26,Dokumentenauswertung!$C$27,0))))","v":""},{"$f":"IF(Dokumentenauswertung!AI$10=\"\",\"\",IF(Dokumentenauswertung!AI$27=Dokumentenauswertung!AI$26,0,IF(Dokumentenauswertung!AI$27=Dokumentenauswertung!$B$27,Dokumentenauswertung!$D$27,IF(Dokumentenauswertung!AI$27=Dokumentenauswertung!$B$26,Dokumentenauswertung!$C$27,0))))","v":""},{"$f":"IF(Dokumentenauswertung!AJ$10=\"\",\"\",IF(Dokumentenauswertung!AJ$27=Dokumentenauswertung!AJ$26,0,IF(Dokumentenauswertung!AJ$27=Dokumentenauswertung!$B$27,Dokumentenauswertung!$D$27,IF(Dokumentenauswertung!AJ$27=Dokumentenauswertung!$B$26,Dokumentenauswertung!$C$27,0))))","v":""},{"$f":"IF(Dokumentenauswertung!AK$10=\"\",\"\",IF(Dokumentenauswertung!AK$27=Dokumentenauswertung!AK$26,0,IF(Dokumentenauswertung!AK$27=Dokumentenauswertung!$B$27,Dokumentenauswertung!$D$27,IF(Dokumentenauswertung!AK$27=Dokumentenauswertung!$B$26,Dokumentenauswertung!$C$27,0))))","v":""}]
[null,null,{"$f":"Dokumentenauswertung!$A28","v":"A9"},{"$f":"IF(Dokumentenauswertung!E$10=\"\",\"\",IF(Dokumentenauswertung!$B28=Dokumentenauswertung!E28,Dokumentenauswertung!$C$28,0))","v":""},{"$f":"IF(Dokumentenauswertung!F$10=\"\",\"\",IF(Dokumentenauswertung!$B28=Dokumentenauswertung!F28,Dokumentenauswertung!$C$28,0))","v":""},{"$f":"IF(Dokumentenauswertung!G$10=\"\",\"\",IF(Dokumentenauswertung!$B28=Dokumentenauswertung!G28,Dokumentenauswertung!$C$28,0))","v":""},{"$f":"IF(Dokumentenauswertung!H$10=\"\",\"\",IF(Dokumentenauswertung!$B28=Dokumentenauswertung!H28,Dokumentenauswertung!$C$28,0))","v":""},{"$f":"IF(Dokumentenauswertung!I$10=\"\",\"\",IF(Dokumentenauswertung!$B28=Dokumentenauswertung!I28,Dokumentenauswertung!$C$28,0))","v":""},{"$f":"IF(Dokumentenauswertung!J$10=\"\",\"\",IF(Dokumentenauswertung!$B28=Dokumentenauswertung!J28,Dokumentenauswertung!$C$28,0))","v":""},{"$f":"IF(Dokumentenauswertung!K$10=\"\",\"\",IF(Dokumentenauswertung!$B28=Dokumentenauswertung!K28,Dokumentenauswertung!$C$28,0))","v":""},{"$f":"IF(Dokumentenauswertung!L$10=\"\",\"\",IF(Dokumentenauswertung!$B28=Dokumentenauswertung!L28,Dokumentenauswertung!$C$28,0))","v":""},{"$f":"IF(Dokumentenauswertung!M$10=\"\",\"\",IF(Dokumentenauswertung!$B28=Dokumentenauswertung!M28,Dokumentenauswertung!$C$28,0))","v":""},{"$f":"IF(Dokumentenauswertung!N$10=\"\",\"\",IF(Dokumentenauswertung!$B28=Dokumentenauswertung!N28,Dokumentenauswertung!$C$28,0))","v":""},{"$f":"IF(Dokumentenauswertung!O$10=\"\",\"\",IF(Dokumentenauswertung!$B28=Dokumentenauswertung!O28,Dokumentenauswertung!$C$28,0))","v":""},{"$f":"IF(Dokumentenauswertung!P$10=\"\",\"\",IF(Dokumentenauswertung!$B28=Dokumentenauswertung!P28,Dokumentenauswertung!$C$28,0))","v":""},{"$f":"IF(Dokumentenauswertung!Q$10=\"\",\"\",IF(Dokumentenauswertung!$B28=Dokumentenauswertung!Q28,Dokumentenauswertung!$C$28,0))","v":""},{"$f":"IF(Dokumentenauswertung!R$10=\"\",\"\",IF(Dokumentenauswertung!$B28=Dokumentenauswertung!R28,Dokumentenauswertung!$C$28,0))","v":""},{"$f":"IF(Dokumentenauswertung!S$10=\"\",\"\",IF(Dokumentenauswertung!$B28=Dokumentenauswertung!S28,Dokumentenauswertung!$C$28,0))","v":""},{"$f":"IF(Dokumentenauswertung!T$10=\"\",\"\",IF(Dokumentenauswertung!$B28=Dokumentenauswertung!T28,Dokumentenauswertung!$C$28,0))","v":""},{"$f":"IF(Dokumentenauswertung!U$10=\"\",\"\",IF(Dokumentenauswertung!$B28=Dokumentenauswertung!U28,Dokumentenauswertung!$C$28,0))","v":""},{"$f":"IF(Dokumentenauswertung!V$10=\"\",\"\",IF(Dokumentenauswertung!$B28=Dokumentenauswertung!V28,Dokumentenauswertung!$C$28,0))","v":""},{"$f":"IF(Dokumentenauswertung!W$10=\"\",\"\",IF(Dokumentenauswertung!$B28=Dokumentenauswertung!W28,Dokumentenauswertung!$C$28,0))","v":""},{"$f":"IF(Dokumentenauswertung!X$10=\"\",\"\",IF(Dokumentenauswertung!$B28=Dokumentenauswertung!X28,Dokumentenauswertung!$C$28,0))","v":""},{"$f":"IF(Dokumentenauswertung!Y$10=\"\",\"\",IF(Dokumentenauswertung!$B28=Dokumentenauswertung!Y28,Dokumentenauswertung!$C$28,0))","v":""},{"$f":"IF(Dokumentenauswertung!Z$10=\"\",\"\",IF(Dokumentenauswertung!$B28=Dokumentenauswertung!Z28,Dokumentenauswertung!$C$28,0))","v":""},{"$f":"IF(Dokumentenauswertung!AA$10=\"\",\"\",IF(Dokumentenauswertung!$B28=Dokumentenauswertung!AA28,Dokumentenauswertung!$C$28,0))","v":""},{"$f":"IF(Dokumentenauswertung!AB$10=\"\",\"\",IF(Dokumentenauswertung!$B28=Dokumentenauswertung!AB28,Dokumentenauswertung!$C$28,0))","v":""},{"$f":"IF(Dokumentenauswertung!AC$10=\"\",\"\",IF(Dokumentenauswertung!$B28=Dokumentenauswertung!AC28,Dokumentenauswertung!$C$28,0))","v":""},{"$f":"IF(Dokumentenauswertung!AD$10=\"\",\"\",IF(Dokumentenauswertung!$B28=Dokumentenauswertung!AD28,Dokumentenauswertung!$C$28,0))","v":""},{"$f":"IF(Dokumentenauswertung!AE$10=\"\",\"\",IF(Dokumentenauswertung!$B28=Dokumentenauswertung!AE28,Dokumentenauswertung!$C$28,0))","v":""},{"$f":"IF(Dokumentenauswertung!AF$10=\"\",\"\",IF(Dokumentenauswertung!$B28=Dokumentenauswertung!AF28,Dokumentenauswertung!$C$28,0))","v":""},{"$f":"IF(Dokumentenauswertung!AG$10=\"\",\"\",IF(Dokumentenauswertung!$B28=Dokumentenauswertung!AG28,Dokumentenauswertung!$C$28,0))","v":""},{"$f":"IF(Dokumentenauswertung!AH$10=\"\",\"\",IF(Dokumentenauswertung!$B28=Dokumentenauswertung!AH28,Dokumentenauswertung!$C$28,0))","v":""},{"$f":"IF(Dokumentenauswertung!AI$10=\"\",\"\",IF(Dokumentenauswertung!$B28=Dokumentenauswertung!AI28,Dokumentenauswertung!$C$28,0))","v":""},{"$f":"IF(Dokumentenauswertung!AJ$10=\"\",\"\",IF(Dokumentenauswertung!$B28=Dokumentenauswertung!AJ28,Dokumentenauswertung!$C$28,0))","v":""},{"$f":"IF(Dokumentenauswertung!AK$10=\"\",\"\",IF(Dokumentenauswertung!$B28=Dokumentenauswertung!AK28,Dokumentenauswertung!$C$28,0))","v":""}]
[null,null,{"$f":"Dokumentenauswertung!$A29","v":"A10"},{"$f":"IF(Dokumentenauswertung!E$10=\"\",\"\",IF(Dokumentenauswertung!$B29=Dokumentenauswertung!E29,Dokumentenauswertung!$C$29,0))","v":""},{"$f":"IF(Dokumentenauswertung!F$10=\"\",\"\",IF(Dokumentenauswertung!$B29=Dokumentenauswertung!F29,Dokumentenauswertung!$C$29,0))","v":""},{"$f":"IF(Dokumentenauswertung!G$10=\"\",\"\",IF(Dokumentenauswertung!$B29=Dokumentenauswertung!G29,Dokumentenauswertung!$C$29,0))","v":""},{"$f":"IF(Dokumentenauswertung!H$10=\"\",\"\",IF(Dokumentenauswertung!$B29=Dokumentenauswertung!H29,Dokumentenauswertung!$C$29,0))","v":""},{"$f":"IF(Dokumentenauswertung!I$10=\"\",\"\",IF(Dokumentenauswertung!$B29=Dokumentenauswertung!I29,Dokumentenauswertung!$C$29,0))","v":""},{"$f":"IF(Dokumentenauswertung!J$10=\"\",\"\",IF(Dokumentenauswertung!$B29=Dokumentenauswertung!J29,Dokumentenauswertung!$C$29,0))","v":""},{"$f":"IF(Dokumentenauswertung!K$10=\"\",\"\",IF(Dokumentenauswertung!$B29=Dokumentenauswertung!K29,Dokumentenauswertung!$C$29,0))","v":""},{"$f":"IF(Dokumentenauswertung!L$10=\"\",\"\",IF(Dokumentenauswertung!$B29=Dokumentenauswertung!L29,Dokumentenauswertung!$C$29,0))","v":""},{"$f":"IF(Dokumentenauswertung!M$10=\"\",\"\",IF(Dokumentenauswertung!$B29=Dokumentenauswertung!M29,Dokumentenauswertung!$C$29,0))","v":""},{"$f":"IF(Dokumentenauswertung!N$10=\"\",\"\",IF(Dokumentenauswertung!$B29=Dokumentenauswertung!N29,Dokumentenauswertung!$C$29,0))","v":""},{"$f":"IF(Dokumentenauswertung!O$10=\"\",\"\",IF(Dokumentenauswertung!$B29=Dokumentenauswertung!O29,Dokumentenauswertung!$C$29,0))","v":""},{"$f":"IF(Dokumentenauswertung!P$10=\"\",\"\",IF(Dokumentenauswertung!$B29=Dokumentenauswertung!P29,Dokumentenauswertung!$C$29,0))","v":""},{"$f":"IF(Dokumentenauswertung!Q$10=\"\",\"\",IF(Dokumentenauswertung!$B29=Dokumentenauswertung!Q29,Dokumentenauswertung!$C$29,0))","v":""},{"$f":"IF(Dokumentenauswertung!R$10=\"\",\"\",IF(Dokumentenauswertung!$B29=Dokumentenauswertung!R29,Dokumentenauswertung!$C$29,0))","v":""},{"$f":"IF(Dokumentenauswertung!S$10=\"\",\"\",IF(Dokumentenauswertung!$B29=Dokumentenauswertung!S29,Dokumentenauswertung!$C$29,0))","v":""},{"$f":"IF(Dokumentenauswertung!T$10=\"\",\"\",IF(Dokumentenauswertung!$B29=Dokumentenauswertung!T29,Dokumentenauswertung!$C$29,0))","v":""},{"$f":"IF(Dokumentenauswertung!U$10=\"\",\"\",IF(Dokumentenauswertung!$B29=Dokumentenauswertung!U29,Dokumentenauswertung!$C$29,0))","v":""},{"$f":"IF(Dokumentenauswertung!V$10=\"\",\"\",IF(Dokumentenauswertung!$B29=Dokumentenauswertung!V29,Dokumentenauswertung!$C$29,0))","v":""},{"$f":"IF(Dokumentenauswertung!W$10=\"\",\"\",IF(Dokumentenauswertung!$B29=Dokumentenauswertung!W29,Dokumentenauswertung!$C$29,0))","v":""},{"$f":"IF(Dokumentenauswertung!X$10=\"\",\"\",IF(Dokumentenauswertung!$B29=Dokumentenauswertung!X29,Dokumentenauswertung!$C$29,0))","v":""},{"$f":"IF(Dokumentenauswertung!Y$10=\"\",\"\",IF(Dokumentenauswertung!$B29=Dokumentenauswertung!Y29,Dokumentenauswertung!$C$29,0))","v":""},{"$f":"IF(Dokumentenauswertung!Z$10=\"\",\"\",IF(Dokumentenauswertung!$B29=Dokumentenauswertung!Z29,Dokumentenauswertung!$C$29,0))","v":""},{"$f":"IF(Dokumentenauswertung!AA$10=\"\",\"\",IF(Dokumentenauswertung!$B29=Dokumentenauswertung!AA29,Dokumentenauswertung!$C$29,0))","v":""},{"$f":"IF(Dokumentenauswertung!AB$10=\"\",\"\",IF(Dokumentenauswertung!$B29=Dokumentenauswertung!AB29,Dokumentenauswertung!$C$29,0))","v":""},{"$f":"IF(Dokumentenauswertung!AC$10=\"\",\"\",IF(Dokumentenauswertung!$B29=Dokumentenauswertung!AC29,Dokumentenauswertung!$C$29,0))","v":""},{"$f":"IF(Dokumentenauswertung!AD$10=\"\",\"\",IF(Dokumentenauswertung!$B29=Dokumentenauswertung!AD29,Dokumentenauswertung!$C$29,0))","v":""},{"$f":"IF(Dokumentenauswertung!AE$10=\"\",\"\",IF(Dokumentenauswertung!$B29=Dokumentenauswertung!AE29,Dokumentenauswertung!$C$29,0))","v":""},{"$f":"IF(Dokumentenauswertung!AF$10=\"\",\"\",IF(Dokumentenauswertung!$B29=Dokumentenauswertung!AF29,Dokumentenauswertung!$C$29,0))","v":""},{"$f":"IF(Dokumentenauswertung!AG$10=\"\",\"\",IF(Dokumentenauswertung!$B29=Dokumentenauswertung!AG29,Dokumentenauswertung!$C$29,0))","v":""},{"$f":"IF(Dokumentenauswertung!AH$10=\"\",\"\",IF(Dokumentenauswertung!$B29=Dokumentenauswertung!AH29,Dokumentenauswertung!$C$29,0))","v":""},{"$f":"IF(Dokumentenauswertung!AI$10=\"\",\"\",IF(Dokumentenauswertung!$B29=Dokumentenauswertung!AI29,Dokumentenauswertung!$C$29,0))","v":""},{"$f":"IF(Dokumentenauswertung!AJ$10=\"\",\"\",IF(Dokumentenauswertung!$B29=Dokumentenauswertung!AJ29,Dokumentenauswertung!$C$29,0))","v":""},{"$f":"IF(Dokumentenauswertung!AK$10=\"\",\"\",IF(Dokumentenauswertung!$B29=Dokumentenauswertung!AK29,Dokumentenauswertung!$C$29,0))","v":""}]
[null,null,{"$f":"Dokumentenauswertung!$A30","v":"A11.1"},{"$f":"IF(Dokumentenauswertung!E$10=\"\",\"\",IF(Dokumentenauswertung!E$30=Dokumentenauswertung!$B$30,Dokumentenauswertung!$D30,IF(Dokumentenauswertung!E$30=Dokumentenauswertung!$B$31,Dokumentenauswertung!$C$30,0)))","v":""},{"$f":"IF(Dokumentenauswertung!F$10=\"\",\"\",IF(Dokumentenauswertung!F$30=Dokumentenauswertung!$B$30,Dokumentenauswertung!$D30,IF(Dokumentenauswertung!F$30=Dokumentenauswertung!$B$31,Dokumentenauswertung!$C$30,0)))","v":""},{"$f":"IF(Dokumentenauswertung!G$10=\"\",\"\",IF(Dokumentenauswertung!G$30=Dokumentenauswertung!$B$30,Dokumentenauswertung!$D30,IF(Dokumentenauswertung!G$30=Dokumentenauswertung!$B$31,Dokumentenauswertung!$C$30,0)))","v":""},{"$f":"IF(Dokumentenauswertung!H$10=\"\",\"\",IF(Dokumentenauswertung!H$30=Dokumentenauswertung!$B$30,Dokumentenauswertung!$D30,IF(Dokumentenauswertung!H$30=Dokumentenauswertung!$B$31,Dokumentenauswertung!$C$30,0)))","v":""},{"$f":"IF(Dokumentenauswertung!I$10=\"\",\"\",IF(Dokumentenauswertung!I$30=Dokumentenauswertung!$B$30,Dokumentenauswertung!$D30,IF(Dokumentenauswertung!I$30=Dokumentenauswertung!$B$31,Dokumentenauswertung!$C$30,0)))","v":""},{"$f":"IF(Dokumentenauswertung!J$10=\"\",\"\",IF(Dokumentenauswertung!J$30=Dokumentenauswertung!$B$30,Dokumentenauswertung!$D30,IF(Dokumentenauswertung!J$30=Dokumentenauswertung!$B$31,Dokumentenauswertung!$C$30,0)))","v":""},{"$f":"IF(Dokumentenauswertung!K$10=\"\",\"\",IF(Dokumentenauswertung!K$30=Dokumentenauswertung!$B$30,Dokumentenauswertung!$D30,IF(Dokumentenauswertung!K$30=Dokumentenauswertung!$B$31,Dokumentenauswertung!$C$30,0)))","v":""},{"$f":"IF(Dokumentenauswertung!L$10=\"\",\"\",IF(Dokumentenauswertung!L$30=Dokumentenauswertung!$B$30,Dokumentenauswertung!$D30,IF(Dokumentenauswertung!L$30=Dokumentenauswertung!$B$31,Dokumentenauswertung!$C$30,0)))","v":""},{"$f":"IF(Dokumentenauswertung!M$10=\"\",\"\",IF(Dokumentenauswertung!M$30=Dokumentenauswertung!$B$30,Dokumentenauswertung!$D30,IF(Dokumentenauswertung!M$30=Dokumentenauswertung!$B$31,Dokumentenauswertung!$C$30,0)))","v":""},{"$f":"IF(Dokumentenauswertung!N$10=\"\",\"\",IF(Dokumentenauswertung!N$30=Dokumentenauswertung!$B$30,Dokumentenauswertung!$D30,IF(Dokumentenauswertung!N$30=Dokumentenauswertung!$B$31,Dokumentenauswertung!$C$30,0)))","v":""},{"$f":"IF(Dokumentenauswertung!O$10=\"\",\"\",IF(Dokumentenauswertung!O$30=Dokumentenauswertung!$B$30,Dokumentenauswertung!$D30,IF(Dokumentenauswertung!O$30=Dokumentenauswertung!$B$31,Dokumentenauswertung!$C$30,0)))","v":""},{"$f":"IF(Dokumentenauswertung!P$10=\"\",\"\",IF(Dokumentenauswertung!P$30=Dokumentenauswertung!$B$30,Dokumentenauswertung!$D30,IF(Dokumentenauswertung!P$30=Dokumentenauswertung!$B$31,Dokumentenauswertung!$C$30,0)))","v":""},{"$f":"IF(Dokumentenauswertung!Q$10=\"\",\"\",IF(Dokumentenauswertung!Q$30=Dokumentenauswertung!$B$30,Dokumentenauswertung!$D30,IF(Dokumentenauswertung!Q$30=Dokumentenauswertung!$B$31,Dokumentenauswertung!$C$30,0)))","v":""},{"$f":"IF(Dokumentenauswertung!R$10=\"\",\"\",IF(Dokumentenauswertung!R$30=Dokumentenauswertung!$B$30,Dokumentenauswertung!$D30,IF(Dokumentenauswertung!R$30=Dokumentenauswertung!$B$31,Dokumentenauswertung!$C$30,0)))","v":""},{"$f":"IF(Dokumentenauswertung!S$10=\"\",\"\",IF(Dokumentenauswertung!S$30=Dokumentenauswertung!$B$30,Dokumentenauswertung!$D30,IF(Dokumentenauswertung!S$30=Dokumentenauswertung!$B$31,Dokumentenauswertung!$C$30,0)))","v":""},{"$f":"IF(Dokumentenauswertung!T$10=\"\",\"\",IF(Dokumentenauswertung!T$30=Dokumentenauswertung!$B$30,Dokumentenauswertung!$D30,IF(Dokumentenauswertung!T$30=Dokumentenauswertung!$B$31,Dokumentenauswertung!$C$30,0)))","v":""},{"$f":"IF(Dokumentenauswertung!U$10=\"\",\"\",IF(Dokumentenauswertung!U$30=Dokumentenauswertung!$B$30,Dokumentenauswertung!$D30,IF(Dokumentenauswertung!U$30=Dokumentenauswertung!$B$31,Dokumentenauswertung!$C$30,0)))","v":""},{"$f":"IF(Dokumentenauswertung!V$10=\"\",\"\",IF(Dokumentenauswertung!V$30=Dokumentenauswertung!$B$30,Dokumentenauswertung!$D30,IF(Dokumentenauswertung!V$30=Dokumentenauswertung!$B$31,Dokumentenauswertung!$C$30,0)))","v":""},{"$f":"IF(Dokumentenauswertung!W$10=\"\",\"\",IF(Dokumentenauswertung!W$30=Dokumentenauswertung!$B$30,Dokumentenauswertung!$D30,IF(Dokumentenauswertung!W$30=Dokumentenauswertung!$B$31,Dokumentenauswertung!$C$30,0)))","v":""},{"$f":"IF(Dokumentenauswertung!X$10=\"\",\"\",IF(Dokumentenauswertung!X$30=Dokumentenauswertung!$B$30,Dokumentenauswertung!$D30,IF(Dokumentenauswertung!X$30=Dokumentenauswertung!$B$31,Dokumentenauswertung!$C$30,0)))","v":""},{"$f":"IF(Dokumentenauswertung!Y$10=\"\",\"\",IF(Dokumentenauswertung!Y$30=Dokumentenauswertung!$B$30,Dokumentenauswertung!$D30,IF(Dokumentenauswertung!Y$30=Dokumentenauswertung!$B$31,Dokumentenauswertung!$C$30,0)))","v":""},{"$f":"IF(Dokumentenauswertung!Z$10=\"\",\"\",IF(Dokumentenauswertung!Z$30=Dokumentenauswertung!$B$30,Dokumentenauswertung!$D30,IF(Dokumentenauswertung!Z$30=Dokumentenauswertung!$B$31,Dokumentenauswertung!$C$30,0)))","v":""},{"$f":"IF(Dokumentenauswertung!AA$10=\"\",\"\",IF(Dokumentenauswertung!AA$30=Dokumentenauswertung!$B$30,Dokumentenauswertung!$D30,IF(Dokumentenauswertung!AA$30=Dokumentenauswertung!$B$31,Dokumentenauswertung!$C$30,0)))","v":""},{"$f":"IF(Dokumentenauswertung!AB$10=\"\",\"\",IF(Dokumentenauswertung!AB$30=Dokumentenauswertung!$B$30,Dokumentenauswertung!$D30,IF(Dokumentenauswertung!AB$30=Dokumentenauswertung!$B$31,Dokumentenauswertung!$C$30,0)))","v":""},{"$f":"IF(Dokumentenauswertung!AC$10=\"\",\"\",IF(Dokumentenauswertung!AC$30=Dokumentenauswertung!$B$30,Dokumentenauswertung!$D30,IF(Dokumentenauswertung!AC$30=Dokumentenauswertung!$B$31,Dokumentenauswertung!$C$30,0)))","v":""},{"$f":"IF(Dokumentenauswertung!AD$10=\"\",\"\",IF(Dokumentenauswertung!AD$30=Dokumentenauswertung!$B$30,Dokumentenauswertung!$D30,IF(Dokumentenauswertung!AD$30=Dokumentenauswertung!$B$31,Dokumentenauswertung!$C$30,0)))","v":""},{"$f":"IF(Dokumentenauswertung!AE$10=\"\",\"\",IF(Dokumentenauswertung!AE$30=Dokumentenauswertung!$B$30,Dokumentenauswertung!$D30,IF(Dokumentenauswertung!AE$30=Dokumentenauswertung!$B$31,Dokumentenauswertung!$C$30,0)))","v":""},{"$f":"IF(Dokumentenauswertung!AF$10=\"\",\"\",IF(Dokumentenauswertung!AF$30=Dokumentenauswertung!$B$30,Dokumentenauswertung!$D30,IF(Dokumentenauswertung!AF$30=Dokumentenauswertung!$B$31,Dokumentenauswertung!$C$30,0)))","v":""},{"$f":"IF(Dokumentenauswertung!AG$10=\"\",\"\",IF(Dokumentenauswertung!AG$30=Dokumentenauswertung!$B$30,Dokumentenauswertung!$D30,IF(Dokumentenauswertung!AG$30=Dokumentenauswertung!$B$31,Dokumentenauswertung!$C$30,0)))","v":""},{"$f":"IF(Dokumentenauswertung!AH$10=\"\",\"\",IF(Dokumentenauswertung!AH$30=Dokumentenauswertung!$B$30,Dokumentenauswertung!$D30,IF(Dokumentenauswertung!AH$30=Dokumentenauswertung!$B$31,Dokumentenauswertung!$C$30,0)))","v":""},{"$f":"IF(Dokumentenauswertung!AI$10=\"\",\"\",IF(Dokumentenauswertung!AI$30=Dokumentenauswertung!$B$30,Dokumentenauswertung!$D30,IF(Dokumentenauswertung!AI$30=Dokumentenauswertung!$B$31,Dokumentenauswertung!$C$30,0)))","v":""},{"$f":"IF(Dokumentenauswertung!AJ$10=\"\",\"\",IF(Dokumentenauswertung!AJ$30=Dokumentenauswertung!$B$30,Dokumentenauswertung!$D30,IF(Dokumentenauswertung!AJ$30=Dokumentenauswertung!$B$31,Dokumentenauswertung!$C$30,0)))","v":""},{"$f":"IF(Dokumentenauswertung!AK$10=\"\",\"\",IF(Dokumentenauswertung!AK$30=Dokumentenauswertung!$B$30,Dokumentenauswertung!$D30,IF(Dokumentenauswertung!AK$30=Dokumentenauswertung!$B$31,Dokumentenauswertung!$C$30,0)))","v":""}]
[null,null,{"$f":"Dokumentenauswertung!$A31","v":"A11.2"},{"$f":"IF(Dokumentenauswertung!E$10=\"\",\"\",IF(Dokumentenauswertung!E$31=Dokumentenauswertung!E$30,0,IF(Dokumentenauswertung!E$31=Dokumentenauswertung!$B$31,Dokumentenauswertung!$D$31,IF(Dokumentenauswertung!E$31=Dokumentenauswertung!$B$30,Dokumentenauswertung!$C$31,0))))","v":""},{"$f":"IF(Dokumentenauswertung!F$10=\"\",\"\",IF(Dokumentenauswertung!F$31=Dokumentenauswertung!F$30,0,IF(Dokumentenauswertung!F$31=Dokumentenauswertung!$B$31,Dokumentenauswertung!$D$31,IF(Dokumentenauswertung!F$31=Dokumentenauswertung!$B$30,Dokumentenauswertung!$C$31,0))))","v":""},{"$f":"IF(Dokumentenauswertung!G$10=\"\",\"\",IF(Dokumentenauswertung!G$31=Dokumentenauswertung!G$30,0,IF(Dokumentenauswertung!G$31=Dokumentenauswertung!$B$31,Dokumentenauswertung!$D$31,IF(Dokumentenauswertung!G$31=Dokumentenauswertung!$B$30,Dokumentenauswertung!$C$31,0))))","v":""},{"$f":"IF(Dokumentenauswertung!H$10=\"\",\"\",IF(Dokumentenauswertung!H$31=Dokumentenauswertung!H$30,0,IF(Dokumentenauswertung!H$31=Dokumentenauswertung!$B$31,Dokumentenauswertung!$D$31,IF(Dokumentenauswertung!H$31=Dokumentenauswertung!$B$30,Dokumentenauswertung!$C$31,0))))","v":""},{"$f":"IF(Dokumentenauswertung!I$10=\"\",\"\",IF(Dokumentenauswertung!I$31=Dokumentenauswertung!I$30,0,IF(Dokumentenauswertung!I$31=Dokumentenauswertung!$B$31,Dokumentenauswertung!$D$31,IF(Dokumentenauswertung!I$31=Dokumentenauswertung!$B$30,Dokumentenauswertung!$C$31,0))))","v":""},{"$f":"IF(Dokumentenauswertung!J$10=\"\",\"\",IF(Dokumentenauswertung!J$31=Dokumentenauswertung!J$30,0,IF(Dokumentenauswertung!J$31=Dokumentenauswertung!$B$31,Dokumentenauswertung!$D$31,IF(Dokumentenauswertung!J$31=Dokumentenauswertung!$B$30,Dokumentenauswertung!$C$31,0))))","v":""},{"$f":"IF(Dokumentenauswertung!K$10=\"\",\"\",IF(Dokumentenauswertung!K$31=Dokumentenauswertung!K$30,0,IF(Dokumentenauswertung!K$31=Dokumentenauswertung!$B$31,Dokumentenauswertung!$D$31,IF(Dokumentenauswertung!K$31=Dokumentenauswertung!$B$30,Dokumentenauswertung!$C$31,0))))","v":""},{"$f":"IF(Dokumentenauswertung!L$10=\"\",\"\",IF(Dokumentenauswertung!L$31=Dokumentenauswertung!L$30,0,IF(Dokumentenauswertung!L$31=Dokumentenauswertung!$B$31,Dokumentenauswertung!$D$31,IF(Dokumentenauswertung!L$31=Dokumentenauswertung!$B$30,Dokumentenauswertung!$C$31,0))))","v":""},{"$f":"IF(Dokumentenauswertung!M$10=\"\",\"\",IF(Dokumentenauswertung!M$31=Dokumentenauswertung!M$30,0,IF(Dokumentenauswertung!M$31=Dokumentenauswertung!$B$31,Dokumentenauswertung!$D$31,IF(Dokumentenauswertung!M$31=Dokumentenauswertung!$B$30,Dokumentenauswertung!$C$31,0))))","v":""},{"$f":"IF(Dokumentenauswertung!N$10=\"\",\"\",IF(Dokumentenauswertung!N$31=Dokumentenauswertung!N$30,0,IF(Dokumentenauswertung!N$31=Dokumentenauswertung!$B$31,Dokumentenauswertung!$D$31,IF(Dokumentenauswertung!N$31=Dokumentenauswertung!$B$30,Dokumentenauswertung!$C$31,0))))","v":""},{"$f":"IF(Dokumentenauswertung!O$10=\"\",\"\",IF(Dokumentenauswertung!O$31=Dokumentenauswertung!O$30,0,IF(Dokumentenauswertung!O$31=Dokumentenauswertung!$B$31,Dokumentenauswertung!$D$31,IF(Dokumentenauswertung!O$31=Dokumentenauswertung!$B$30,Dokumentenauswertung!$C$31,0))))","v":""},{"$f":"IF(Dokumentenauswertung!P$10=\"\",\"\",IF(Dokumentenauswertung!P$31=Dokumentenauswertung!P$30,0,IF(Dokumentenauswertung!P$31=Dokumentenauswertung!$B$31,Dokumentenauswertung!$D$31,IF(Dokumentenauswertung!P$31=Dokumentenauswertung!$B$30,Dokumentenauswertung!$C$31,0))))","v":""},{"$f":"IF(Dokumentenauswertung!Q$10=\"\",\"\",IF(Dokumentenauswertung!Q$31=Dokumentenauswertung!Q$30,0,IF(Dokumentenauswertung!Q$31=Dokumentenauswertung!$B$31,Dokumentenauswertung!$D$31,IF(Dokumentenauswertung!Q$31=Dokumentenauswertung!$B$30,Dokumentenauswertung!$C$31,0))))","v":""},{"$f":"IF(Dokumentenauswertung!R$10=\"\",\"\",IF(Dokumentenauswertung!R$31=Dokumentenauswertung!R$30,0,IF(Dokumentenauswertung!R$31=Dokumentenauswertung!$B$31,Dokumentenauswertung!$D$31,IF(Dokumentenauswertung!R$31=Dokumentenauswertung!$B$30,Dokumentenauswertung!$C$31,0))))","v":""},{"$f":"IF(Dokumentenauswertung!S$10=\"\",\"\",IF(Dokumentenauswertung!S$31=Dokumentenauswertung!S$30,0,IF(Dokumentenauswertung!S$31=Dokumentenauswertung!$B$31,Dokumentenauswertung!$D$31,IF(Dokumentenauswertung!S$31=Dokumentenauswertung!$B$30,Dokumentenauswertung!$C$31,0))))","v":""},{"$f":"IF(Dokumentenauswertung!T$10=\"\",\"\",IF(Dokumentenauswertung!T$31=Dokumentenauswertung!T$30,0,IF(Dokumentenauswertung!T$31=Dokumentenauswertung!$B$31,Dokumentenauswertung!$D$31,IF(Dokumentenauswertung!T$31=Dokumentenauswertung!$B$30,Dokumentenauswertung!$C$31,0))))","v":""},{"$f":"IF(Dokumentenauswertung!U$10=\"\",\"\",IF(Dokumentenauswertung!U$31=Dokumentenauswertung!U$30,0,IF(Dokumentenauswertung!U$31=Dokumentenauswertung!$B$31,Dokumentenauswertung!$D$31,IF(Dokumentenauswertung!U$31=Dokumentenauswertung!$B$30,Dokumentenauswertung!$C$31,0))))","v":""},{"$f":"IF(Dokumentenauswertung!V$10=\"\",\"\",IF(Dokumentenauswertung!V$31=Dokumentenauswertung!V$30,0,IF(Dokumentenauswertung!V$31=Dokumentenauswertung!$B$31,Dokumentenauswertung!$D$31,IF(Dokumentenauswertung!V$31=Dokumentenauswertung!$B$30,Dokumentenauswertung!$C$31,0))))","v":""},{"$f":"IF(Dokumentenauswertung!W$10=\"\",\"\",IF(Dokumentenauswertung!W$31=Dokumentenauswertung!W$30,0,IF(Dokumentenauswertung!W$31=Dokumentenauswertung!$B$31,Dokumentenauswertung!$D$31,IF(Dokumentenauswertung!W$31=Dokumentenauswertung!$B$30,Dokumentenauswertung!$C$31,0))))","v":""},{"$f":"IF(Dokumentenauswertung!X$10=\"\",\"\",IF(Dokumentenauswertung!X$31=Dokumentenauswertung!X$30,0,IF(Dokumentenauswertung!X$31=Dokumentenauswertung!$B$31,Dokumentenauswertung!$D$31,IF(Dokumentenauswertung!X$31=Dokumentenauswertung!$B$30,Dokumentenauswertung!$C$31,0))))","v":""},{"$f":"IF(Dokumentenauswertung!Y$10=\"\",\"\",IF(Dokumentenauswertung!Y$31=Dokumentenauswertung!Y$30,0,IF(Dokumentenauswertung!Y$31=Dokumentenauswertung!$B$31,Dokumentenauswertung!$D$31,IF(Dokumentenauswertung!Y$31=Dokumentenauswertung!$B$30,Dokumentenauswertung!$C$31,0))))","v":""},{"$f":"IF(Dokumentenauswertung!Z$10=\"\",\"\",IF(Dokumentenauswertung!Z$31=Dokumentenauswertung!Z$30,0,IF(Dokumentenauswertung!Z$31=Dokumentenauswertung!$B$31,Dokumentenauswertung!$D$31,IF(Dokumentenauswertung!Z$31=Dokumentenauswertung!$B$30,Dokumentenauswertung!$C$31,0))))","v":""},{"$f":"IF(Dokumentenauswertung!AA$10=\"\",\"\",IF(Dokumentenauswertung!AA$31=Dokumentenauswertung!AA$30,0,IF(Dokumentenauswertung!AA$31=Dokumentenauswertung!$B$31,Dokumentenauswertung!$D$31,IF(Dokumentenauswertung!AA$31=Dokumentenauswertung!$B$30,Dokumentenauswertung!$C$31,0))))","v":""},{"$f":"IF(Dokumentenauswertung!AB$10=\"\",\"\",IF(Dokumentenauswertung!AB$31=Dokumentenauswertung!AB$30,0,IF(Dokumentenauswertung!AB$31=Dokumentenauswertung!$B$31,Dokumentenauswertung!$D$31,IF(Dokumentenauswertung!AB$31=Dokumentenauswertung!$B$30,Dokumentenauswertung!$C$31,0))))","v":""},{"$f":"IF(Dokumentenauswertung!AC$10=\"\",\"\",IF(Dokumentenauswertung!AC$31=Dokumentenauswertung!AC$30,0,IF(Dokumentenauswertung!AC$31=Dokumentenauswertung!$B$31,Dokumentenauswertung!$D$31,IF(Dokumentenauswertung!AC$31=Dokumentenauswertung!$B$30,Dokumentenauswertung!$C$31,0))))","v":""},{"$f":"IF(Dokumentenauswertung!AD$10=\"\",\"\",IF(Dokumentenauswertung!AD$31=Dokumentenauswertung!AD$30,0,IF(Dokumentenauswertung!AD$31=Dokumentenauswertung!$B$31,Dokumentenauswertung!$D$31,IF(Dokumentenauswertung!AD$31=Dokumentenauswertung!$B$30,Dokumentenauswertung!$C$31,0))))","v":""},{"$f":"IF(Dokumentenauswertung!AE$10=\"\",\"\",IF(Dokumentenauswertung!AE$31=Dokumentenauswertung!AE$30,0,IF(Dokumentenauswertung!AE$31=Dokumentenauswertung!$B$31,Dokumentenauswertung!$D$31,IF(Dokumentenauswertung!AE$31=Dokumentenauswertung!$B$30,Dokumentenauswertung!$C$31,0))))","v":""},{"$f":"IF(Dokumentenauswertung!AF$10=\"\",\"\",IF(Dokumentenauswertung!AF$31=Dokumentenauswertung!AF$30,0,IF(Dokumentenauswertung!AF$31=Dokumentenauswertung!$B$31,Dokumentenauswertung!$D$31,IF(Dokumentenauswertung!AF$31=Dokumentenauswertung!$B$30,Dokumentenauswertung!$C$31,0))))","v":""},{"$f":"IF(Dokumentenauswertung!AG$10=\"\",\"\",IF(Dokumentenauswertung!AG$31=Dokumentenauswertung!AG$30,0,IF(Dokumentenauswertung!AG$31=Dokumentenauswertung!$B$31,Dokumentenauswertung!$D$31,IF(Dokumentenauswertung!AG$31=Dokumentenauswertung!$B$30,Dokumentenauswertung!$C$31,0))))","v":""},{"$f":"IF(Dokumentenauswertung!AH$10=\"\",\"\",IF(Dokumentenauswertung!AH$31=Dokumentenauswertung!AH$30,0,IF(Dokumentenauswertung!AH$31=Dokumentenauswertung!$B$31,Dokumentenauswertung!$D$31,IF(Dokumentenauswertung!AH$31=Dokumentenauswertung!$B$30,Dokumentenauswertung!$C$31,0))))","v":""},{"$f":"IF(Dokumentenauswertung!AI$10=\"\",\"\",IF(Dokumentenauswertung!AI$31=Dokumentenauswertung!AI$30,0,IF(Dokumentenauswertung!AI$31=Dokumentenauswertung!$B$31,Dokumentenauswertung!$D$31,IF(Dokumentenauswertung!AI$31=Dokumentenauswertung!$B$30,Dokumentenauswertung!$C$31,0))))","v":""},{"$f":"IF(Dokumentenauswertung!AJ$10=\"\",\"\",IF(Dokumentenauswertung!AJ$31=Dokumentenauswertung!AJ$30,0,IF(Dokumentenauswertung!AJ$31=Dokumentenauswertung!$B$31,Dokumentenauswertung!$D$31,IF(Dokumentenauswertung!AJ$31=Dokumentenauswertung!$B$30,Dokumentenauswertung!$C$31,0))))","v":""},{"$f":"IF(Dokumentenauswertung!AK$10=\"\",\"\",IF(Dokumentenauswertung!AK$31=Dokumentenauswertung!AK$30,0,IF(Dokumentenauswertung!AK$31=Dokumentenauswertung!$B$31,Dokumentenauswertung!$D$31,IF(Dokumentenauswertung!AK$31=Dokumentenauswertung!$B$30,Dokumentenauswertung!$C$31,0))))","v":""}]
[null,null,{"$f":"Dokumentenauswertung!$A32","v":"B1"},{"$f":"IF(Dokumentenauswertung!E$10=\"\",\"\",IF(ISNUMBER(Dokumentenauswertung!E32)=FALSE,\"noch nicht bewertet\",IF(Dokumentenauswertung!E32>Dokumentenauswertung!$C32,\"max. Punkte überschritten\",Dokumentenauswertung!E32)))","v":""},{"$f":"IF(Dokumentenauswertung!F$10=\"\",\"\",IF(ISNUMBER(Dokumentenauswertung!F32)=FALSE,\"noch nicht bewertet\",IF(Dokumentenauswertung!F32>Dokumentenauswertung!$C32,\"max. Punkte überschritten\",Dokumentenauswertung!F32)))","v":""},{"$f":"IF(Dokumentenauswertung!G$10=\"\",\"\",IF(ISNUMBER(Dokumentenauswertung!G32)=FALSE,\"noch nicht bewertet\",IF(Dokumentenauswertung!G32>Dokumentenauswertung!$C32,\"max. Punkte überschritten\",Dokumentenauswertung!G32)))","v":""},{"$f":"IF(Dokumentenauswertung!H$10=\"\",\"\",IF(ISNUMBER(Dokumentenauswertung!H32)=FALSE,\"noch nicht bewertet\",IF(Dokumentenauswertung!H32>Dokumentenauswertung!$C32,\"max. Punkte überschritten\",Dokumentenauswertung!H32)))","v":""},{"$f":"IF(Dokumentenauswertung!I$10=\"\",\"\",IF(ISNUMBER(Dokumentenauswertung!I32)=FALSE,\"noch nicht bewertet\",IF(Dokumentenauswertung!I32>Dokumentenauswertung!$C32,\"max. Punkte überschritten\",Dokumentenauswertung!I32)))","v":""},{"$f":"IF(Dokumentenauswertung!J$10=\"\",\"\",IF(ISNUMBER(Dokumentenauswertung!J32)=FALSE,\"noch nicht bewertet\",IF(Dokumentenauswertung!J32>Dokumentenauswertung!$C32,\"max. Punkte überschritten\",Dokumentenauswertung!J32)))","v":""},{"$f":"IF(Dokumentenauswertung!K$10=\"\",\"\",IF(ISNUMBER(Dokumentenauswertung!K32)=FALSE,\"noch nicht bewertet\",IF(Dokumentenauswertung!K32>Dokumentenauswertung!$C32,\"max. Punkte überschritten\",Dokumentenauswertung!K32)))","v":""},{"$f":"IF(Dokumentenauswertung!L$10=\"\",\"\",IF(ISNUMBER(Dokumentenauswertung!L32)=FALSE,\"noch nicht bewertet\",IF(Dokumentenauswertung!L32>Dokumentenauswertung!$C32,\"max. Punkte überschritten\",Dokumentenauswertung!L32)))","v":""},{"$f":"IF(Dokumentenauswertung!M$10=\"\",\"\",IF(ISNUMBER(Dokumentenauswertung!M32)=FALSE,\"noch nicht bewertet\",IF(Dokumentenauswertung!M32>Dokumentenauswertung!$C32,\"max. Punkte überschritten\",Dokumentenauswertung!M32)))","v":""},{"$f":"IF(Dokumentenauswertung!N$10=\"\",\"\",IF(ISNUMBER(Dokumentenauswertung!N32)=FALSE,\"noch nicht bewertet\",IF(Dokumentenauswertung!N32>Dokumentenauswertung!$C32,\"max. Punkte überschritten\",Dokumentenauswertung!N32)))","v":""},{"$f":"IF(Dokumentenauswertung!O$10=\"\",\"\",IF(ISNUMBER(Dokumentenauswertung!O32)=FALSE,\"noch nicht bewertet\",IF(Dokumentenauswertung!O32>Dokumentenauswertung!$C32,\"max. Punkte überschritten\",Dokumentenauswertung!O32)))","v":""},{"$f":"IF(Dokumentenauswertung!P$10=\"\",\"\",IF(ISNUMBER(Dokumentenauswertung!P32)=FALSE,\"noch nicht bewertet\",IF(Dokumentenauswertung!P32>Dokumentenauswertung!$C32,\"max. Punkte überschritten\",Dokumentenauswertung!P32)))","v":""},{"$f":"IF(Dokumentenauswertung!Q$10=\"\",\"\",IF(ISNUMBER(Dokumentenauswertung!Q32)=FALSE,\"noch nicht bewertet\",IF(Dokumentenauswertung!Q32>Dokumentenauswertung!$C32,\"max. Punkte überschritten\",Dokumentenauswertung!Q32)))","v":""},{"$f":"IF(Dokumentenauswertung!R$10=\"\",\"\",IF(ISNUMBER(Dokumentenauswertung!R32)=FALSE,\"noch nicht bewertet\",IF(Dokumentenauswertung!R32>Dokumentenauswertung!$C32,\"max. Punkte überschritten\",Dokumentenauswertung!R32)))","v":""},{"$f":"IF(Dokumentenauswertung!S$10=\"\",\"\",IF(ISNUMBER(Dokumentenauswertung!S32)=FALSE,\"noch nicht bewertet\",IF(Dokumentenauswertung!S32>Dokumentenauswertung!$C32,\"max. Punkte überschritten\",Dokumentenauswertung!S32)))","v":""},{"$f":"IF(Dokumentenauswertung!T$10=\"\",\"\",IF(ISNUMBER(Dokumentenauswertung!T32)=FALSE,\"noch nicht bewertet\",IF(Dokumentenauswertung!T32>Dokumentenauswertung!$C32,\"max. Punkte überschritten\",Dokumentenauswertung!T32)))","v":""},{"$f":"IF(Dokumentenauswertung!U$10=\"\",\"\",IF(ISNUMBER(Dokumentenauswertung!U32)=FALSE,\"noch nicht bewertet\",IF(Dokumentenauswertung!U32>Dokumentenauswertung!$C32,\"max. Punkte überschritten\",Dokumentenauswertung!U32)))","v":""},{"$f":"IF(Dokumentenauswertung!V$10=\"\",\"\",IF(ISNUMBER(Dokumentenauswertung!V32)=FALSE,\"noch nicht bewertet\",IF(Dokumentenauswertung!V32>Dokumentenauswertung!$C32,\"max. Punkte überschritten\",Dokumentenauswertung!V32)))","v":""},{"$f":"IF(Dokumentenauswertung!W$10=\"\",\"\",IF(ISNUMBER(Dokumentenauswertung!W32)=FALSE,\"noch nicht bewertet\",IF(Dokumentenauswertung!W32>Dokumentenauswertung!$C32,\"max. Punkte überschritten\",Dokumentenauswertung!W32)))","v":""},{"$f":"IF(Dokumentenauswertung!X$10=\"\",\"\",IF(ISNUMBER(Dokumentenauswertung!X32)=FALSE,\"noch nicht bewertet\",IF(Dokumentenauswertung!X32>Dokumentenauswertung!$C32,\"max. Punkte überschritten\",Dokumentenauswertung!X32)))","v":""},{"$f":"IF(Dokumentenauswertung!Y$10=\"\",\"\",IF(ISNUMBER(Dokumentenauswertung!Y32)=FALSE,\"noch nicht bewertet\",IF(Dokumentenauswertung!Y32>Dokumentenauswertung!$C32,\"max. Punkte überschritten\",Dokumentenauswertung!Y32)))","v":""},{"$f":"IF(Dokumentenauswertung!Z$10=\"\",\"\",IF(ISNUMBER(Dokumentenauswertung!Z32)=FALSE,\"noch nicht bewertet\",IF(Dokumentenauswertung!Z32>Dokumentenauswertung!$C32,\"max. Punkte überschritten\",Dokumentenauswertung!Z32)))","v":""},{"$f":"IF(Dokumentenauswertung!AA$10=\"\",\"\",IF(ISNUMBER(Dokumentenauswertung!AA32)=FALSE,\"noch nicht bewertet\",IF(Dokumentenauswertung!AA32>Dokumentenauswertung!$C32,\"max. Punkte überschritten\",Dokumentenauswertung!AA32)))","v":""},{"$f":"IF(Dokumentenauswertung!AB$10=\"\",\"\",IF(ISNUMBER(Dokumentenauswertung!AB32)=FALSE,\"noch nicht bewertet\",IF(Dokumentenauswertung!AB32>Dokumentenauswertung!$C32,\"max. Punkte überschritten\",Dokumentenauswertung!AB32)))","v":""},{"$f":"IF(Dokumentenauswertung!AC$10=\"\",\"\",IF(ISNUMBER(Dokumentenauswertung!AC32)=FALSE,\"noch nicht bewertet\",IF(Dokumentenauswertung!AC32>Dokumentenauswertung!$C32,\"max. Punkte überschritten\",Dokumentenauswertung!AC32)))","v":""},{"$f":"IF(Dokumentenauswertung!AD$10=\"\",\"\",IF(ISNUMBER(Dokumentenauswertung!AD32)=FALSE,\"noch nicht bewertet\",IF(Dokumentenauswertung!AD32>Dokumentenauswertung!$C32,\"max. Punkte überschritten\",Dokumentenauswertung!AD32)))","v":""},{"$f":"IF(Dokumentenauswertung!AE$10=\"\",\"\",IF(ISNUMBER(Dokumentenauswertung!AE32)=FALSE,\"noch nicht bewertet\",IF(Dokumentenauswertung!AE32>Dokumentenauswertung!$C32,\"max. Punkte überschritten\",Dokumentenauswertung!AE32)))","v":""},{"$f":"IF(Dokumentenauswertung!AF$10=\"\",\"\",IF(ISNUMBER(Dokumentenauswertung!AF32)=FALSE,\"noch nicht bewertet\",IF(Dokumentenauswertung!AF32>Dokumentenauswertung!$C32,\"max. Punkte überschritten\",Dokumentenauswertung!AF32)))","v":""},{"$f":"IF(Dokumentenauswertung!AG$10=\"\",\"\",IF(ISNUMBER(Dokumentenauswertung!AG32)=FALSE,\"noch nicht bewertet\",IF(Dokumentenauswertung!AG32>Dokumentenauswertung!$C32,\"max. Punkte überschritten\",Dokumentenauswertung!AG32)))","v":""},{"$f":"IF(Dokumentenauswertung!AH$10=\"\",\"\",IF(ISNUMBER(Dokumentenauswertung!AH32)=FALSE,\"noch nicht bewertet\",IF(Dokumentenauswertung!AH32>Dokumentenauswertung!$C32,\"max. Punkte überschritten\",Dokumentenauswertung!AH32)))","v":""},{"$f":"IF(Dokumentenauswertung!AI$10=\"\",\"\",IF(ISNUMBER(Dokumentenauswertung!AI32)=FALSE,\"noch nicht bewertet\",IF(Dokumentenauswertung!AI32>Dokumentenauswertung!$C32,\"max. Punkte überschritten\",Dokumentenauswertung!AI32)))","v":""},{"$f":"IF(Dokumentenauswertung!AJ$10=\"\",\"\",IF(ISNUMBER(Dokumentenauswertung!AJ32)=FALSE,\"noch nicht bewertet\",IF(Dokumentenauswertung!AJ32>Dokumentenauswertung!$C32,\"max. Punkte überschritten\",Dokumentenauswertung!AJ32)))","v":""},{"$f":"IF(Dokumentenauswertung!AK$10=\"\",\"\",IF(ISNUMBER(Dokumentenauswertung!AK32)=FALSE,\"noch nicht bewertet\",IF(Dokumentenauswertung!AK32>Dokumentenauswertung!$C32,\"max. Punkte überschritten\",Dokumentenauswertung!AK32)))","v":""}]
[null,null,{"$f":"Dokumentenauswertung!$A33","v":"B2"},{"$f":"IF(Dokumentenauswertung!E$10=\"\",\"\",IF(ISNUMBER(Dokumentenauswertung!E33)=FALSE,\"noch nicht bewertet\",IF(Dokumentenauswertung!E33>Dokumentenauswertung!$C33,\"max. Punkte überschritten\",Dokumentenauswertung!E33)))","v":""},{"$f":"IF(Dokumentenauswertung!F$10=\"\",\"\",IF(ISNUMBER(Dokumentenauswertung!F33)=FALSE,\"noch nicht bewertet\",IF(Dokumentenauswertung!F33>Dokumentenauswertung!$C33,\"max. Punkte überschritten\",Dokumentenauswertung!F33)))","v":""},{"$f":"IF(Dokumentenauswertung!G$10=\"\",\"\",IF(ISNUMBER(Dokumentenauswertung!G33)=FALSE,\"noch nicht bewertet\",IF(Dokumentenauswertung!G33>Dokumentenauswertung!$C33,\"max. Punkte überschritten\",Dokumentenauswertung!G33)))","v":""},{"$f":"IF(Dokumentenauswertung!H$10=\"\",\"\",IF(ISNUMBER(Dokumentenauswertung!H33)=FALSE,\"noch nicht bewertet\",IF(Dokumentenauswertung!H33>Dokumentenauswertung!$C33,\"max. Punkte überschritten\",Dokumentenauswertung!H33)))","v":""},{"$f":"IF(Dokumentenauswertung!I$10=\"\",\"\",IF(ISNUMBER(Dokumentenauswertung!I33)=FALSE,\"noch nicht bewertet\",IF(Dokumentenauswertung!I33>Dokumentenauswertung!$C33,\"max. Punkte überschritten\",Dokumentenauswertung!I33)))","v":""},{"$f":"IF(Dokumentenauswertung!J$10=\"\",\"\",IF(ISNUMBER(Dokumentenauswertung!J33)=FALSE,\"noch nicht bewertet\",IF(Dokumentenauswertung!J33>Dokumentenauswertung!$C33,\"max. Punkte überschritten\",Dokumentenauswertung!J33)))","v":""},{"$f":"IF(Dokumentenauswertung!K$10=\"\",\"\",IF(ISNUMBER(Dokumentenauswertung!K33)=FALSE,\"noch nicht bewertet\",IF(Dokumentenauswertung!K33>Dokumentenauswertung!$C33,\"max. Punkte überschritten\",Dokumentenauswertung!K33)))","v":""},{"$f":"IF(Dokumentenauswertung!L$10=\"\",\"\",IF(ISNUMBER(Dokumentenauswertung!L33)=FALSE,\"noch nicht bewertet\",IF(Dokumentenauswertung!L33>Dokumentenauswertung!$C33,\"max. Punkte überschritten\",Dokumentenauswertung!L33)))","v":""},{"$f":"IF(Dokumentenauswertung!M$10=\"\",\"\",IF(ISNUMBER(Dokumentenauswertung!M33)=FALSE,\"noch nicht bewertet\",IF(Dokumentenauswertung!M33>Dokumentenauswertung!$C33,\"max. Punkte überschritten\",Dokumentenauswertung!M33)))","v":""},{"$f":"IF(Dokumentenauswertung!N$10=\"\",\"\",IF(ISNUMBER(Dokumentenauswertung!N33)=FALSE,\"noch nicht bewertet\",IF(Dokumentenauswertung!N33>Dokumentenauswertung!$C33,\"max. Punkte überschritten\",Dokumentenauswertung!N33)))","v":""},{"$f":"IF(Dokumentenauswertung!O$10=\"\",\"\",IF(ISNUMBER(Dokumentenauswertung!O33)=FALSE,\"noch nicht bewertet\",IF(Dokumentenauswertung!O33>Dokumentenauswertung!$C33,\"max. Punkte überschritten\",Dokumentenauswertung!O33)))","v":""},{"$f":"IF(Dokumentenauswertung!P$10=\"\",\"\",IF(ISNUMBER(Dokumentenauswertung!P33)=FALSE,\"noch nicht bewertet\",IF(Dokumentenauswertung!P33>Dokumentenauswertung!$C33,\"max. Punkte überschritten\",Dokumentenauswertung!P33)))","v":""},{"$f":"IF(Dokumentenauswertung!Q$10=\"\",\"\",IF(ISNUMBER(Dokumentenauswertung!Q33)=FALSE,\"noch nicht bewertet\",IF(Dokumentenauswertung!Q33>Dokumentenauswertung!$C33,\"max. Punkte überschritten\",Dokumentenauswertung!Q33)))","v":""},{"$f":"IF(Dokumentenauswertung!R$10=\"\",\"\",IF(ISNUMBER(Dokumentenauswertung!R33)=FALSE,\"noch nicht bewertet\",IF(Dokumentenauswertung!R33>Dokumentenauswertung!$C33,\"max. Punkte überschritten\",Dokumentenauswertung!R33)))","v":""},{"$f":"IF(Dokumentenauswertung!S$10=\"\",\"\",IF(ISNUMBER(Dokumentenauswertung!S33)=FALSE,\"noch nicht bewertet\",IF(Dokumentenauswertung!S33>Dokumentenauswertung!$C33,\"max. Punkte überschritten\",Dokumentenauswertung!S33)))","v":""},{"$f":"IF(Dokumentenauswertung!T$10=\"\",\"\",IF(ISNUMBER(Dokumentenauswertung!T33)=FALSE,\"noch nicht bewertet\",IF(Dokumentenauswertung!T33>Dokumentenauswertung!$C33,\"max. Punkte überschritten\",Dokumentenauswertung!T33)))","v":""},{"$f":"IF(Dokumentenauswertung!U$10=\"\",\"\",IF(ISNUMBER(Dokumentenauswertung!U33)=FALSE,\"noch nicht bewertet\",IF(Dokumentenauswertung!U33>Dokumentenauswertung!$C33,\"max. Punkte überschritten\",Dokumentenauswertung!U33)))","v":""},{"$f":"IF(Dokumentenauswertung!V$10=\"\",\"\",IF(ISNUMBER(Dokumentenauswertung!V33)=FALSE,\"noch nicht bewertet\",IF(Dokumentenauswertung!V33>Dokumentenauswertung!$C33,\"max. Punkte überschritten\",Dokumentenauswertung!V33)))","v":""},{"$f":"IF(Dokumentenauswertung!W$10=\"\",\"\",IF(ISNUMBER(Dokumentenauswertung!W33)=FALSE,\"noch nicht bewertet\",IF(Dokumentenauswertung!W33>Dokumentenauswertung!$C33,\"max. Punkte überschritten\",Dokumentenauswertung!W33)))","v":""},{"$f":"IF(Dokumentenauswertung!X$10=\"\",\"\",IF(ISNUMBER(Dokumentenauswertung!X33)=FALSE,\"noch nicht bewertet\",IF(Dokumentenauswertung!X33>Dokumentenauswertung!$C33,\"max. Punkte überschritten\",Dokumentenauswertung!X33)))","v":""},{"$f":"IF(Dokumentenauswertung!Y$10=\"\",\"\",IF(ISNUMBER(Dokumentenauswertung!Y33)=FALSE,\"noch nicht bewertet\",IF(Dokumentenauswertung!Y33>Dokumentenauswertung!$C33,\"max. Punkte überschritten\",Dokumentenauswertung!Y33)))","v":""},{"$f":"IF(Dokumentenauswertung!Z$10=\"\",\"\",IF(ISNUMBER(Dokumentenauswertung!Z33)=FALSE,\"noch nicht bewertet\",IF(Dokumentenauswertung!Z33>Dokumentenauswertung!$C33,\"max. Punkte überschritten\",Dokumentenauswertung!Z33)))","v":""},{"$f":"IF(Dokumentenauswertung!AA$10=\"\",\"\",IF(ISNUMBER(Dokumentenauswertung!AA33)=FALSE,\"noch nicht bewertet\",IF(Dokumentenauswertung!AA33>Dokumentenauswertung!$C33,\"max. Punkte überschritten\",Dokumentenauswertung!AA33)))","v":""},{"$f":"IF(Dokumentenauswertung!AB$10=\"\",\"\",IF(ISNUMBER(Dokumentenauswertung!AB33)=FALSE,\"noch nicht bewertet\",IF(Dokumentenauswertung!AB33>Dokumentenauswertung!$C33,\"max. Punkte überschritten\",Dokumentenauswertung!AB33)))","v":""},{"$f":"IF(Dokumentenauswertung!AC$10=\"\",\"\",IF(ISNUMBER(Dokumentenauswertung!AC33)=FALSE,\"noch nicht bewertet\",IF(Dokumentenauswertung!AC33>Dokumentenauswertung!$C33,\"max. Punkte überschritten\",Dokumentenauswertung!AC33)))","v":""},{"$f":"IF(Dokumentenauswertung!AD$10=\"\",\"\",IF(ISNUMBER(Dokumentenauswertung!AD33)=FALSE,\"noch nicht bewertet\",IF(Dokumentenauswertung!AD33>Dokumentenauswertung!$C33,\"max. Punkte überschritten\",Dokumentenauswertung!AD33)))","v":""},{"$f":"IF(Dokumentenauswertung!AE$10=\"\",\"\",IF(ISNUMBER(Dokumentenauswertung!AE33)=FALSE,\"noch nicht bewertet\",IF(Dokumentenauswertung!AE33>Dokumentenauswertung!$C33,\"max. Punkte überschritten\",Dokumentenauswertung!AE33)))","v":""},{"$f":"IF(Dokumentenauswertung!AF$10=\"\",\"\",IF(ISNUMBER(Dokumentenauswertung!AF33)=FALSE,\"noch nicht bewertet\",IF(Dokumentenauswertung!AF33>Dokumentenauswertung!$C33,\"max. Punkte überschritten\",Dokumentenauswertung!AF33)))","v":""},{"$f":"IF(Dokumentenauswertung!AG$10=\"\",\"\",IF(ISNUMBER(Dokumentenauswertung!AG33)=FALSE,\"noch nicht bewertet\",IF(Dokumentenauswertung!AG33>Dokumentenauswertung!$C33,\"max. Punkte überschritten\",Dokumentenauswertung!AG33)))","v":""},{"$f":"IF(Dokumentenauswertung!AH$10=\"\",\"\",IF(ISNUMBER(Dokumentenauswertung!AH33)=FALSE,\"noch nicht bewertet\",IF(Dokumentenauswertung!AH33>Dokumentenauswertung!$C33,\"max. Punkte überschritten\",Dokumentenauswertung!AH33)))","v":""},{"$f":"IF(Dokumentenauswertung!AI$10=\"\",\"\",IF(ISNUMBER(Dokumentenauswertung!AI33)=FALSE,\"noch nicht bewertet\",IF(Dokumentenauswertung!AI33>Dokumentenauswertung!$C33,\"max. Punkte überschritten\",Dokumentenauswertung!AI33)))","v":""},{"$f":"IF(Dokumentenauswertung!AJ$10=\"\",\"\",IF(ISNUMBER(Dokumentenauswertung!AJ33)=FALSE,\"noch nicht bewertet\",IF(Dokumentenauswertung!AJ33>Dokumentenauswertung!$C33,\"max. Punkte überschritten\",Dokumentenauswertung!AJ33)))","v":""},{"$f":"IF(Dokumentenauswertung!AK$10=\"\",\"\",IF(ISNUMBER(Dokumentenauswertung!AK33)=FALSE,\"noch nicht bewertet\",IF(Dokumentenauswertung!AK33>Dokumentenauswertung!$C33,\"max. Punkte überschritten\",Dokumentenauswertung!AK33)))","v":""}]
[null,null,{"$f":"Dokumentenauswertung!$A34","v":"B3"},{"$f":"IF(Dokumentenauswertung!E$10=\"\",\"\",IF(ISNUMBER(Dokumentenauswertung!E34)=FALSE,\"noch nicht bewertet\",IF(Dokumentenauswertung!E34>Dokumentenauswertung!$C34,\"max. Punkte überschritten\",Dokumentenauswertung!E34)))","v":""},{"$f":"IF(Dokumentenauswertung!F$10=\"\",\"\",IF(ISNUMBER(Dokumentenauswertung!F34)=FALSE,\"noch nicht bewertet\",IF(Dokumentenauswertung!F34>Dokumentenauswertung!$C34,\"max. Punkte überschritten\",Dokumentenauswertung!F34)))","v":""},{"$f":"IF(Dokumentenauswertung!G$10=\"\",\"\",IF(ISNUMBER(Dokumentenauswertung!G34)=FALSE,\"noch nicht bewertet\",IF(Dokumentenauswertung!G34>Dokumentenauswertung!$C34,\"max. Punkte überschritten\",Dokumentenauswertung!G34)))","v":""},{"$f":"IF(Dokumentenauswertung!H$10=\"\",\"\",IF(ISNUMBER(Dokumentenauswertung!H34)=FALSE,\"noch nicht bewertet\",IF(Dokumentenauswertung!H34>Dokumentenauswertung!$C34,\"max. Punkte überschritten\",Dokumentenauswertung!H34)))","v":""},{"$f":"IF(Dokumentenauswertung!I$10=\"\",\"\",IF(ISNUMBER(Dokumentenauswertung!I34)=FALSE,\"noch nicht bewertet\",IF(Dokumentenauswertung!I34>Dokumentenauswertung!$C34,\"max. Punkte überschritten\",Dokumentenauswertung!I34)))","v":""},{"$f":"IF(Dokumentenauswertung!J$10=\"\",\"\",IF(ISNUMBER(Dokumentenauswertung!J34)=FALSE,\"noch nicht bewertet\",IF(Dokumentenauswertung!J34>Dokumentenauswertung!$C34,\"max. Punkte überschritten\",Dokumentenauswertung!J34)))","v":""},{"$f":"IF(Dokumentenauswertung!K$10=\"\",\"\",IF(ISNUMBER(Dokumentenauswertung!K34)=FALSE,\"noch nicht bewertet\",IF(Dokumentenauswertung!K34>Dokumentenauswertung!$C34,\"max. Punkte überschritten\",Dokumentenauswertung!K34)))","v":""},{"$f":"IF(Dokumentenauswertung!L$10=\"\",\"\",IF(ISNUMBER(Dokumentenauswertung!L34)=FALSE,\"noch nicht bewertet\",IF(Dokumentenauswertung!L34>Dokumentenauswertung!$C34,\"max. Punkte überschritten\",Dokumentenauswertung!L34)))","v":""},{"$f":"IF(Dokumentenauswertung!M$10=\"\",\"\",IF(ISNUMBER(Dokumentenauswertung!M34)=FALSE,\"noch nicht bewertet\",IF(Dokumentenauswertung!M34>Dokumentenauswertung!$C34,\"max. Punkte überschritten\",Dokumentenauswertung!M34)))","v":""},{"$f":"IF(Dokumentenauswertung!N$10=\"\",\"\",IF(ISNUMBER(Dokumentenauswertung!N34)=FALSE,\"noch nicht bewertet\",IF(Dokumentenauswertung!N34>Dokumentenauswertung!$C34,\"max. Punkte überschritten\",Dokumentenauswertung!N34)))","v":""},{"$f":"IF(Dokumentenauswertung!O$10=\"\",\"\",IF(ISNUMBER(Dokumentenauswertung!O34)=FALSE,\"noch nicht bewertet\",IF(Dokumentenauswertung!O34>Dokumentenauswertung!$C34,\"max. Punkte überschritten\",Dokumentenauswertung!O34)))","v":""},{"$f":"IF(Dokumentenauswertung!P$10=\"\",\"\",IF(ISNUMBER(Dokumentenauswertung!P34)=FALSE,\"noch nicht bewertet\",IF(Dokumentenauswertung!P34>Dokumentenauswertung!$C34,\"max. Punkte überschritten\",Dokumentenauswertung!P34)))","v":""},{"$f":"IF(Dokumentenauswertung!Q$10=\"\",\"\",IF(ISNUMBER(Dokumentenauswertung!Q34)=FALSE,\"noch nicht bewertet\",IF(Dokumentenauswertung!Q34>Dokumentenauswertung!$C34,\"max. Punkte überschritten\",Dokumentenauswertung!Q34)))","v":""},{"$f":"IF(Dokumentenauswertung!R$10=\"\",\"\",IF(ISNUMBER(Dokumentenauswertung!R34)=FALSE,\"noch nicht bewertet\",IF(Dokumentenauswertung!R34>Dokumentenauswertung!$C34,\"max. Punkte überschritten\",Dokumentenauswertung!R34)))","v":""},{"$f":"IF(Dokumentenauswertung!S$10=\"\",\"\",IF(ISNUMBER(Dokumentenauswertung!S34)=FALSE,\"noch nicht bewertet\",IF(Dokumentenauswertung!S34>Dokumentenauswertung!$C34,\"max. Punkte überschritten\",Dokumentenauswertung!S34)))","v":""},{"$f":"IF(Dokumentenauswertung!T$10=\"\",\"\",IF(ISNUMBER(Dokumentenauswertung!T34)=FALSE,\"noch nicht bewertet\",IF(Dokumentenauswertung!T34>Dokumentenauswertung!$C34,\"max. Punkte überschritten\",Dokumentenauswertung!T34)))","v":""},{"$f":"IF(Dokumentenauswertung!U$10=\"\",\"\",IF(ISNUMBER(Dokumentenauswertung!U34)=FALSE,\"noch nicht bewertet\",IF(Dokumentenauswertung!U34>Dokumentenauswertung!$C34,\"max. Punkte überschritten\",Dokumentenauswertung!U34)))","v":""},{"$f":"IF(Dokumentenauswertung!V$10=\"\",\"\",IF(ISNUMBER(Dokumentenauswertung!V34)=FALSE,\"noch nicht bewertet\",IF(Dokumentenauswertung!V34>Dokumentenauswertung!$C34,\"max. Punkte überschritten\",Dokumentenauswertung!V34)))","v":""},{"$f":"IF(Dokumentenauswertung!W$10=\"\",\"\",IF(ISNUMBER(Dokumentenauswertung!W34)=FALSE,\"noch nicht bewertet\",IF(Dokumentenauswertung!W34>Dokumentenauswertung!$C34,\"max. Punkte überschritten\",Dokumentenauswertung!W34)))","v":""},{"$f":"IF(Dokumentenauswertung!X$10=\"\",\"\",IF(ISNUMBER(Dokumentenauswertung!X34)=FALSE,\"noch nicht bewertet\",IF(Dokumentenauswertung!X34>Dokumentenauswertung!$C34,\"max. Punkte überschritten\",Dokumentenauswertung!X34)))","v":""},{"$f":"IF(Dokumentenauswertung!Y$10=\"\",\"\",IF(ISNUMBER(Dokumentenauswertung!Y34)=FALSE,\"noch nicht bewertet\",IF(Dokumentenauswertung!Y34>Dokumentenauswertung!$C34,\"max. Punkte überschritten\",Dokumentenauswertung!Y34)))","v":""},{"$f":"IF(Dokumentenauswertung!Z$10=\"\",\"\",IF(ISNUMBER(Dokumentenauswertung!Z34)=FALSE,\"noch nicht bewertet\",IF(Dokumentenauswertung!Z34>Dokumentenauswertung!$C34,\"max. Punkte überschritten\",Dokumentenauswertung!Z34)))","v":""},{"$f":"IF(Dokumentenauswertung!AA$10=\"\",\"\",IF(ISNUMBER(Dokumentenauswertung!AA34)=FALSE,\"noch nicht bewertet\",IF(Dokumentenauswertung!AA34>Dokumentenauswertung!$C34,\"max. Punkte überschritten\",Dokumentenauswertung!AA34)))","v":""},{"$f":"IF(Dokumentenauswertung!AB$10=\"\",\"\",IF(ISNUMBER(Dokumentenauswertung!AB34)=FALSE,\"noch nicht bewertet\",IF(Dokumentenauswertung!AB34>Dokumentenauswertung!$C34,\"max. Punkte überschritten\",Dokumentenauswertung!AB34)))","v":""},{"$f":"IF(Dokumentenauswertung!AC$10=\"\",\"\",IF(ISNUMBER(Dokumentenauswertung!AC34)=FALSE,\"noch nicht bewertet\",IF(Dokumentenauswertung!AC34>Dokumentenauswertung!$C34,\"max. Punkte überschritten\",Dokumentenauswertung!AC34)))","v":""},{"$f":"IF(Dokumentenauswertung!AD$10=\"\",\"\",IF(ISNUMBER(Dokumentenauswertung!AD34)=FALSE,\"noch nicht bewertet\",IF(Dokumentenauswertung!AD34>Dokumentenauswertung!$C34,\"max. Punkte überschritten\",Dokumentenauswertung!AD34)))","v":""},{"$f":"IF(Dokumentenauswertung!AE$10=\"\",\"\",IF(ISNUMBER(Dokumentenauswertung!AE34)=FALSE,\"noch nicht bewertet\",IF(Dokumentenauswertung!AE34>Dokumentenauswertung!$C34,\"max. Punkte überschritten\",Dokumentenauswertung!AE34)))","v":""},{"$f":"IF(Dokumentenauswertung!AF$10=\"\",\"\",IF(ISNUMBER(Dokumentenauswertung!AF34)=FALSE,\"noch nicht bewertet\",IF(Dokumentenauswertung!AF34>Dokumentenauswertung!$C34,\"max. Punkte überschritten\",Dokumentenauswertung!AF34)))","v":""},{"$f":"IF(Dokumentenauswertung!AG$10=\"\",\"\",IF(ISNUMBER(Dokumentenauswertung!AG34)=FALSE,\"noch nicht bewertet\",IF(Dokumentenauswertung!AG34>Dokumentenauswertung!$C34,\"max. Punkte überschritten\",Dokumentenauswertung!AG34)))","v":""},{"$f":"IF(Dokumentenauswertung!AH$10=\"\",\"\",IF(ISNUMBER(Dokumentenauswertung!AH34)=FALSE,\"noch nicht bewertet\",IF(Dokumentenauswertung!AH34>Dokumentenauswertung!$C34,\"max. Punkte überschritten\",Dokumentenauswertung!AH34)))","v":""},{"$f":"IF(Dokumentenauswertung!AI$10=\"\",\"\",IF(ISNUMBER(Dokumentenauswertung!AI34)=FALSE,\"noch nicht bewertet\",IF(Dokumentenauswertung!AI34>Dokumentenauswertung!$C34,\"max. Punkte überschritten\",Dokumentenauswertung!AI34)))","v":""},{"$f":"IF(Dokumentenauswertung!AJ$10=\"\",\"\",IF(ISNUMBER(Dokumentenauswertung!AJ34)=FALSE,\"noch nicht bewertet\",IF(Dokumentenauswertung!AJ34>Dokumentenauswertung!$C34,\"max. Punkte überschritten\",Dokumentenauswertung!AJ34)))","v":""},{"$f":"IF(Dokumentenauswertung!AK$10=\"\",\"\",IF(ISNUMBER(Dokumentenauswertung!AK34)=FALSE,\"noch nicht bewertet\",IF(Dokumentenauswertung!AK34>Dokumentenauswertung!$C34,\"max. Punkte überschritten\",Dokumentenauswertung!AK34)))","v":""}]
[null,null,{"$f":"Dokumentenauswertung!$A35","v":"B4"},{"$f":"IF(Dokumentenauswertung!E$10=\"\",\"\",IF(Dokumentenauswertung!$B35=Dokumentenauswertung!E35,Dokumentenauswertung!$C$35,0))","v":""},{"$f":"IF(Dokumentenauswertung!F$10=\"\",\"\",IF(Dokumentenauswertung!$B35=Dokumentenauswertung!F35,Dokumentenauswertung!$C$35,0))","v":""},{"$f":"IF(Dokumentenauswertung!G$10=\"\",\"\",IF(Dokumentenauswertung!$B35=Dokumentenauswertung!G35,Dokumentenauswertung!$C$35,0))","v":""},{"$f":"IF(Dokumentenauswertung!H$10=\"\",\"\",IF(Dokumentenauswertung!$B35=Dokumentenauswertung!H35,Dokumentenauswertung!$C$35,0))","v":""},{"$f":"IF(Dokumentenauswertung!I$10=\"\",\"\",IF(Dokumentenauswertung!$B35=Dokumentenauswertung!I35,Dokumentenauswertung!$C$35,0))","v":""},{"$f":"IF(Dokumentenauswertung!J$10=\"\",\"\",IF(Dokumentenauswertung!$B35=Dokumentenauswertung!J35,Dokumentenauswertung!$C$35,0))","v":""},{"$f":"IF(Dokumentenauswertung!K$10=\"\",\"\",IF(Dokumentenauswertung!$B35=Dokumentenauswertung!K35,Dokumentenauswertung!$C$35,0))","v":""},{"$f":"IF(Dokumentenauswertung!L$10=\"\",\"\",IF(Dokumentenauswertung!$B35=Dokumentenauswertung!L35,Dokumentenauswertung!$C$35,0))","v":""},{"$f":"IF(Dokumentenauswertung!M$10=\"\",\"\",IF(Dokumentenauswertung!$B35=Dokumentenauswertung!M35,Dokumentenauswertung!$C$35,0))","v":""},{"$f":"IF(Dokumentenauswertung!N$10=\"\",\"\",IF(Dokumentenauswertung!$B35=Dokumentenauswertung!N35,Dokumentenauswertung!$C$35,0))","v":""},{"$f":"IF(Dokumentenauswertung!O$10=\"\",\"\",IF(Dokumentenauswertung!$B35=Dokumentenauswertung!O35,Dokumentenauswertung!$C$35,0))","v":""},{"$f":"IF(Dokumentenauswertung!P$10=\"\",\"\",IF(Dokumentenauswertung!$B35=Dokumentenauswertung!P35,Dokumentenauswertung!$C$35,0))","v":""},{"$f":"IF(Dokumentenauswertung!Q$10=\"\",\"\",IF(Dokumentenauswertung!$B35=Dokumentenauswertung!Q35,Dokumentenauswertung!$C$35,0))","v":""},{"$f":"IF(Dokumentenauswertung!R$10=\"\",\"\",IF(Dokumentenauswertung!$B35=Dokumentenauswertung!R35,Dokumentenauswertung!$C$35,0))","v":""},{"$f":"IF(Dokumentenauswertung!S$10=\"\",\"\",IF(Dokumentenauswertung!$B35=Dokumentenauswertung!S35,Dokumentenauswertung!$C$35,0))","v":""},{"$f":"IF(Dokumentenauswertung!T$10=\"\",\"\",IF(Dokumentenauswertung!$B35=Dokumentenauswertung!T35,Dokumentenauswertung!$C$35,0))","v":""},{"$f":"IF(Dokumentenauswertung!U$10=\"\",\"\",IF(Dokumentenauswertung!$B35=Dokumentenauswertung!U35,Dokumentenauswertung!$C$35,0))","v":""},{"$f":"IF(Dokumentenauswertung!V$10=\"\",\"\",IF(Dokumentenauswertung!$B35=Dokumentenauswertung!V35,Dokumentenauswertung!$C$35,0))","v":""},{"$f":"IF(Dokumentenauswertung!W$10=\"\",\"\",IF(Dokumentenauswertung!$B35=Dokumentenauswertung!W35,Dokumentenauswertung!$C$35,0))","v":""},{"$f":"IF(Dokumentenauswertung!X$10=\"\",\"\",IF(Dokumentenauswertung!$B35=Dokumentenauswertung!X35,Dokumentenauswertung!$C$35,0))","v":""},{"$f":"IF(Dokumentenauswertung!Y$10=\"\",\"\",IF(Dokumentenauswertung!$B35=Dokumentenauswertung!Y35,Dokumentenauswertung!$C$35,0))","v":""},{"$f":"IF(Dokumentenauswertung!Z$10=\"\",\"\",IF(Dokumentenauswertung!$B35=Dokumentenauswertung!Z35,Dokumentenauswertung!$C$35,0))","v":""},{"$f":"IF(Dokumentenauswertung!AA$10=\"\",\"\",IF(Dokumentenauswertung!$B35=Dokumentenauswertung!AA35,Dokumentenauswertung!$C$35,0))","v":""},{"$f":"IF(Dokumentenauswertung!AB$10=\"\",\"\",IF(Dokumentenauswertung!$B35=Dokumentenauswertung!AB35,Dokumentenauswertung!$C$35,0))","v":""},{"$f":"IF(Dokumentenauswertung!AC$10=\"\",\"\",IF(Dokumentenauswertung!$B35=Dokumentenauswertung!AC35,Dokumentenauswertung!$C$35,0))","v":""},{"$f":"IF(Dokumentenauswertung!AD$10=\"\",\"\",IF(Dokumentenauswertung!$B35=Dokumentenauswertung!AD35,Dokumentenauswertung!$C$35,0))","v":""},{"$f":"IF(Dokumentenauswertung!AE$10=\"\",\"\",IF(Dokumentenauswertung!$B35=Dokumentenauswertung!AE35,Dokumentenauswertung!$C$35,0))","v":""},{"$f":"IF(Dokumentenauswertung!AF$10=\"\",\"\",IF(Dokumentenauswertung!$B35=Dokumentenauswertung!AF35,Dokumentenauswertung!$C$35,0))","v":""},{"$f":"IF(Dokumentenauswertung!AG$10=\"\",\"\",IF(Dokumentenauswertung!$B35=Dokumentenauswertung!AG35,Dokumentenauswertung!$C$35,0))","v":""},{"$f":"IF(Dokumentenauswertung!AH$10=\"\",\"\",IF(Dokumentenauswertung!$B35=Dokumentenauswertung!AH35,Dokumentenauswertung!$C$35,0))","v":""},{"$f":"IF(Dokumentenauswertung!AI$10=\"\",\"\",IF(Dokumentenauswertung!$B35=Dokumentenauswertung!AI35,Dokumentenauswertung!$C$35,0))","v":""},{"$f":"IF(Dokumentenauswertung!AJ$10=\"\",\"\",IF(Dokumentenauswertung!$B35=Dokumentenauswertung!AJ35,Dokumentenauswertung!$C$35,0))","v":""},{"$f":"IF(Dokumentenauswertung!AK$10=\"\",\"\",IF(Dokumentenauswertung!$B35=Dokumentenauswertung!AK35,Dokumentenauswertung!$C$35,0))","v":""}]
[]
[null,null,"Richtige pro Fragebogen",{"$f":"IF(Dokumentenauswertung!E$10=\"\",\"\",COUNTIF(D$13:D$34,\">0\"))","v":""},{"$f":"IF(Dokumentenauswertung!F$10=\"\",\"\",COUNTIF(E$13:E$34,1))","v":""},{"$f":"IF(Dokumentenauswertung!G$10=\"\",\"\",COUNTIF(F$13:F$34,1))","v":""},{"$f":"IF(Dokumentenauswertung!H$10=\"\",\"\",COUNTIF(G$13:G$34,1))","v":""},{"$f":"IF(Dokumentenauswertung!I$10=\"\",\"\",COUNTIF(H$13:H$34,1))","v":""},{"$f":"IF(Dokumentenauswertung!J$10=\"\",\"\",COUNTIF(I$13:I$34,1))","v":""},{"$f":"IF(Dokumentenauswertung!K$10=\"\",\"\",COUNTIF(J$13:J$34,1))","v":""},{"$f":"IF(Dokumentenauswertung!L$10=\"\",\"\",COUNTIF(K$13:K$34,1))","v":""},{"$f":"IF(Dokumentenauswertung!M$10=\"\",\"\",COUNTIF(L$13:L$34,1))","v":""},{"$f":"IF(Dokumentenauswertung!N$10=\"\",\"\",COUNTIF(M$13:M$34,1))","v":""},{"$f":"IF(Dokumentenauswertung!O$10=\"\",\"\",COUNTIF(N$13:N$34,1))","v":""},{"$f":"IF(Dokumentenauswertung!P$10=\"\",\"\",COUNTIF(O$13:O$34,1))","v":""},{"$f":"IF(Dokumentenauswertung!Q$10=\"\",\"\",COUNTIF(P$13:P$34,1))","v":""},{"$f":"IF(Dokumentenauswertung!R$10=\"\",\"\",COUNTIF(Q$13:Q$34,1))","v":""},{"$f":"IF(Dokumentenauswertung!S$10=\"\",\"\",COUNTIF(R$13:R$34,1))","v":""},{"$f":"IF(Dokumentenauswertung!T$10=\"\",\"\",COUNTIF(S$13:S$34,1))","v":""},{"$f":"IF(Dokumentenauswertung!U$10=\"\",\"\",COUNTIF(T$13:T$34,1))","v":""},{"$f":"IF(Dokumentenauswertung!V$10=\"\",\"\",COUNTIF(U$13:U$34,1))","v":""},{"$f":"IF(Dokumentenauswertung!W$10=\"\",\"\",COUNTIF(V$13:V$34,1))","v":""},{"$f":"IF(Dokumentenauswertung!X$10=\"\",\"\",COUNTIF(W$13:W$34,1))","v":""},{"$f":"IF(Dokumentenauswertung!Y$10=\"\",\"\",COUNTIF(X$13:X$34,1))","v":""},{"$f":"IF(Dokumentenauswertung!Z$10=\"\",\"\",COUNTIF(Y$13:Y$34,1))","v":""},{"$f":"IF(Dokumentenauswertung!AA$10=\"\",\"\",COUNTIF(Z$13:Z$34,1))","v":""},{"$f":"IF(Dokumentenauswertung!AB$10=\"\",\"\",COUNTIF(AA$13:AA$34,1))","v":""},{"$f":"IF(Dokumentenauswertung!AC$10=\"\",\"\",COUNTIF(AB$13:AB$34,1))","v":""},{"$f":"IF(Dokumentenauswertung!AD$10=\"\",\"\",COUNTIF(AC$13:AC$34,1))","v":""},{"$f":"IF(Dokumentenauswertung!AE$10=\"\",\"\",COUNTIF(AD$13:AD$34,1))","v":""},{"$f":"IF(Dokumentenauswertung!AF$10=\"\",\"\",COUNTIF(AE$13:AE$34,1))","v":""},{"$f":"IF(Dokumentenauswertung!AG$10=\"\",\"\",COUNTIF(AF$13:AF$34,1))","v":""},{"$f":"IF(Dokumentenauswertung!AH$10=\"\",\"\",COUNTIF(AG$13:AG$34,1))","v":""},{"$f":"IF(Dokumentenauswertung!AI$10=\"\",\"\",COUNTIF(AH$13:AH$34,1))","v":""},{"$f":"IF(Dokumentenauswertung!AJ$10=\"\",\"\",COUNTIF(AI$13:AI$34,1))","v":""},{"$f":"IF(Dokumentenauswertung!AK$10=\"\",\"\",COUNTIF(AJ$13:AJ$34,1))","v":""}]
[null,null,"Falsche pro Fragebogen",{"$f":"IF(Dokumentenauswertung!E$10=\"\",\"\",COUNTIF(D$13:D$34,0))","v":""},{"$f":"IF(Dokumentenauswertung!F$10=\"\",\"\",COUNTIF(E$13:E$34,0))","v":""},{"$f":"IF(Dokumentenauswertung!G$10=\"\",\"\",COUNTIF(F$13:F$34,0))","v":""},{"$f":"IF(Dokumentenauswertung!H$10=\"\",\"\",COUNTIF(G$13:G$34,0))","v":""},{"$f":"IF(Dokumentenauswertung!I$10=\"\",\"\",COUNTIF(H$13:H$34,0))","v":""},{"$f":"IF(Dokumentenauswertung!J$10=\"\",\"\",COUNTIF(I$13:I$34,0))","v":""},{"$f":"IF(Dokumentenauswertung!K$10=\"\",\"\",COUNTIF(J$13:J$34,0))","v":""},{"$f":"IF(Dokumentenauswertung!L$10=\"\",\"\",COUNTIF(K$13:K$34,0))","v":""},{"$f":"IF(Dokumentenauswertung!M$10=\"\",\"\",COUNTIF(L$13:L$34,0))","v":""},{"$f":"IF(Dokumentenauswertung!N$10=\"\",\"\",COUNTIF(M$13:M$34,0))","v":""},{"$f":"IF(Dokumentenauswertung!O$10=\"\",\"\",COUNTIF(N$13:N$34,0))","v":""},{"$f":"IF(Dokumentenauswertung!P$10=\"\",\"\",COUNTIF(O$13:O$34,0))","v":""},{"$f":"IF(Dokumentenauswertung!Q$10=\"\",\"\",COUNTIF(P$13:P$34,0))","v":""},{"$f":"IF(Dokumentenauswertung!R$10=\"\",\"\",COUNTIF(Q$13:Q$34,0))","v":""},{"$f":"IF(Dokumentenauswertung!S$10=\"\",\"\",COUNTIF(R$13:R$34,0))","v":""},{"$f":"IF(Dokumentenauswertung!T$10=\"\",\"\",COUNTIF(S$13:S$34,0))","v":""},{"$f":"IF(Dokumentenauswertung!U$10=\"\",\"\",COUNTIF(T$13:T$34,0))","v":""},{"$f":"IF(Dokumentenauswertung!V$10=\"\",\"\",COUNTIF(U$13:U$34,0))","v":""},{"$f":"IF(Dokumentenauswertung!W$10=\"\",\"\",COUNTIF(V$13:V$34,0))","v":""},{"$f":"IF(Dokumentenauswertung!X$10=\"\",\"\",COUNTIF(W$13:W$34,0))","v":""},{"$f":"IF(Dokumentenauswertung!Y$10=\"\",\"\",COUNTIF(X$13:X$34,0))","v":""},{"$f":"IF(Dokumentenauswertung!Z$10=\"\",\"\",COUNTIF(Y$13:Y$34,0))","v":""},{"$f":"IF(Dokumentenauswertung!AA$10=\"\",\"\",COUNTIF(Z$13:Z$34,0))","v":""},{"$f":"IF(Dokumentenauswertung!AB$10=\"\",\"\",COUNTIF(AA$13:AA$34,0))","v":""},{"$f":"IF(Dokumentenauswertung!AC$10=\"\",\"\",COUNTIF(AB$13:AB$34,0))","v":""},{"$f":"IF(Dokumentenauswertung!AD$10=\"\",\"\",COUNTIF(AC$13:AC$34,0))","v":""},{"$f":"IF(Dokumentenauswertung!AE$10=\"\",\"\",COUNTIF(AD$13:AD$34,0))","v":""},{"$f":"IF(Dokumentenauswertung!AF$10=\"\",\"\",COUNTIF(AE$13:AE$34,0))","v":""},{"$f":"IF(Dokumentenauswertung!AG$10=\"\",\"\",COUNTIF(AF$13:AF$34,0))","v":""},{"$f":"IF(Dokumentenauswertung!AH$10=\"\",\"\",COUNTIF(AG$13:AG$34,0))","v":""},{"$f":"IF(Dokumentenauswertung!AI$10=\"\",\"\",COUNTIF(AH$13:AH$34,0))","v":""},{"$f":"IF(Dokumentenauswertung!AJ$10=\"\",\"\",COUNTIF(AI$13:AI$34,0))","v":""},{"$f":"IF(Dokumentenauswertung!AK$10=\"\",\"\",COUNTIF(AJ$13:AJ$34,0))","v":""}]
[]
[null,null,"Richtige pro Fragebogen in %",{"$f":"IF(Dokumentenauswertung!E$10=\"\",\"\",D36/SUM(D36:D37))","v":""},{"$f":"IF(Dokumentenauswertung!F$10=\"\",\"\",E36/SUM(E36:E37))","v":""},{"$f":"IF(Dokumentenauswertung!G$10=\"\",\"\",F36/SUM(F36:F37))","v":""},{"$f":"IF(Dokumentenauswertung!H$10=\"\",\"\",G36/SUM(G36:G37))","v":""},{"$f":"IF(Dokumentenauswertung!I$10=\"\",\"\",H36/SUM(H36:H37))","v":""},{"$f":"IF(Dokumentenauswertung!J$10=\"\",\"\",I36/SUM(I36:I37))","v":""},{"$f":"IF(Dokumentenauswertung!K$10=\"\",\"\",J36/SUM(J36:J37))","v":""},{"$f":"IF(Dokumentenauswertung!L$10=\"\",\"\",K36/SUM(K36:K37))","v":""},{"$f":"IF(Dokumentenauswertung!M$10=\"\",\"\",L36/SUM(L36:L37))","v":""},{"$f":"IF(Dokumentenauswertung!N$10=\"\",\"\",M36/SUM(M36:M37))","v":""},{"$f":"IF(Dokumentenauswertung!O$10=\"\",\"\",N36/SUM(N36:N37))","v":""},{"$f":"IF(Dokumentenauswertung!P$10=\"\",\"\",O36/SUM(O36:O37))","v":""},{"$f":"IF(Dokumentenauswertung!Q$10=\"\",\"\",P36/SUM(P36:P37))","v":""},{"$f":"IF(Dokumentenauswertung!R$10=\"\",\"\",Q36/SUM(Q36:Q37))","v":""},{"$f":"IF(Dokumentenauswertung!S$10=\"\",\"\",R36/SUM(R36:R37))","v":""},{"$f":"IF(Dokumentenauswertung!T$10=\"\",\"\",S36/SUM(S36:S37))","v":""},{"$f":"IF(Dokumentenauswertung!U$10=\"\",\"\",T36/SUM(T36:T37))","v":""},{"$f":"IF(Dokumentenauswertung!V$10=\"\",\"\",U36/SUM(U36:U37))","v":""},{"$f":"IF(Dokumentenauswertung!W$10=\"\",\"\",V36/SUM(V36:V37))","v":""},{"$f":"IF(Dokumentenauswertung!X$10=\"\",\"\",W36/SUM(W36:W37))","v":""},{"$f":"IF(Dokumentenauswertung!Y$10=\"\",\"\",X36/SUM(X36:X37))","v":""},{"$f":"IF(Dokumentenauswertung!Z$10=\"\",\"\",Y36/SUM(Y36:Y37))","v":""},{"$f":"IF(Dokumentenauswertung!AA$10=\"\",\"\",Z36/SUM(Z36:Z37))","v":""},{"$f":"IF(Dokumentenauswertung!AB$10=\"\",\"\",AA36/SUM(AA36:AA37))","v":""},{"$f":"IF(Dokumentenauswertung!AC$10=\"\",\"\",AB36/SUM(AB36:AB37))","v":""},{"$f":"IF(Dokumentenauswertung!AD$10=\"\",\"\",AC36/SUM(AC36:AC37))","v":""},{"$f":"IF(Dokumentenauswertung!AE$10=\"\",\"\",AD36/SUM(AD36:AD37))","v":""},{"$f":"IF(Dokumentenauswertung!AF$10=\"\",\"\",AE36/SUM(AE36:AE37))","v":""},{"$f":"IF(Dokumentenauswertung!AG$10=\"\",\"\",AF36/SUM(AF36:AF37))","v":""},{"$f":"IF(Dokumentenauswertung!AH$10=\"\",\"\",AG36/SUM(AG36:AG37))","v":""},{"$f":"IF(Dokumentenauswertung!AI$10=\"\",\"\",AH36/SUM(AH36:AH37))","v":""},{"$f":"IF(Dokumentenauswertung!AJ$10=\"\",\"\",AI36/SUM(AI36:AI37))","v":""},{"$f":"IF(Dokumentenauswertung!AK$10=\"\",\"\",AJ36/SUM(AJ36:AJ37))","v":""}]
[]
[null,null,"Maximal erreichbare Punktezahl",{"$f":"IF(Dokumentenauswertung!E$10=\"\",\"\",SUM(Dokumentenauswertung!$C$14:$C$35))","v":""},{"$f":"IF(Dokumentenauswertung!F$10=\"\",\"\",SUM(Dokumentenauswertung!$C$14:$C$35))","v":""},{"$f":"IF(Dokumentenauswertung!G$10=\"\",\"\",SUM(Dokumentenauswertung!$C$14:$C$35))","v":""},{"$f":"IF(Dokumentenauswertung!H$10=\"\",\"\",SUM(Dokumentenauswertung!$C$14:$C$35))","v":""},{"$f":"IF(Dokumentenauswertung!I$10=\"\",\"\",SUM(Dokumentenauswertung!$C$14:$C$35))","v":""},{"$f":"IF(Dokumentenauswertung!J$10=\"\",\"\",SUM(Dokumentenauswertung!$C$14:$C$35))","v":""},{"$f":"IF(Dokumentenauswertung!K$10=\"\",\"\",SUM(Dokumentenauswertung!$C$14:$C$35))","v":""},{"$f":"IF(Dokumentenauswertung!L$10=\"\",\"\",SUM(Dokumentenauswertung!$C$14:$C$35))","v":""},{"$f":"IF(Dokumentenauswertung!M$10=\"\",\"\",SUM(Dokumentenauswertung!$C$14:$C$35))","v":""},{"$f":"IF(Dokumentenauswertung!N$10=\"\",\"\",SUM(Dokumentenauswertung!$C$14:$C$35))","v":""},{"$f":"IF(Dokumentenauswertung!O$10=\"\",\"\",SUM(Dokumentenauswertung!$C$14:$C$35))","v":""},{"$f":"IF(Dokumentenauswertung!P$10=\"\",\"\",SUM(Dokumentenauswertung!$C$14:$C$35))","v":""},{"$f":"IF(Dokumentenauswertung!Q$10=\"\",\"\",SUM(Dokumentenauswertung!$C$14:$C$35))","v":""},{"$f":"IF(Dokumentenauswertung!R$10=\"\",\"\",SUM(Dokumentenauswertung!$C$14:$C$35))","v":""},{"$f":"IF(Dokumentenauswertung!S$10=\"\",\"\",SUM(Dokumentenauswertung!$C$14:$C$35))","v":""},{"$f":"IF(Dokumentenauswertung!T$10=\"\",\"\",SUM(Dokumentenauswertung!$C$14:$C$35))","v":""},{"$f":"IF(Dokumentenauswertung!U$10=\"\",\"\",SUM(Dokumentenauswertung!$C$14:$C$35))","v":""},{"$f":"IF(Dokumentenauswertung!V$10=\"\",\"\",SUM(Dokumentenauswertung!$C$14:$C$35))","v":""},{"$f":"IF(Dokumentenauswertung!W$10=\"\",\"\",SUM(Dokumentenauswertung!$C$14:$C$35))","v":""},{"$f":"IF(Dokumentenauswertung!X$10=\"\",\"\",SUM(Dokumentenauswertung!$C$14:$C$35))","v":""},{"$f":"IF(Dokumentenauswertung!Y$10=\"\",\"\",SUM(Dokumentenauswertung!$C$14:$C$35))","v":""},{"$f":"IF(Dokumentenauswertung!Z$10=\"\",\"\",SUM(Dokumentenauswertung!$C$14:$C$35))","v":""},{"$f":"IF(Dokumentenauswertung!AA$10=\"\",\"\",SUM(Dokumentenauswertung!$C$14:$C$35))","v":""},{"$f":"IF(Dokumentenauswertung!AB$10=\"\",\"\",SUM(Dokumentenauswertung!$C$14:$C$35))","v":""},{"$f":"IF(Dokumentenauswertung!AC$10=\"\",\"\",SUM(Dokumentenauswertung!$C$14:$C$35))","v":""},{"$f":"IF(Dokumentenauswertung!AD$10=\"\",\"\",SUM(Dokumentenauswertung!$C$14:$C$35))","v":""},{"$f":"IF(Dokumentenauswertung!AE$10=\"\",\"\",SUM(Dokumentenauswertung!$C$14:$C$35))","v":""},{"$f":"IF(Dokumentenauswertung!AF$10=\"\",\"\",SUM(Dokumentenauswertung!$C$14:$C$35))","v":""},{"$f":"IF(Dokumentenauswertung!AG$10=\"\",\"\",SUM(Dokumentenauswertung!$C$14:$C$35))","v":""},{"$f":"IF(Dokumentenauswertung!AH$10=\"\",\"\",SUM(Dokumentenauswertung!$C$14:$C$35))","v":""},{"$f":"IF(Dokumentenauswertung!AI$10=\"\",\"\",SUM(Dokumentenauswertung!$C$14:$C$35))","v":""},{"$f":"IF(Dokumentenauswertung!AJ$10=\"\",\"\",SUM(Dokumentenauswertung!$C$14:$C$35))","v":""},{"$f":"IF(Dokumentenauswertung!AK$10=\"\",\"\",SUM(Dokumentenauswertung!$C$14:$C$35))","v":""}]
[null,null,"Punktezahl pro Fragebogen",{"$f":"IF(Dokumentenauswertung!E$10=\"\",\"\",SUM(D$13:D$34))","v":""},{"$f":"IF(Dokumentenauswertung!F$10=\"\",\"\",SUM(E$13:E$34))","v":""},{"$f":"IF(Dokumentenauswertung!G$10=\"\",\"\",SUM(F$13:F$34))","v":""},{"$f":"IF(Dokumentenauswertung!H$10=\"\",\"\",SUM(G$13:G$34))","v":""},{"$f":"IF(Dokumentenauswertung!I$10=\"\",\"\",SUM(H$13:H$34))","v":""},{"$f":"IF(Dokumentenauswertung!J$10=\"\",\"\",SUM(I$13:I$34))","v":""},{"$f":"IF(Dokumentenauswertung!K$10=\"\",\"\",SUM(J$13:J$34))","v":""},{"$f":"IF(Dokumentenauswertung!L$10=\"\",\"\",SUM(K$13:K$34))","v":""},{"$f":"IF(Dokumentenauswertung!M$10=\"\",\"\",SUM(L$13:L$34))","v":""},{"$f":"IF(Dokumentenauswertung!N$10=\"\",\"\",SUM(M$13:M$34))","v":""},{"$f":"IF(Dokumentenauswertung!O$10=\"\",\"\",SUM(N$13:N$34))","v":""},{"$f":"IF(Dokumentenauswertung!P$10=\"\",\"\",SUM(O$13:O$34))","v":""},{"$f":"IF(Dokumentenauswertung!Q$10=\"\",\"\",SUM(P$13:P$34))","v":""},{"$f":"IF(Dokumentenauswertung!R$10=\"\",\"\",SUM(Q$13:Q$34))","v":""},{"$f":"IF(Dokumentenauswertung!S$10=\"\",\"\",SUM(R$13:R$34))","v":""},{"$f":"IF(Dokumentenauswertung!T$10=\"\",\"\",SUM(S$13:S$34))","v":""},{"$f":"IF(Dokumentenauswertung!U$10=\"\",\"\",SUM(T$13:T$34))","v":""},{"$f":"IF(Dokumentenauswertung!V$10=\"\",\"\",SUM(U$13:U$34))","v":""},{"$f":"IF(Dokumentenauswertung!W$10=\"\",\"\",SUM(V$13:V$34))","v":""},{"$f":"IF(Dokumentenauswertung!X$10=\"\",\"\",SUM(W$13:W$34))","v":""},{"$f":"IF(Dokumentenauswertung!Y$10=\"\",\"\",SUM(X$13:X$34))","v":""},{"$f":"IF(Dokumentenauswertung!Z$10=\"\",\"\",SUM(Y$13:Y$34))","v":""},{"$f":"IF(Dokumentenauswertung!AA$10=\"\",\"\",SUM(Z$13:Z$34))","v":""},{"$f":"IF(Dokumentenauswertung!AB$10=\"\",\"\",SUM(AA$13:AA$34))","v":""},{"$f":"IF(Dokumentenauswertung!AC$10=\"\",\"\",SUM(AB$13:AB$34))","v":""},{"$f":"IF(Dokumentenauswertung!AD$10=\"\",\"\",SUM(AC$13:AC$34))","v":""},{"$f":"IF(Dokumentenauswertung!AE$10=\"\",\"\",SUM(AD$13:AD$34))","v":""},{"$f":"IF(Dokumentenauswertung!AF$10=\"\",\"\",SUM(AE$13:AE$34))","v":""},{"$f":"IF(Dokumentenauswertung!AG$10=\"\",\"\",SUM(AF$13:AF$34))","v":""},{"$f":"IF(Dokumentenauswertung!AH$10=\"\",\"\",SUM(AG$13:AG$34))","v":""},{"$f":"IF(Dokumentenauswertung!AI$10=\"\",\"\",SUM(AH$13:AH$34))","v":""},{"$f":"IF(Dokumentenauswertung!AJ$10=\"\",\"\",SUM(AI$13:AI$34))","v":""},{"$f":"IF(Dokumentenauswertung!AK$10=\"\",\"\",SUM(AJ$13:AJ$34))","v":""}]
[null,null,"Punktezahl in %",{"$f":"IF(Dokumentenauswertung!E$10=\"\",\"\",D$42/D$41)","v":""},{"$f":"IF(Dokumentenauswertung!F$10=\"\",\"\",E$42/E$41)","v":""},{"$f":"IF(Dokumentenauswertung!G$10=\"\",\"\",F$42/F$41)","v":""},{"$f":"IF(Dokumentenauswertung!H$10=\"\",\"\",G$42/G$41)","v":""},{"$f":"IF(Dokumentenauswertung!I$10=\"\",\"\",H$42/H$41)","v":""},{"$f":"IF(Dokumentenauswertung!J$10=\"\",\"\",I$42/I$41)","v":""},{"$f":"IF(Dokumentenauswertung!K$10=\"\",\"\",J$42/J$41)","v":""},{"$f":"IF(Dokumentenauswertung!L$10=\"\",\"\",K$42/K$41)","v":""},{"$f":"IF(Dokumentenauswertung!M$10=\"\",\"\",L$42/L$41)","v":""},{"$f":"IF(Dokumentenauswertung!N$10=\"\",\"\",M$42/M$41)","v":""},{"$f":"IF(Dokumentenauswertung!O$10=\"\",\"\",N$42/N$41)","v":""},{"$f":"IF(Dokumentenauswertung!P$10=\"\",\"\",O$42/O$41)","v":""},{"$f":"IF(Dokumentenauswertung!Q$10=\"\",\"\",P$42/P$41)","v":""},{"$f":"IF(Dokumentenauswertung!R$10=\"\",\"\",Q$42/Q$41)","v":""},{"$f":"IF(Dokumentenauswertung!S$10=\"\",\"\",R$42/R$41)","v":""},{"$f":"IF(Dokumentenauswertung!T$10=\"\",\"\",S$42/S$41)","v":""},{"$f":"IF(Dokumentenauswertung!U$10=\"\",\"\",T$42/T$41)","v":""},{"$f":"IF(Dokumentenauswertung!V$10=\"\",\"\",U$42/U$41)","v":""},{"$f":"IF(Dokumentenauswertung!W$10=\"\",\"\",V$42/V$41)","v":""},{"$f":"IF(Dokumentenauswertung!X$10=\"\",\"\",W$42/W$41)","v":""},{"$f":"IF(Dokumentenauswertung!Y$10=\"\",\"\",X$42/X$41)","v":""},{"$f":"IF(Dokumentenauswertung!Z$10=\"\",\"\",Y$42/Y$41)","v":""},{"$f":"IF(Dokumentenauswertung!AA$10=\"\",\"\",Z$42/Z$41)","v":""},{"$f":"IF(Dokumentenauswertung!AB$10=\"\",\"\",AA$42/AA$41)","v":""},{"$f":"IF(Dokumentenauswertung!AC$10=\"\",\"\",AB$42/AB$41)","v":""},{"$f":"IF(Dokumentenauswertung!AD$10=\"\",\"\",AC$42/AC$41)","v":""},{"$f":"IF(Dokumentenauswertung!AE$10=\"\",\"\",AD$42/AD$41)","v":""},{"$f":"IF(Dokumentenauswertung!AF$10=\"\",\"\",AE$42/AE$41)","v":""},{"$f":"IF(Dokumentenauswertung!AG$10=\"\",\"\",AF$42/AF$41)","v":""},{"$f":"IF(Dokumentenauswertung!AH$10=\"\",\"\",AG$42/AG$41)","v":""},{"$f":"IF(Dokumentenauswertung!AI$10=\"\",\"\",AH$42/AH$41)","v":""},{"$f":"IF(Dokumentenauswertung!AJ$10=\"\",\"\",AI$42/AI$41)","v":""},{"$f":"IF(Dokumentenauswertung!AK$10=\"\",\"\",AJ$42/AJ$41)","v":""}]
[]
[]
[]
[null,null,"Mittelwert Richtige in % (über alle Auswertungen)"]
[null,null,{"$f":"IFERROR(AVERAGE(D39:AJ39),\"keine Daten zur Bestimmung des Mittelwertes\")","v":"keine Daten zur Bestimmung des Mittelwertes"}]
[]
[null,null,"Mittelwert Punktezahl in % (über alle Auswertungen)"]
[null,null,{"$f":"IFERROR(AVERAGE(D43:AJ43),\"keine Daten zur Bestimmung des Mittelwertes\")","v":"keine Daten zur Bestimmung des Mittelwertes"}]

{"sheet":"Fragenauswertung","index":2,"n_rows":23,"n_cols":6,"rows_kept":23,"cut":false,"hidden":false,"merged":[]}
["Frage Nr.","Richtige","Falsche","Richtig in %","Falsch in %","Gesamt"]
[{"$f":"Dokumentenauswertung!$A14","v":"A1"},{"$f":"COUNTIF(Punkteauswertung!$D13:$AJ13,\">0\")","v":0},{"$f":"COUNTIF(Punkteauswertung!$D13:$AJ13,0)","v":0},{"$f":"IFERROR(B2/$F$2,\"\")","v":""},{"$f":"IFERROR(C2/$F$2,\"\")","v":""},{"$f":"SUM(B2:C2)","v":0}]
[{"$f":"Dokumentenauswertung!$A15","v":"A2"},{"$f":"COUNTIF(Punkteauswertung!$D14:$AJ14,\">0\")","v":0},{"$f":"COUNTIF(Punkteauswertung!$D14:$AJ14,0)","v":0},"","",0]
[{"$f":"Dokumentenauswertung!$A16","v":"A3"},{"$f":"COUNTIF(Punkteauswertung!$D15:$AJ15,\">0\")","v":0},{"$f":"COUNTIF(Punkteauswertung!$D15:$AJ15,0)","v":0},"","",0]
[{"$f":"Dokumentenauswertung!$A17","v":"A4.a"},{"$f":"COUNTIF(Punkteauswertung!$D16:$AJ16,\">0\")","v":0},{"$f":"COUNTIF(Punkteauswertung!$D16:$AJ16,0)","v":0},"","",0]
[{"$f":"Dokumentenauswertung!$A18","v":"A4.b"},{"$f":"COUNTIF(Punkteauswertung!$D17:$AJ17,\">0\")","v":0},{"$f":"COUNTIF(Punkteauswertung!$D17:$AJ17,0)","v":0},"","",0]
[{"$f":"Dokumentenauswertung!$A19","v":"A4.c"},{"$f":"COUNTIF(Punkteauswertung!$D18:$AJ18,\">0\")","v":0},{"$f":"COUNTIF(Punkteauswertung!$D18:$AJ18,0)","v":0},"","",0]
[{"$f":"Dokumentenauswertung!$A20","v":"A5.1"},{"$f":"COUNTIF(Punkteauswertung!$D19:$AJ19,\">0\")","v":0},{"$f":"COUNTIF(Punkteauswertung!$D19:$AJ19,0)","v":0},"","",0]
[{"$f":"Dokumentenauswertung!$A21","v":"A5.2"},{"$f":"COUNTIF(Punkteauswertung!$D20:$AJ20,\">0\")","v":0},{"$f":"COUNTIF(Punkteauswertung!$D20:$AJ20,0)","v":0},"","",0]
[{"$f":"Dokumentenauswertung!$A22","v":"A6.1"},{"$f":"COUNTIF(Punkteauswertung!$D21:$AJ21,\">0\")","v":0},{"$f":"COUNTIF(Punkteauswertung!$D21:$AJ21,0)","v":0},"","",0]
[{"$f":"Dokumentenauswertung!$A23","v":"A6.2"},{"$f":"COUNTIF(Punkteauswertung!$D22:$AJ22,\">0\")","v":0},{"$f":"COUNTIF(Punkteauswertung!$D22:$AJ22,0)","v":0},"","",0]
[{"$f":"Dokumentenauswertung!$A24","v":"A7.1"},{"$f":"COUNTIF(Punkteauswertung!$D23:$AJ23,\">0\")","v":0},{"$f":"COUNTIF(Punkteauswertung!$D23:$AJ23,0)","v":0},"","",0]
[{"$f":"Dokumentenauswertung!$A25","v":"A7.2"},{"$f":"COUNTIF(Punkteauswertung!$D24:$AJ24,\">0\")","v":0},{"$f":"COUNTIF(Punkteauswertung!$D24:$AJ24,0)","v":0},"","",0]
[{"$f":"Dokumentenauswertung!$A26","v":"A8.1"},{"$f":"COUNTIF(Punkteauswertung!$D25:$AJ25,\">0\")","v":0},{"$f":"COUNTIF(Punkteauswertung!$D25:$AJ25,0)","v":0},"","",0]
[{"$f":"Dokumentenauswertung!$A27","v":"A8.2"},{"$f":"COUNTIF(Punkteauswertung!$D26:$AJ26,\">0\")","v":0},{"$f":"COUNTIF(Punkteauswertung!$D26:$AJ26,0)","v":0},"","",0]
[{"$f":"Dokumentenauswertung!$A28","v":"A9"},{"$f":"COUNTIF(Punkteauswertung!$D27:$AJ27,\">0\")","v":0},{"$f":"COUNTIF(Punkteauswertung!$D27:$AJ27,0)","v":0},"","",0]
[{"$f":"Dokumentenauswertung!$A29","v":"A10"},{"$f":"COUNTIF(Punkteauswertung!$D28:$AJ28,\">0\")","v":0},{"$f":"COUNTIF(Punkteauswertung!$D28:$AJ28,0)","v":0},"","",0]
[{"$f":"Dokumentenauswertung!$A30","v":"A11.1"},{"$f":"COUNTIF(Punkteauswertung!$D29:$AJ29,\">0\")","v":0},{"$f":"COUNTIF(Punkteauswertung!$D29:$AJ29,0)","v":0},"","",0]
[{"$f":"Dokumentenauswertung!$A31","v":"A11.2"},{"$f":"COUNTIF(Punkteauswertung!$D30:$AJ30,\">0\")","v":0},{"$f":"COUNTIF(Punkteauswertung!$D30:$AJ30,0)","v":0},"","",0]
[{"$f":"Dokumentenauswertung!$A32","v":"B1"},{"$f":"COUNTIF(Punkteauswertung!$D31:$AJ31,\">0\")","v":0},{"$f":"COUNTIF(Punkteauswertung!$D31:$AJ31,0)","v":0},"","",0]
[{"$f":"Dokumentenauswertung!$A33","v":"B2"},{"$f":"COUNTIF(Punkteauswertung!$D32:$AJ32,\">0\")","v":0},{"$f":"COUNTIF(Punkteauswertung!$D32:$AJ32,0)","v":0},"","",0]
[{"$f":"Dokumentenauswertung!$A34","v":"B3"},{"$f":"COUNTIF(Punkteauswertung!$D33:$AJ33,\">0\")","v":0},{"$f":"COUNTIF(Punkteauswertung!$D33:$AJ33,0)","v":0},"","",0]
[{"$f":"Dokumentenauswertung!$A35","v":"B4"},{"$f":"COUNTIF(Punkteauswertung!$D34:$AJ34,\">0\")","v":0},{"$f":"COUNTIF(Punkteauswertung!$D34:$AJ34,0)","v":0},"","",0]